Workbook

Sheet selite
A1: VALTIOVARAINMINISTERIÖ/Kunta- ja aluehallinto-osasto/vjl | H1: 2020-06-15
A3: KUNTAKONSERNIN TALOUDEN SUUNNITTELUKEHIKKO
A5: Suunnittelukehikossa ei ole voitu ottaa koronan vaikutuksia täysimääräisesti valtionosuuksiin tai verotuloihin
A6: vuosien 2020 ja 2021 kohdalla, myöskään erilaisten tukipakettien lopullinen kunta-arvio ei ole selvillä
A8: Kehikon käyttötarkoitus:
A9: Vuorovaikutteinen kuntakonsernin talouden suunnittelun apuväline. Kehikon avulla voidaan suunnitella konsernin talouden
A10: kehitystä pidemmällä aikavälillä. Tarkastelun kohteena ovat konsernin tuloslaskelma, rahoituslaskelmasta rahavarat, antolainat ja
A11: investoinnit sekä taseesta lainat ja kertynyt yli-/alijäämä. Pohjatietoina kehikossa ovat 2 viimeksi
A12: valmistunutta tilinpäätöstä.
A13: Tulevan kehityksen osalta tuloslaskelman erien kasvuolettamukset pohjautuvat lähtökohtaisesti
A14: uusimman valtion kuntatalousohjelman (huhtikuu 2020) mukaisiin makroarviolukuihin - ei kuntakohtaisiin ennusteisiin.
A15: Käyttäjä voi kuitenkin itse muokata em. kasvuolettamuksia sekä yleensä tuloslaskelman muita eriä.
A16: Myös tuloveroprosenttia, investointeja ja antolainasaamisten määrää voidaan muuttaa.
A17: Rahoituslaskelman ja taseen erät pohjautuvat jäljempänä selostettuihin olettamuksiin
A18: (pl. taseen kertynyt yli-/alijäämä = ed. tilikausien yli-/alijäämä + tilikauden yli-/alijäämä).
A20: Käyttäjä voi muokata vaaleansinisellä pohjalla olevia kohtia (soluja).
A22: Kehikon laskentapohja:
A23: Asukasluku:
A24: Kunnan asukaslukuina käytetään lähtökohtaisesti viimeisintä väestötietoa (tässä 31.12.2019). Tulevien vuosien
A25: osalta asukaslukutiedot perustuvat tilastokeskuksen viimeisimpään väestöennusteeseen (TK, 2019).
A26: Tuloveroprosentti:
A27: Tuloveroprosentti perustuu viimeksi vahvistettuun tietoon (tässä vuoden 2018 veroprosentti). Tulevien vuosien osalta
A28: tuloveroprosentti on lähtökohtaisesti sama kuin edellisvuonna, mutta sitä voidaan muuttaa kehikossa. Kehikko
A29: laskee automaattisesti veroprosentin muutoksen vaikutuksen kunnallisveron tuottoon (edellisvuoden
A30: veroprosenttiyksikön tuoton perusteella).
A31: Tuloslaskelma:
A32: Tuloslaskelman pohjana ovat kuntien tilinpäätökset kahdelta viimeiseltä vuodelta. Tässä tapauksessa vuodet
A33: 2018 ja 2019. Tuloslaskelman keskeisten erien tulevien vuosien kasvuprosentit perustuvat lähtökohtaisesti
A34: kuntatalousohjelman (KTO 2021-2024, VM, huhtikuu 2020) mukaisiin makroennusteisiin eli kasvuprosentit
A35: ovat näin kaikilla kunnilla samat. Em. keskeiset tuloslaskelman erät ovat seuraavat:
B36: 1) toimintatuotot,
B37: 2) toimintamenot,
B38: 3) kunnallisverot (pl. veroprosentin noston vaikutus),
B39: 4) yhteisöverot,
B40: 5) kiinteistöverot ja
B41: 6) valtionosuudet.
A42: Käyttäjä voi muokata em. erien kasvuolettamuksia haluamikseen kirjoittamalla taulukkoon uudet kasvuprosentit.
A44: Verotuloissa on käytetty kunnan verotuloja, koska Tilastokeskus ei kerää konsernitasolla eri veromuotoja.
A45: TK:sta ilmoitettu yhteenlaskettu konsernitason verotulot saattaa poiketa perunkunnan yhteenlasketusta
A47: Korkokulujen kehitys perustuu edellisvuoden lainamäärään ja valittuun korkokantaan. Korkoprosentti (keskim.)
A48: voidaan siis valita halutun mukaiseksi. Korkoprosentti ei vaikuta korkotuottoihin, vaan sen perustuu ed. vuoden määrään.
A50: Muiden tuloslaskelman erien on oletettu edellisvuoden mukaisesti, mutta käyttäjä voi muokata niitä haluamikseen.
A51: Rahoituslaskelma ja tase:
A52: Kehikossa tuloslaskelma "päätyy" taseen kertyneeseen yli-/alijäämään, jolloin voidaan tarkastella esim. milloin kunnan mahdollinen
A53: taseen alijäämä tulisi katetuksi valituilla tuloslaskelman kasvuoletuksilla (vrt. kuntalaki ja alijäämän kattamisvelvollisuus).
A55: Investoinnit ja niihin liittyvät rahoitusosuudet sekä pysyvien vastaavien luovutustulot ovat lähtökohtaisesti viimeksi toteutuneen
A56: tilinpäätöksen mukaiset, mutta ne ovat myös muutettavissa.
A58: Kehikossa ns. bruttorahoitustarve katetaan joko lainanlisäyksellä tai/ja rahavarojen purulla. Käyttäjä voi valita prosenttiosuuden,
A59: jolla rahavaroja käytetään bruttorahoitustarpeen kattamiseen. Mikäli rahavaroja ei ole, tarve katetaan kaikkiaan lainanlisäyksellä.
A60: Bruttorahoitustarve voi olla myös positiivinen, jolloin "ylijäämä" lisää rahavaroja.
A62: Bruttorahoitustarve muodostuu seuraavista eristä = Vuosikate + tulorahoituksen korjauserät + satunnaiset erät, netto + investoinnit,
A63: netto + antolainasaamisten muutokset, netto + lainanlyhennykset. Bruttorahoitustarve voi olla myös positiivinen, jolloin "ylijäämä"
A65: Lainamäärää lyhennetään valitun keskimääräisen lyhennysajan (kuoletusaika) mukaan eli jos keskimääräinen lainanmaksuaika
A66: on esimerkiksi 8 vuotta, niin vuosittainen lainanlyhennys on 1/8 (12,5 %) edellisvuoden lainamäärästä. Lainanlyhennys
A67: tehdään aina, vaikka bruttorahoitustarve olisi negatiivinen.
A72: Lisätietoja: Neuvotteleva virkamies Vesa Lappalainen, puh. 02955 30389, etunimi.sukunimi@vm.fi

Sheet KEHIKKO
A1: Valtiovarainministeriö/Kunta- ja aluehallinto-osasto/vjl | H1: VALITSE KUNTA: | L1: 2020-06-15
A2: KUNTAKONSERNIN TALOUDEN SUUNNITTELUKEHIKKO | J2: Kunnat vuoden 2020 jaolla
A3: Muokkaa vaaleansinisellä olevia kohtia.
A4: =INDEX(pohjatiedot!$B$3:$B$297,KEHIKKO!$A$5) -> KOKO MAA (Manner-Suomi)
A5: 96 | B5: TP 2018 | C5: TP 2019 | D5: 2020 | E5: 2021 | F5: 2022 | G5: 2023 | H5: 2024 | I5: 2025 | J5: 2026 | K5: 2027 | L5: 2028 | M5: 2029
A6: TULOSLASKELMA | C6: =((C7/B7)-1)*100 -> 0.1326134767 | D6: =((D7/C7)-1)*100 -> 0.09482462449 | E6: 0.1048427459 | F6: 0.09781370213 | G6: 0.0896807778 | H6: 0.08060956566 | I6: 0.07014827676 | J6: 0.05876885848 | K6: =((K7/J7)-1)*100 -> 0.04679573148 | L6: 0.03321358723 | M6: 0.02027940758 | N6: Väestön muutos%
A7: Asukasluku 31.12. | B7: =VLOOKUP($A$4,pohjatiedot!$B$3:$CF$297,2) -> 5488130 | C7: =VLOOKUP($A$4,pohjatiedot!$B$3:$CF$297,42) -> 5495408 | D7: =VLOOKUP($A$4,väestöennuste!$A$7:$K$303,4) -> 5500619 | E7: =VLOOKUP($A$4,väestöennuste!$A$7:$K$303,5) -> 5506386 | F7: =VLOOKUP($A$4,väestöennuste!$A$7:$K$303,6) -> 5511772 | G7: =VLOOKUP($A$4,väestöennuste!$A$7:$K$303,7) -> 5516715 | H7: =VLOOKUP($A$4,väestöennuste!$A$7:$K$303,8) -> 5521162 | I7: =VLOOKUP($A$4,väestöennuste!$A$7:$K$303,9) -> 5525035 | J7: =VLOOKUP($A$4,väestöennuste!$A$7:$K$303,10) -> 5528282 | K7: =VLOOKUP($A$4,väestöennuste!$A$7:$K$303,11) -> 5530869 | L7: =VLOOKUP($A$4,väestöennuste!$A$7:$M$303,12) -> 5532706 | M7: =VLOOKUP($A$4,väestöennuste!$A$7:$N$303,13) -> 5533828 | N7: Väestöennuste TK 2019
A8: Veroprosentti | B8: =VLOOKUP($A$4,pohjatiedot!$B$3:$CF$297,3) -> 19.87 | C8: =VLOOKUP($A$4,pohjatiedot!$B$3:$CF$297,43) -> 19.9 | D8: =VLOOKUP($A$4,pohjatiedot!$B$3:$CI$297,83) -> 19.93 | E8: =D8 -> 19.93 | F8: =E8 -> 19.93 | G8: =F8 -> 19.93 | H8: =G8 -> 19.93 | I8: =H8 -> 19.93 | J8: =I8 -> 19.93 | K8: =J8 -> 19.93 | L8: =K8 -> 19.93 | M8: =L8 -> 19.93
A9: vero-% yksikön tuotto | B9: =B15/B8 -> 939334.0715 | C9: =C15/C8 -> 937917.9899 | D9: =D15/D8 -> 934166.318 | E9: =E15/E8 -> 1001426.293 | F9: 1011440.556 | G9: 1042795.213 | H9: 1074079.069 | I9: 1106301.442 | J9: 1139490.485 | K9: 1173675.199 | L9: 1208885.455 | M9: 1245152.019
A10: → noston vaikutus | D10: =(D8-C8)*C9 -> 28137.5397 | E10: =(E8-D8)*D9 -> 0 | F10: =(F8-E8)*E9 -> 0 | G10: 0 | H10: 0 | I10: 0 | J10: 0 | K10: 0 | L10: 0 | M10: 0
A11: Toimintatuotot (sis. valm. okäytt.) | B11: =VLOOKUP($A$4,pohjatiedot!$B$3:$CF$297,6) -> 25941171 | C11: =VLOOKUP($A$4,pohjatiedot!$B$3:$CF$297,46) -> 26773679 | D11: =C11*(1+D70/100) -> 26693357.96 | E11: =D11*(1+E70/100) -> 27227225.12 | F11: =E11*(1+F70/100) -> 27717315.17 | G11: =F11*(1+G70/100) -> 28243944.16 | H11: =G11*(1+H70/100) -> 28808823.05 | I11: 29384999.51 | J11: 29972699.5 | K11: 30572153.49 | L11: 31183596.56 | M11: 31807268.49 | O11: Näiden erien muutos-
A12: Toimintakulut | B12: =VLOOKUP($A$4,pohjatiedot!$B$3:$CF$297,7) -> 52925761 | C12: =VLOOKUP($A$4,pohjatiedot!$B$3:$CF$297,47) -> 54871181 | D12: =C12*(1+D71/100) -> 57066028.24 | E12: 58378546.89 | F12: =E12*(1+F71/100) -> 60129903.3 | G12: =F12*(1+G71/100) -> 62054060.2 | H12: 64101844.19 | I12: 66217205.05 | J12: 68402372.81 | K12: 70659651.12 | L12: 72991419.6 | M12: 75400136.45 | O12: prosentit syötetään
A13: Osuus osakk.yht. voitoista/tappioista | B13: =VLOOKUP($A$4,pohjatiedot!$B$3:$CF$297,8) -> 66298 | C13: =VLOOKUP($A$4,pohjatiedot!$B$3:$CF$297,48) -> 70720 | D13: =C13 -> 70720 | E13: =D13 -> 70720 | F13: =E13 -> 70720 | G13: 70720 | H13: 70720 | I13: 70720 | J13: 70720 | K13: 70720 | L13: 70720 | M13: 70720 | O13: alla olevaan taulukkoon
A14: Toimintakate | B14: =B11-B12+B13 -> -26918292 | C14: =C11-C12+C13 -> -28026782 | D14: =D11-D12+D13 -> -30301950.28 | E14: =E11-E12+E13 -> -31080601.77 | F14: -32341868.12 | G14: -33739396.04 | H14: -35222301.14 | I14: -36761485.54 | J14: -38358953.32 | K14: -40016777.63 | L14: -41737103.05 | M14: -43522147.96
A15: Kunnallisverot | B15: =VLOOKUP($A$4,pohjatiedot!$B$3:$CF$297,9) -> 18664568 | C15: =VLOOKUP($A$4,pohjatiedot!$B$3:$CF$297,49) -> 18664568 | D15: =(C15+D10)*(1+D72/100) -> 18617934.72 | E15: =(D15+E10)*(1+E72/100) -> 19958426.02 | F15: =(E15+F10)*(1+F72/100) -> 20158010.28 | G15: =F15*(1+G72/100) -> 20782908.6 | H15: =(G15+H10)*(1+H72/100) -> 21406395.85 | I15: 22048587.73 | J15: 22710045.36 | K15: 23391346.72 | L15: 24093087.12 | M15: 24815879.74
A16: Yhteisöverot | B16: =VLOOKUP($A$4,pohjatiedot!$B$3:$CF$297,10) -> 1866127 | C16: =VLOOKUP($A$4,pohjatiedot!$B$3:$CF$297,50) -> 1866127 | D16: =C16*(1+D73/100) -> 1393996.869 | E16: =D16*(1+E73/100) -> 1941837.639 | F16: 1691340.583 | G16: 1748846.163 | H16: 1750595.009 | I16: 1752345.604 | J16: 1754097.95 | K16: 1755852.048 | L16: 1757607.9 | M16: 1759365.508
A17: Kiinteistöverot | B17: =VLOOKUP($A$4,pohjatiedot!$B$3:$CF$297,11) -> 1790525 | C17: =VLOOKUP($A$4,pohjatiedot!$B$3:$CF$297,51) -> 1790525 | D17: =C17*(1+D74/100) -> 1718904 | E17: =D17*(1+E74/100) -> 1885637.688 | F17: 1832839.833 | G17: 1853001.071 | H17: 1871531.082 | I17: 1890246.392 | J17: 1909148.856 | K17: 1928240.345 | L17: 1947522.748 | M17: 1966997.976
A18: Verotulot | B18: =VLOOKUP($A$4,pohjatiedot!$B$3:$CF$297,12) -> 22270468 | C18: =VLOOKUP($A$4,pohjatiedot!$B$3:$CF$297,52) -> 22321220 | D18: =SUM(D15:D17) -> 21730835.59 | E18: 23785901.34 | F18: 23682190.69 | G18: 24384755.83 | H18: 25028521.94 | I18: 25691179.73 | J18: 26373292.17 | K18: 27075439.11 | L18: 27798217.77 | M18: 28542243.22
A19: Valtionosuudet | B19: =VLOOKUP($A$4,pohjatiedot!$B$3:$CF$297,13) -> 9617527 | C19: =VLOOKUP($A$4,pohjatiedot!$B$3:$CF$297,53) -> 9778488 | D19: =C19*(1+D75/100) -> 11587508.28 | E19: =D19*(1+E75/100) -> 10880670.27 | F19: =E19*(1+F75/100) -> 11936095.29 | G19: =F19*(1+G75/100) -> 12389666.91 | H19: =G19*(1+H75/100) -> 12773746.59 | I19: 13169732.73 | J19: 13577994.45 | K19: 13998912.27 | L19: 14432878.55 | M19: 14880297.79
D20: Kuntatalousohjelman (KTO, kevät -20) %-muutokset
A21: Korkotuotot | B21: =VLOOKUP($A$4,pohjatiedot!$B$3:$CF$297,14) -> 79083 | C21: =VLOOKUP($A$4,pohjatiedot!$B$3:$CF$297,54) -> 78665 | D21: =C21 -> 78665 | E21: =D21 -> 78665 | F21: 78665 | G21: 78665 | H21: 78665 | I21: 78665 | J21: 78665 | K21: 78665 | L21: 78665 | M21: 78665
A22: Korkokulut | B22: =VLOOKUP($A$4,pohjatiedot!$B$3:$CF$297,15) -> 413842 | C22: =VLOOKUP($A$4,pohjatiedot!$B$3:$CF$297,55) -> 410649 | D22: =($H$78/100)*C61 -> 663793.152 | E22: =($H$78/100)*D61 -> 733545.5444 | F22: 794778.7267 | G22: 860919.5073 | H22: 930938.7669 | I22: 1008116.488 | J22: 1092862.576 | K22: 1195864.221 | L22: 1324931.373 | M22: 1465773.536
A23: Muut rahoitustuotot | B23: =VLOOKUP($A$4,pohjatiedot!$B$3:$CF$297,16) -> 213264 | C23: =VLOOKUP($A$4,pohjatiedot!$B$3:$CF$297,56) -> 279711 | D23: =C23 -> 279711 | E23: =D23 -> 279711 | F23: 279711 | G23: 279711 | H23: 279711 | I23: 279711 | J23: 279711 | K23: 279711 | L23: 279711 | M23: 279711
A24: Muut rahoituskulut | B24: =VLOOKUP($A$4,pohjatiedot!$B$3:$CF$297,17) -> 110352 | C24: =VLOOKUP($A$4,pohjatiedot!$B$3:$CF$297,57) -> 75103 | D24: =C24 -> 75103 | E24: =D24 -> 75103 | F24: 75103 | G24: 75103 | H24: 75103 | I24: 75103 | J24: 75103 | K24: 75103 | L24: 75103 | M24: 75103
A25: VUOSIKATE | B25: =VLOOKUP($A$4,pohjatiedot!$B$3:$CF$297,18) -> 4737856 | C25: =VLOOKUP($A$4,pohjatiedot!$B$3:$CF$297,58) -> 4476884 | D25: =D14+D18+D19+D21-D22+D23-D24 -> 2635873.438 | E25: =E14+E18+E19+E21-E22+E23-E24 -> 3135697.307 | F25: 2764912.136 | G25: 2457380.196 | H25: 1932301.622 | I25: 1374583.43 | J25: 782743.7216 | K25: 144982.539 | L25: -547665.0933 | M25: -1282107.487
A26: €/asukas | B26: =1000*B25/B7 -> 863.2915037 | C26: =1000*C25/C7 -> 814.6590754 | D26: =1000*D25/D7 -> 479.1957846 | E26: =1000*E25/E7 -> 569.4655818 | F26: 501.6376106 | G26: 445.4426586 | H26: 349.9809682 | I26: 248.7918049 | J26: 141.5889641 | K26: 26.21333809 | L26: -98.98684175 | M26: -231.6854603
A27: Poistot ja arvonalent. | B27: =VLOOKUP($A$4,pohjatiedot!$B$3:$CF$297,20) -> 4281238 | C27: =VLOOKUP($A$4,pohjatiedot!$B$3:$CF$297,60) -> 4468739 | D27: =C27*$O$27 -> 4495551.434 | E27: =D27*$O$27 -> 4522524.743 | F27: 4549659.891 | G27: 4576957.85 | H27: 4604419.598 | I27: 4632046.115 | J27: 4659838.392 | K27: 4687797.422 | L27: 4715924.207 | M27: 4744219.752 | O27: 1.006 | P27: kasvuoletus
A28: Satunnaiset erät, netto | B28: =VLOOKUP($A$4,pohjatiedot!$B$3:$CF$297,21) -> -9816 | C28: =VLOOKUP($A$4,pohjatiedot!$B$3:$CF$297,61) -> 339728 | D28: 0 | E28: =D28 -> 0 | F28: 0 | G28: 0 | H28: 0 | I28: 0 | J28: 0 | K28: 0 | L28: 0 | M28: 0
A30: Tilikauden tulos | B30: =VLOOKUP($A$4,pohjatiedot!$B$3:$CF$297,23) -> 446802 | C30: =VLOOKUP($A$4,pohjatiedot!$B$3:$CF$297,63) -> 347873 | D30: =D25-D27+D28-D29 -> -1859677.996 | E30: =E25-E27+E28-E29 -> -1386827.436 | F30: =F25-F27+F28-F29 -> -1784747.755 | G30: -2119577.654 | H30: -2672117.975 | I30: -3257462.685 | J30: -3877094.67 | K30: -4542814.883 | L30: -5263589.3 | M30: -6026327.239
A31: Tilinpäätössiirrot | B31: =VLOOKUP($A$4,pohjatiedot!$B$3:$CF$297,24) -> 17985 | C31: =VLOOKUP($A$4,pohjatiedot!$B$3:$CF$297,64) -> 24483 | D31: =C31 -> 24483 | E31: 24483 | F31: 24483 | G31: 24483 | H31: 24483 | I31: 24483 | J31: 24483 | K31: 24483 | L31: 24483 | M31: 24483
A32: Tilikauden verot | B32: =VLOOKUP($A$4,pohjatiedot!$B$3:$CF$297,25) -> -84766 | C32: =VLOOKUP($A$4,pohjatiedot!$B$3:$CF$297,65) -> 103368 | D32: =C32 -> 103368 | E32: 103368 | F32: 103368 | G32: 103368 | H32: 103368 | I32: 103368 | J32: 103368 | K32: 103368 | L32: 103368 | M32: 103368
A33: Laskennalliset verot | B33: =VLOOKUP($A$4,pohjatiedot!$B$3:$CF$297,26) -> -64631 | C33: =VLOOKUP($A$4,pohjatiedot!$B$3:$CF$297,66) -> -54303 | D33: -54303 | E33: -54303 | F33: -54303 | G33: -54303 | H33: -54303 | I33: -54303 | J33: -54303 | K33: -54303 | L33: -54303 | M33: -54303
A34: Vähemmistöosuudet | B34: =VLOOKUP($A$4,pohjatiedot!$B$3:$CF$297,27) -> -26068 | C34: =VLOOKUP($A$4,pohjatiedot!$B$3:$CF$297,67) -> -36500 | D34: -36500 | E34: -36500 | F34: -36500 | G34: -36500 | H34: -36500 | I34: -36500 | J34: -36500 | K34: -36500 | L34: -36500 | M34: -36500
A35: Tilikauden yli-/alijäämä | B35: =VLOOKUP($A$4,pohjatiedot!$B$3:$CF$297,29) -> 289322 | C35: =VLOOKUP($A$4,pohjatiedot!$B$3:$CF$297,68) -> 178184 | D35: =D30+D31+D32+D33 -> -1786129.996 | E35: =E30+E31+E32+E33 -> -1313279.436 | F35: -1711199.755 | G35: -2046029.654 | H35: -2598569.975 | I35: -3183914.685 | J35: -3803546.67 | K35: -4469266.883 | L35: -5190041.3 | M35: -5952779.239
A36: TASEESTA
A37: Kertynyt yli-/alijäämä | B37: =VLOOKUP($A$4,pohjatiedot!$B$3:$CF$297,31) -> 12554784 | C37: =VLOOKUP($A$4,pohjatiedot!$B$3:$CF$297,70) -> 12670810 | D37: =C37+D35 -> 10884680 | E37: 9571400.568 | F37: 7860200.813 | G37: 5814171.159 | H37: 3215601.184 | I37: 31686.49858 | J37: -3771860.172 | K37: -8241127.055 | L37: -13431168.35 | M37: -19383947.59
A38: €/asukas | B38: =1000*B37/B7 -> 2287.625111 | C38: =1000*C37/C7 -> 2305.708694 | D38: 1978.810022 | E38: 1738.236398 | F38: 1426.075101 | G38: 1053.919073 | H38: 582.413844 | I38: 5.735076534 | J38: -682.2843284 | K38: -1490.02391 | L38: -2427.594807 | M38: -3502.809916
A40: RAHOITUSLASKELMAN JA TASEEN TIETOJA (sisältäen rahoitusjäämän ja sen vajeen kattamisoletukset)
A41: Vuosikate | B41: =B25 -> 4737856 | C41: =C25 -> 4476884 | D41: =D25 -> 2635873.438 | E41: =E25 -> 3135697.307 | F41: 2764912.136 | G41: 2457380.196 | H41: 1932301.622 | I41: 1374583.43 | J41: 782743.7216 | K41: 144982.539 | L41: -547665.0933 | M41: -1282107.487
A42: Tulorahoituksen korjauserät | C42: =VLOOKUP($A$4,pohjatiedot!$B$3:$CV$297,97) -> -824529 | D42: =C42 -> -824529 | E42: =D42 -> -824529 | F42: =E42 -> -824529 | G42: -824529 | H42: -824529 | I42: -824529 | J42: -824529 | K42: -824529 | L42: -824529 | M42: -824529
A43: Satunnaiset erät, netto | B43: =B28-B29 -> -9816 | C43: =C28-C29 -> 339728 | D43: =D28-D29 -> 0 | E43: =E28-E29 -> 0 | F43: 0 | G43: 0 | H43: 0 | I43: 0 | J43: 0 | K43: 0 | L43: 0 | M43: 0
A44: = 1. Tulorahoitus, netto | C44: =SUM(C41:C43) -> 3992083 | D44: =SUM(D41:D43) -> 1811344.438 | E44: 2311168.307 | F44: 1940383.136 | G44: 1632851.196 | H44: 1107772.622 | I44: 550054.4297 | J44: -41785.27844 | K44: -679546.461 | L44: -1372194.093 | M44: -2106636.487
A45: Investointimenot | C45: =VLOOKUP($A$4,pohjatiedot!$B$3:$CW$297,98) -> -8899552 | D45: =C45 -> -8899552 | E45: =D45 -> -8899552 | F45: -8899552 | G45: -8899552 | H45: -8899552 | I45: -8899552 | J45: -8899552 | K45: -8899552 | L45: -8899552 | M45: -8899552
A46: Rahoitusosuudet investointeihin | C46: =VLOOKUP($A$4,pohjatiedot!$B$3:$CW$297,99) -> 189104 | D46: =C46 -> 189104 | E46: =D46 -> 189104 | F46: 189104 | G46: 189104 | H46: 189104 | I46: 189104 | J46: 189104 | K46: 189104 | L46: 189104 | M46: 189104
A47: Inv.hyödykkeiden luovutustulot | C47: =VLOOKUP($A$4,pohjatiedot!$B$3:$CW$297,100) -> 1879002 | D47: =C47 -> 1879002 | E47: =D47 -> 1879002 | F47: 1879002 | G47: 1879002 | H47: 1879002 | I47: 1879002 | J47: 1879002 | K47: 1879002 | L47: 1879002 | M47: 1879002
A48: = 2. Nettoinvestoinnit | B48: =VLOOKUP($A$4,pohjatiedot!$B$3:$CF$297,34) -> -3504641 | C48: =C47+C46+C45 -> -6831446 | D48: =D47+D46+D45 -> -6831446 | E48: =E47+E46+E45 -> -6831446 | F48: -6831446 | G48: -6831446 | H48: -6831446 | I48: -6831446 | J48: -6831446 | K48: -6831446 | L48: -6831446 | M48: -6831446
A49: €/asukas | B49: =1000*B48/B7 -> -638.5856385 | C49: -1243.118982 | D49: -1241.941316 | E49: -1240.640594 | F49: -1239.428264 | G49: -1238.317731 | H49: -1237.320332 | I49: -1236.452982 | J49: -1235.726759 | K49: -1235.148762 | L49: -1234.738661 | M49: -1234.488314
A50: Vuosikate-nettoinv. | B50: =B25+B48 -> 1233215 | C50: -2354562 | D50: -4195572.562 | E50: -3695748.693 | F50: -4066533.864 | G50: -4374065.804 | H50: -4899144.378 | I50: -5456862.57 | J50: -6048702.278 | K50: -6686463.461 | L50: -7379111.093 | M50: -8113553.487
A51: €/asukas | B51: =1000*B50/B7 -> 224.7058652 | C51: -428.4599069 | D51: -762.7455315 | E51: -671.1750126 | F51: -737.7906531 | G51: -792.8750722 | H51: -887.339364 | I51: -987.6611769 | J51: -1094.137795 | K51: -1208.935424 | L51: -1333.725503 | M51: -1466.173775
A52: = 3. Rahoitusjäämä
A53: (1. Tulorahoitus+ 2.Nettoinv.) | C53: =C44+C48 -> -2839363 | D53: =D44+D48 -> -5020101.562 | E53: =E44+E48 -> -4520277.693 | F53: -4891062.864 | G53: -5198594.804 | H53: -5723673.378 | I53: -6281391.57 | J53: -6873231.278 | K53: -7510992.461 | L53: -8203640.093 | M53: -8938082.487
A54: 4. Bruttorahoitustarve
A55: (= Rahoitusjäämä + antolainasaam.
A56: muutokset + lainanlyh.) | D56: =D53-D59-D57 -> -9982126.562 | E56: =E53-E59-E57 -> -9995187.931 | F56: -10816217.09 | G56: -11610078.3 | H56: -12650004.37 | I56: -13775205.8 | J56: -14990178.51 | K56: -16385304.73 | L56: -18026975.54 | M56: -19797022.08
A57: Antolainauksen muutokset | C57: =VLOOKUP($A$4,pohjatiedot!$B$3:$CX$297,101) -> 81193 | D57: =C57 -> 81193 | E57: =D57 -> 81193 | F57: 81193 | G57: 81193 | H57: 81193 | I57: 81193 | J57: 81193 | K57: 81193 | L57: 81193 | M57: 81193 | N57: Positiivinen arvo=nettolisäys.
A58: Lainamäärän muutos; | C58: =C61-B61 -> 3057455 | D58: =D60-D59 -> 4103081.906 | E58: =E60-E59 -> 3601951.9 | F58: 3890634.155 | G58: 4118779.974 | H58: 4539865.941 | I58: 4985063.99 | J58: 6058920.284 | K58: 7592185.461 | L58: 8284833.093 | M58: 9019275.487
A59: Lainanlyhennykset | D59: =IF(C61>0,(C61*(1/$H$77)),IF(C61=0,0)) -> 4880832 | E59: =IF(D61>0,(D61*(1/$H$77)),IF(D61=0,0)) -> 5393717.238 | F59: 5843961.226 | G59: 6330290.495 | H59: 6845137.992 | I59: 7412621.234 | J59: 8035754.233 | K59: 8793119.269 | L59: 9742142.451 | M59: 10777746.59
A60: Lainanlisäystarve | D60: =-(D56+(C63-D63)) -> 8983913.906 | E60: =-(E56+(D63-E63)) -> 8995669.138 | F60: 9734595.38 | G60: 10449070.47 | H60: 11385003.93 | I60: 12397685.22 | J60: 14094674.52 | K60: 16385304.73 | L60: 18026975.54 | M60: 19797022.08
A61: Lainakanta | B61: =VLOOKUP($A$4,pohjatiedot!$B$3:$CF$297,39) -> 35989201 | C61: =VLOOKUP($A$4,pohjatiedot!$B$3:$CF$297,78) -> 39046656 | D61: =C61-D59+D60 -> 43149737.91 | E61: =D61-E59+E60 -> 46751689.81 | F61: 50642323.96 | G61: 54761103.93 | H61: 59300969.88 | I61: 64286033.87 | J61: 70344954.15 | K61: 77937139.61 | L61: 86221972.7 | M61: 95241248.19
A62: €/asukas | B62: =1000*B61/B7 -> 6557.643678 | C62: 7105.3243 | D62: =1000*D61/D7 -> 7844.524027 | E62: 8490.449054 | F62: 9188.029541 | G62: 9926.397128 | H62: 10740.66834 | I62: 11635.40753 | J62: 12724.55966 | K62: 14091.30095 | L62: 15584.05104 | M62: 17210.73517
A63: Rahavarat | B63: =VLOOKUP($A$4,pohjatiedot!$B$3:$CF$297,37) -> 3451236 | C63: =VLOOKUP($A$4,pohjatiedot!$B$3:$CF$297,76) -> 7778386 | D63: =IF(D56>0,(C63+D56),IF(C63+(D56*$H$79)<0,0,IF(C63+(D56*$H$79)>0,C63+(D56*$H$79)))) -> 6780173.344 | E63: =IF(E56>0,(D63+E56),IF(D63+(E56*$H$79)<0,0,IF(D63+(E56*$H$79)>0,D63+(E56*$H$79)))) -> 5780654.551 | F63: 4699032.842 | G63: 3538025.012 | H63: 2273024.575 | I63: 895503.9944 | J63: 0 | K63: 0 | L63: 0 | M63: 0
A64: €/asukas | B64: =1000*B63/B7 -> 628.8546372 | C64: 1415.433759 | D64: 1232.620064 | E64: 1049.809176 | F64: 852.5448516 | G64: 641.3282201 | H64: 411.6931499 | I64: 162.0811442 | J64: 0 | K64: 0 | L64: 0 | M64: 0
A65: Nettovelka (rahat-lainat) | B65: =B63-B61 -> -32537965 | C65: =C63-C61 -> -31268270 | D65: -36369564.56 | E65: -40971035.26 | F65: -45943291.12 | G65: -51223078.92 | H65: -57027945.3 | I65: -63390529.87 | J65: -70344954.15 | K65: -77937139.61 | L65: -86221972.7 | M65: -95241248.19
A66: €/asukas | B66: =1000*B65/B7 -> -5928.789041 | C66: -5689.890541 | D66: -6611.903963 | E66: -7440.639878 | F66: -8335.48469 | G66: -9285.068908 | H66: -10328.97519 | I66: -11473.32639 | J66: -12724.55966 | K66: -14091.30095 | L66: -15584.05104 | M66: -17210.73517
A68: TULOSLASKELMAN ERIEN KASVUPROSENTIT:
A69: Muutos ed. vuodesta, %: | C69: 18/19 | D69: SYÖTÄ HALUAMASI KASVUPROSENTIT! | J69: pääoletuksena samat arvot kuin v. 2024 > | O69: Syötä muutos-
A70: Toimintatuotot | C70: =((C11/B11)-1)*100 -> 3.209215189 | D70: -0.3 | E70: 2 | F70: 1.8 | G70: 1.9 | H70: 2 | I70: =H70 -> 2 | J70: =I70 -> 2 | K70: 2 | L70: 2 | M70: 2 | O70: prosentit
A71: Toimintakulut | C71: =((C12/B12)-1)*100 -> 3.675752532 | D71: 4 | E71: 2.3 | F71: 3 | G71: 3.2 | H71: 3.3 | I71: 3.3 | J71: 3.3 | K71: 3.3 | L71: 3.3 | M71: 3.3 | O71: Vuosien 2020 - 2024
A72: Kunnallisverot | C72: =((C15/B15)-1)*100 -> 0 | D72: -0.4 | E72: 7.2 | F72: 1 | G72: 3.1 | H72: 3 | I72: 3 | J72: 3 | K72: 3 | L72: 3 | M72: 3 | O72: pohjana KTO:n huhti/2020
A73: Yhteisöverot | C73: =((C16/B16)-1)*100 -> 0 | D73: -25.3 | E73: 39.3 | F73: -12.9 | G73: 3.4 | H73: 0.1 | I73: 0.1 | J73: 0.1 | K73: 0.1 | L73: 0.1 | M73: 0.1 | O73: arvioluvut koko maan
A74: Kiinteistöverot | C74: =((C17/B17)-1)*100 -> 0 | D74: -4 | E74: 9.7 | F74: -2.8 | G74: 1.1 | H74: 1 | I74: 1 | J74: 1 | K74: 1 | L74: 1 | M74: 1 | O74: kehityksestä
A75: Valtionosuudet (pl. hark.var.) | C75: =((C19/B19)-1)*100 -> 1.673621504 | D75: 18.5 | E75: -6.1 | F75: 9.7 | G75: 3.8 | H75: 3.1 | I75: 3.1 | J75: 3.1 | K75: 3.1 | L75: 3.1 | M75: 3.1
A76: TAUSTAMUUTTUJAT:
A77: VALITSE KESKIMÄÄR. LAINANLYHENNYSAIKA (VUODET): | H77: 8 | I77: Esim. lainanlyhennysaika 8 vuotta, jolloin vuosilyhennys = 1/8 eli 12,5 % * lainamäärä
A78: VALITSE KESKIMÄÄR. KORKOKANTA (KORKOPROSENTTI): | H78: 1.7 | I78: Vaikutus korkomenoihin, ei korkotuloihin
A79: MONTAKO % RAHAVAROISTA KÄYTETÄÄN (4.) BRUTTORAHOITUSTARPEEN KATTAMISEEN ? | H79: 0.1 | I79: Syötä prosenttiosuus, joka käytetään rahavaroista.
B85: =B5 -> TP 2018 | C85: =C5 -> TP 2019 | D85: =D5 -> 2020 | E85: 2021 | F85: 2022 | G85: 2023 | H85: 2024 | I85: 2025 | J85: 2026 | K85: 2027 | L85: 2028 | M85: 2029
A86: Vuosikate | B86: =B26 -> 863.2915037 | C86: =C26 -> 814.6590754 | D86: =D26 -> 479.1957846 | E86: 569.4655818 | F86: 501.6376106 | G86: 445.4426586 | H86: 349.9809682 | I86: 248.7918049 | J86: 141.5889641 | K86: 26.21333809 | L86: -98.98684175 | M86: -231.6854603
A87: Poistot ja arvonalent. | B87: =1000*B27/B7 -> 780.0904862 | C87: =1000*C27/C7 -> 813.1769288 | D87: =1000*D27/D7 -> 817.2810067 | E87: 821.3235946 | F87: 825.4441387 | G87: 829.6527644 | H87: 833.9584308 | I87: 838.3740764 | J87: 842.9089529 | K87: 847.5697801 | L87: 852.3720954 | M87: 857.3124701
A88: Nettoinvestoinnit | B88: =-1000*B48/B7 -> 638.5856385 | C88: 1243.118982 | D88: =-1000*D48/D7 -> 1241.941316 | E88: 1240.640594 | F88: 1239.428264 | G88: 1238.317731 | H88: 1237.320332 | I88: 1236.452982 | J88: 1235.726759 | K88: 1235.148762 | L88: 1234.738661 | M88: 1234.488314
B115: =B5 -> TP 2018 | C115: =C5 -> TP 2019 | D115: =D5 -> 2020 | E115: 2021 | F115: 2022 | G115: 2023 | H115: 2024 | I115: 2025 | J115: 2026 | K115: 2027 | L115: 2028 | M115: 2029
A116: Rahavarat | B116: =B64 -> 628.8546372 | C116: 1415.433759 | D116: =D64 -> 1232.620064 | E116: 1049.809176 | F116: 852.5448516 | G116: 641.3282201 | H116: 411.6931499 | I116: 162.0811442 | J116: 0 | K116: 0 | L116: 0 | M116: 0
A117: Lainakanta | B117: =B62 -> 6557.643678 | C117: =C62 -> 7105.3243 | D117: =D62 -> 7844.524027 | E117: 8490.449054 | F117: 9188.029541 | G117: 9926.397128 | H117: 10740.66834 | I117: 11635.40753 | J117: 12724.55966 | K117: 14091.30095 | L117: 15584.05104 | M117: 17210.73517
A118: Nettovelka | B118: =B117-B116 -> 5928.789041 | C118: =C117-C116 -> 5689.890541 | D118: 6611.903963 | E118: 7440.639878 | F118: 8335.48469 | G118: 9285.068908 | H118: 10328.97519 | I118: 11473.32639 | J118: 12724.55966 | K118: 14091.30095 | L118: 15584.05104 | M118: 17210.73517

Sheet pohjatiedot
C1: 2018 | D1: 41 | E1: 42 | F1: 43 | G1: 44 | H1: 45 | I1: 46 | J1: 47 | K1: 48 | L1: 49 | M1: 50 | N1: 51 | O1: 52 | P1: 53 | Q1: 54 | R1: 55 | S1: 56 | T1: 57 | U1: 58 | V1: 59 | W1: 60 | X1: 61 | Y1: 62 | AB1: 63 | AC1: 64 | AD1: 65 | AE1: 66 | AF1: 67 | AG1: 68 | AH1: 69 | AI1: 70 | AJ1: 71 | AK1: 72 | AL1: 73 | AM1: 74 | AN1: 75 | AO1: 76 | AP1: 77 | AQ1: 2019 | AR1: 43 | AS1: 44 | AT1: 45 | AU1: 46 | AV1: 47 | AW1: 48 | AX1: 49 | AY1: 50 | AZ1: 51 | BA1: 52 | BB1: 53 | BC1: 54 | BD1: 55 | BE1: 56 | BF1: 57 | BG1: 58 | BH1: 59 | BI1: 60 | BJ1: 61 | BK1: 62 | BL1: 63 | BM1: 64 | BN1: 65 | BO1: 66 | BP1: 67 | BQ1: 68 | BR1: 69 | BS1: 70 | BT1: 71 | BU1: 72 | BV1: 73 | BW1: 74 | BX1: 75 | BY1: 76 | BZ1: 77 | CA1: 78 | CC1: 80 | CD1: 81 | CE1: 82 | CF1: vero-% | CG1: 84 | CH1: 85 | CI1: 86 | CJ1: 87 | CK1: 88 | CL1: 89 | CM1: 90 | CN1: 91 | CO1: 92 | CP1: 93 | CQ1: 94 | CR1: 95 | CS1: 96 | CT1: 2019, rivi 97 | CU1: 2019 | CV1: 99 | CW1: 100 | CX1: 101
A2: Kunta nro. | B2: Kunta | C2: Asukasluku | D2: Veroprosentti | G2: Toimintatuotot | H2: Toimintakulut | I2: Osuus osakkuusyhteisöjen voitoista/tappioista | J2: Kunnallisverot | K2: Yhteisöverot | L2: Kiinteistöverot | M2: Verotulot | N2: Valtionavut | O2: Korkotuotot | P2: Korkokulut | Q2: Muut rahoitustuotot | R2: Muut rahoituskulut | S2: VUOSIKATE | U2: Poistot ja arvonalent. | V2: Satunnaiset erät, netto | X2: Tlikauden tulos | Y2: Tilinpäätössiirrot | Z2: Tilikauden verot | AA2: Lask. verot | AB2: Vähemmintösiirrot | AD2: Tlikauden yli-/alijäämä | AF2: Kertynyt yli-/alijäämä | AI2: Nettoinv. 2018 | AJ2: Vuosikate-nettoinv. | AL2: Rahavarat | AN2: Lainakanta | AQ2: Asukasluku | AR2: Veroprosentti | AU2: Toimintatuotot | AV2: Toimintakulut | AW2: Osuus osakkuusyhteisöjen voitoista/tappioista | AX2: Kunnallisverot | AY2: Yhteisöverot | AZ2: Kiinteistöverot | BA2: Verotulot | BB2: Valtionavut | BC2: Korkotuotot | BD2: Korkokulut | BE2: Muut rahoitustuotot | BF2: Muut rahoituskulut | BG2: VUOSIKATE | BI2: Poistot ja arvonalent. | BJ2: Satunnaiset erät | BL2: Tlikauden tulos | BM2: Tilinpäätössiirrot | BN2: Tilikauden verot | BO2: Lask. verot | BP2: Vähemmistöosuudet | BQ2: Tlikauden yli-/alijäämä | BS2: Kertynyt yli-/alijäämä | BV2: Nettoinv. | BW2: Vuosikate-nettoinv. | BY2: Rahavarat | CA2: Lainakanta | CC2: Saamiset | CF2: 2020 | CS2: Kotikuntakorv+elatustuen palautus, netto | CT2: Tulorah.korjauserät | CU2: Investointimenot | CV2: Rahoitusos. inv.menoihin | CW2: Inv.hyödyk. luovutustulot | CX2: antolainauksen muutokset
A3: 20 | B3: Akaa | C3: 16611 | D3: 21.75 | G3: 61885 | H3: 150217 | I3: 9 | J3: 54693 | K3: 1613 | L3: 3319 | M3: 59625 | N3: 32456 | O3: 395 | P3: 462 | Q3: 928 | R3: 164 | S3: 4455 | U3: 7026 | V3: 0 | X3: -2571 | Y3: 2 | Z3: -94 | AA3: -35 | AB3: -87 | AD3: -2785 | AF3: -9836 | AI3: -8911 | AL3: 6429 | AN3: 71190 | AQ3: 16475 | AR3: 22.25 | AU3: 64620 | AV3: 153015 | AW3: -4 | AX3: 54693 | AY3: 1613 | AZ3: 3319 | BA3: 59625 | BB3: 33974 | BC3: 354 | BD3: 434 | BE3: 422 | BF3: 195 | BG3: 8715 | BI3: 8464 | BJ3: 0 | BL3: 251 | BM3: 0 | BN3: 70 | BO3: -43 | BP3: -102 | BQ3: 36 | BS3: -9892 | BY3: 7089 | CA3: 73531 | CF3: 22.25 | CT3: -729 | CU3: -9837 | CV3: 35 | CW3: 253 | CX3: -5
A4: 5 | B4: Alajärvi | C4: 9700 | D4: 21.75 | G4: 56110 | H4: 116873 | I4: 190 | J4: 24613 | K4: 2142 | L4: 2138 | M4: 28893 | N4: 36755 | O4: 22 | P4: 365 | Q4: 172 | R4: 168 | S4: 4736 | U4: 5876 | V4: 0 | X4: -1140 | Y4: 25 | Z4: -50 | AA4: 0 | AB4: -5 | AD4: -1170 | AF4: 7456 | AI4: -10578 | AL4: 8872 | AN4: 45721 | AQ4: 9562 | AR4: 21.75 | AU4: 71516 | AV4: 133738 | AW4: 226 | AX4: 24613 | AY4: 2142 | AZ4: 2138 | BA4: 28893 | BB4: 36500 | BC4: 16 | BD4: 393 | BE4: 287 | BF4: 123 | BG4: 3803 | BI4: 6114 | BJ4: 0 | BL4: -2311 | BM4: -11 | BN4: 48 | BO4: -5 | BP4: 7 | BQ4: -2368 | BS4: 4891 | BY4: 7664 | CA4: 50397 | CF4: 21.75 | CT4: -269 | CU4: -11425 | CV4: 781 | CW4: 88 | CX4: -85
A5: 9 | B5: Alavieska | C5: 2573 | D5: 21.5 | G5: 15045 | H5: 30994 | I5: 1 | J5: 6537 | K5: 259 | L5: 732 | M5: 7525 | N5: 9826 | O5: 0 | P5: 29 | Q5: 28 | R5: 13 | S5: 1389 | U5: 979 | V5: 72 | X5: 482 | Y5: -1 | Z5: -1 | AA5: 1 | AB5: -1 | AD5: 480 | AF5: 926 | AI5: -902 | AL5: 3048 | AN5: 9237 | AQ5: 2519 | AR5: 22 | AU5: 15791 | AV5: 31650 | AW5: 1 | AX5: 6537 | AY5: 259 | AZ5: 732 | BA5: 7528 | BB5: 9685 | BC5: 0 | BD5: 27 | BE5: 25 | BF5: 11 | BG5: 1774 | BI5: 1068 | BJ5: 0 | BL5: 706 | BM5: 0 | BN5: 1 | BO5: 0 | BP5: 0 | BQ5: 705 | BS5: 1631 | BY5: 3197 | CA5: 10120 | CF5: 22 | CT5: 2 | CU5: -1628 | CV5: 18 | CW5: -19 | CX5: 0
A6: 10 | B6: Alavus | C6: 11544 | D6: 21.25 | G6: 71741 | H6: 137803 | I6: 1547 | J6: 28747 | K6: 2398 | L6: 2756 | M6: 33798 | N6: 38294 | O6: 85 | P6: 604 | Q6: 761 | R6: 151 | S6: 7668 | U6: 6649 | V6: 0 | X6: 1019 | Y6: 9 | Z6: -17 | AA6: -68 | AB6: -4 | AD6: 939 | AF6: 20657 | AI6: -8968 | AL6: 17462 | AN6: 71092 | AQ6: 11468 | AR6: 21.25 | AU6: 72735 | AV6: 141054 | AW6: 562 | AX6: 28747 | AY6: 2398 | AZ6: 2756 | BA6: 33901 | BB6: 38072 | BC6: 67 | BD6: 569 | BE6: 361 | BF6: 223 | BG6: 4949 | BI6: 7456 | BJ6: 9142 | BL6: 6635 | BM6: 11 | BN6: 14 | BO6: -71 | BP6: 17 | BQ6: 6578 | BS6: 25846 | BY6: 18541 | CA6: 78561 | CF6: 21.25 | CT6: -9761 | CU6: -13156 | CV6: 466 | CW6: 9759 | CX6: 866
A7: 16 | B7: Asikkala | C7: 8149 | D7: 20.75 | G7: 43453 | H7: 84756 | I7: -6 | J7: 24509 | K7: 1436 | L7: 2893 | M7: 28838 | N7: 17538 | O7: 4 | P7: 113 | Q7: 69 | R7: 232 | S7: 4795 | U7: 4165 | V7: 263 | X7: 893 | Y7: 0 | Z7: -13 | AA7: -59 | AB7: 0 | AD7: 821 | AF7: 10527 | AI7: -2225 | AL7: 7673 | AN7: 23108 | AQ7: 8083 | AR7: 20.75 | AU7: 42608 | AV7: 88825 | AW7: 16 | AX7: 24509 | AY7: 1436 | AZ7: 2893 | BA7: 28838 | BB7: 20631 | BC7: 11 | BD7: 104 | BE7: 281 | BF7: 157 | BG7: 4206 | BI7: 4111 | BJ7: -266 | BL7: -171 | BM7: 0 | BN7: 3 | BO7: -28 | BP7: -2 | BQ7: -204 | BS7: 10323 | BY7: 3963 | CA7: 19437 | CF7: 20.75 | CT7: -255 | CU7: -3980 | CV7: 3 | CW7: 80 | CX7: -6
A8: 18 | B8: Askola | C8: 4958 | D8: 20.75 | G8: 14418 | H8: 41260 | I8: -2 | J8: 16454 | K8: 949 | L8: 1144 | M8: 18547 | N8: 8957 | O8: 0 | P8: 216 | Q8: 302 | R8: 59 | S8: 687 | U8: 2089 | V8: 2228 | X8: 826 | Y8: 178 | Z8: -6 | AA8: 0 | AB8: 0 | AD8: 998 | AF8: -1633 | AI8: -4241 | AL8: 5260 | AN8: 28168 | AQ8: 4943 | AR8: 21.5 | AU8: 14287 | AV8: 39474 | AW8: 3 | AX8: 16454 | AY8: 949 | AZ8: 1144 | BA8: 18547 | BB8: 8303 | BC8: 1 | BD8: 275 | BE8: 343 | BF8: 62 | BG8: 2833 | BI8: 2340 | BJ8: 2496 | BL8: 2989 | BM8: 7 | BN8: 1 | BO8: 0 | BP8: -2 | BQ8: 2993 | BS8: 1595 | BY8: 6873 | CA8: 29815 | CF8: 21.5 | CT8: -145 | CU8: -4914 | CV8: 308 | CW8: 257 | CX8: -1
A9: 19 | B9: Aura | C9: 3984 | D9: 21.75 | G9: 12003 | H9: 31204 | I9: 1 | J9: 12992 | K9: 571 | L9: 751 | M9: 14314 | N9: 6390 | O9: 0 | P9: 52 | Q9: 48 | R9: 25 | S9: 1475 | U9: 1297 | V9: 0 | X9: 178 | Y9: -81 | Z9: 0 | AA9: -21 | AB9: -41 | AD9: 35 | AF9: 1642 | AI9: -2412 | AL9: 1041 | AN9: 14251 | AQ9: 3941 | AR9: 21.75 | AU9: 12253 | AV9: 32020 | AW9: 7 | AX9: 12992 | AY9: 571 | AZ9: 751 | BA9: 14314 | BB9: 6395 | BC9: 0 | BD9: 50 | BE9: 40 | BF9: 25 | BG9: 1307 | BI9: 1309 | BJ9: -1 | BL9: -3 | BM9: -107 | BN9: 0 | BO9: -26 | BP9: -46 | BQ9: -182 | BS9: 1610 | BY9: 2002 | CA9: 15560 | CF9: 21.5 | CT9: 25 | CU9: -1414 | CV9: 26 | CW9: 178 | CX9: 0
A10: 46 | B10: Enonkoski | C10: 1405 | D10: 21 | G10: 10151 | H10: 19928 | I10: 0 | J10: 3379 | K10: 569 | L10: 533 | M10: 4481 | N10: 5829 | O10: 7 | P10: 14 | Q10: 80 | R10: 18 | S10: 588 | U10: 843 | V10: 5 | X10: -250 | Y10: 1 | Z10: -1 | AA10: -8 | AB10: 0 | AD10: -258 | AF10: 6659 | AI10: -802 | AL10: 3324 | AN10: 1082 | AQ10: 1361 | AR10: 21 | AU10: 10276 | AV10: 19669 | AW10: 0 | AX10: 3379 | AY10: 569 | AZ10: 533 | BA10: 4481 | BB10: 5745 | BC10: 4 | BD10: 10 | BE10: 99 | BF10: 5 | BG10: 1153 | BI10: 877 | BJ10: 0 | BL10: 276 | BM10: 0 | BN10: 0 | BO10: -4 | BP10: 0 | BQ10: 272 | BS10: 6931 | BY10: 3555 | CA10: 804 | CF10: 21 | CT10: -49 | CU10: -702 | CV10: 12 | CW10: 24 | CX10: 0
A11: 47 | B11: Enontekiö | C11: 1852 | D11: 21.25 | G11: 8772 | H11: 22485 | I11: -11 | J11: 5155 | K11: 384 | L11: 823 | M11: 6362 | N11: 8604 | O11: 16 | P11: 137 | Q11: 655 | R11: 212 | S11: 1564 | U11: 1111 | V11: 0 | X11: 453 | Y11: 10 | Z11: -23 | AA11: -1 | AB11: 0 | AD11: 439 | AF11: 1933 | AI11: -744 | AL11: 2270 | AN11: 9399 | AQ11: 1838 | AR11: 21.25 | AU11: 8571 | AV11: 22860 | AW11: -7 | AX11: 5155 | AY11: 384 | AZ11: 823 | BA11: 6362 | BB11: 8789 | BC11: 18 | BD11: 95 | BE11: 619 | BF11: 218 | BG11: 1080 | BI11: 1024 | BJ11: 0 | BL11: 56 | BM11: 1 | BN11: 30 | BO11: -4 | BP11: 0 | BQ11: 23 | BS11: 2110 | BY11: 1978 | CA11: 9071 | CF11: 21.25 | CT11: 7 | CU11: -2409 | CV11: 492 | CW11: 246 | CX11: 131
A12: 49 | B12: Espoo | C12: 283632 | D12: 18 | G12: 1102801 | H12: 2383893 | I12: -1616 | J12: 1259684 | K12: 125298 | L12: 117004 | M12: 1501986 | N12: 95314 | O12: 11822 | P12: 47412 | Q12: 39012 | R12: 18089 | S12: 299925 | U12: 306013 | V12: 0 | X12: -6088 | Y12: 12237 | Z12: -622 | AA12: 2802 | AB12: 3973 | AD12: 12302 | AF12: 604643 | AI12: -380311 | AL12: 1004350 | AN12: 3502631 | AQ12: 289731 | AR12: 18 | AU12: 1171298 | AV12: 2544378 | AW12: -1283 | AX12: 1259684 | AY12: 125298 | AZ12: 117004 | BA12: 1501986 | BB12: 113469 | BC12: 11572 | BD12: 46261 | BE12: 48319 | BF12: 3849 | BG12: 270071 | BI12: 323458 | BJ12: 0 | BL12: -53387 | BM12: 15025 | BN12: 603 | BO12: 2899 | BP12: 3766 | BQ12: -32300 | BS12: 551120 | BY12: 979656 | CA12: 3802739 | CF12: 18 | CT12: -85541 | CU12: -661148 | CV12: 58030 | CW12: 94591 | CX12: 2909
A13: 50 | B13: Eura | C13: 11748 | D13: 20.5 | G13: 36008 | H13: 103147 | I13: 0 | J13: 38473 | K13: 1964 | L13: 3128 | M13: 43565 | N13: 25358 | O13: 4 | P13: 381 | Q13: 187 | R13: 178 | S13: 1416 | U13: 5804 | V13: 0 | X13: -4388 | Y13: 0 | Z13: 0 | AA13: 38 | AB13: 36 | AD13: -4314 | AF13: 1114 | AI13: -5657 | AL13: 5714 | AN13: 54266 | AQ13: 11632 | AR13: 20.5 | AU13: 36328 | AV13: 104526 | AW13: 0 | AX13: 38473 | AY13: 1964 | AZ13: 3128 | BA13: 43565 | BB13: 26709 | BC13: 3 | BD13: 343 | BE13: 162 | BF13: 140 | BG13: 1480 | BI13: 6065 | BJ13: 3 | BL13: -4582 | BM13: 0 | BN13: 2 | BO13: 26 | BP13: 10 | BQ13: -4548 | BS13: -3389 | BY13: 4992 | CA13: 63193 | CF13: 21 | CT13: -198 | CU13: -9684 | CV13: 41 | CW13: 352 | CX13: 72
A14: 51 | B14: Eurajoki | C14: 9454 | D14: 18 | G14: 31437 | H14: 87039 | I14: 0 | J14: 28914 | K14: 2214 | L14: 19212 | M14: 50340 | N14: 11737 | O14: 1 | P14: 130 | Q14: 1084 | R14: 1777 | S14: 5653 | U14: 5919 | V14: 0 | X14: -266 | Y14: -52 | Z14: 0 | AA14: -7 | AB14: 1 | AD14: -324 | AF14: 75926 | AI14: -3839 | AL14: 26142 | AN14: 16111 | AQ14: 9402 | AR14: 18 | AU14: 32393 | AV14: 93103 | AW14: 0 | AX14: 28914 | AY14: 2214 | AZ14: 19212 | BA14: 50340 | BB14: 11120 | BC14: 0 | BD14: 49 | BE14: 2163 | BF14: 378 | BG14: 4206 | BI14: 5684 | BJ14: 0 | BL14: -1478 | BM14: -49 | BN14: 13 | BO14: -14 | BP14: 0 | BQ14: -1554 | BS14: 74437 | BY14: 24367 | CA14: 14768 | CF14: 18 | CT14: -66 | CU14: -4977 | CV14: 48 | CW14: 148 | CX14: 132
A15: 52 | B15: Evijärvi | C15: 2473 | D15: 21.5 | G15: 7570 | H15: 24216 | I15: 4 | J15: 6586 | K15: 639 | L15: 750 | M15: 7975 | N15: 8800 | O15: 49 | P15: 28 | Q15: 90 | R15: 360 | S15: -116 | U15: 940 | V15: 0 | X15: -1056 | Y15: -25 | Z15: -2 | AA15: -1 | AB15: -2 | AD15: -1086 | AF15: 2289 | AI15: -1366 | AL15: 7034 | AN15: 8210 | AQ15: 2425 | AR15: 21.5 | AU15: 7743 | AV15: 25616 | AW15: 1 | AX15: 6586 | AY15: 639 | AZ15: 750 | BA15: 7975 | BB15: 9272 | BC15: 57 | BD15: 33 | BE15: 722 | BF15: 98 | BG15: 94 | BI15: 1115 | BJ15: 0 | BL15: -1021 | BM15: -12 | BN15: 2 | BO15: 2 | BP15: 4 | BQ15: -1029 | BS15: 1214 | BY15: 7580 | CA15: 9505 | CF15: 21.5 | CT15: -13 | CU15: -2124 | CV15: 160 | CW15: 19 | CX15: 16
A16: 61 | B16: Forssa | C16: 17028 | D16: 20.5 | G16: 74139 | H16: 170963 | I16: 0 | J16: 51271 | K16: 3659 | L16: 5309 | M16: 60239 | N16: 44568 | O16: 100 | P16: 759 | Q16: 101 | R16: 11 | S16: 7414 | U16: 13797 | V16: 2000 | X16: -4383 | Y16: 0 | Z16: -38 | AA16: 51 | AB16: 108 | AD16: -4262 | AF16: 21404 | AI16: -4493 | AL16: 21948 | AN16: 68161 | AQ16: 16901 | AR16: 20.5 | AU16: 75167 | AV16: 172163 | AW16: 0 | AX16: 51271 | AY16: 3659 | AZ16: 5309 | BA16: 60239 | BB16: 45460 | BC16: 129 | BD16: 643 | BE16: 132 | BF16: 40 | BG16: 8303 | BI16: 9409 | BJ16: 0 | BL16: -1106 | BM16: 4 | BN16: 11 | BO16: 200 | BP16: -11 | BQ16: -924 | BS16: 22751 | BY16: 27447 | CA16: 68965 | CF16: 20.5 | CT16: -1554 | CU16: -8562 | CV16: 439 | CW16: 277 | CX16: -37
A17: 69 | B17: Haapajärvi | C17: 7147 | D17: 22 | G17: 42556 | H17: 89443 | I17: -77 | J17: 19358 | K17: 1560 | L17: 2243 | M17: 23059 | N17: 26347 | O17: 28 | P17: 368 | Q17: 960 | R17: 747 | S17: 2315 | U17: 4044 | V17: 310 | X17: -1419 | Y17: -6 | Z17: -88 | AA17: 25 | AB17: -74 | AD17: -1562 | AF17: 4957 | AI17: -1385 | AL17: 21483 | AN17: 42154 | AQ17: 7010 | AR17: 22.5 | AU17: 42245 | AV17: 90080 | AW17: 17 | AX17: 19358 | AY17: 1560 | AZ17: 2243 | BA17: 23161 | BB17: 25932 | BC17: 31 | BD17: 392 | BE17: 2058 | BF17: 233 | BG17: 3058 | BI17: 4278 | BJ17: 0 | BL17: -1220 | BM17: -1 | BN17: 206 | BO17: 28 | BP17: -192 | BQ17: -1591 | BS17: 3187 | BY17: 22673 | CA17: 51953 | CF17: 22.5 | CT17: -307 | CU17: -12295 | CV17: 188 | CW17: 384 | CX17: 97
A18: 71 | B18: Haapavesi | C18: 6854 | D18: 22 | G18: 27937 | H18: 72355 | I18: 2 | J18: 17246 | K18: 1309 | L18: 1664 | M18: 20098 | N18: 27154 | O18: 45 | P18: 373 | Q18: 564 | R18: 796 | S18: 2276 | U18: 3641 | V18: 302 | X18: -1063 | Y18: -7 | Z18: -85 | AA18: 45 | AB18: 22 | AD18: -1088 | AF18: -173 | AI18: -3213 | AL18: 12695 | AN18: 37208 | AQ18: 6758 | AR18: 22 | AU18: 33053 | AV18: 77883 | AW18: 2 | AX18: 17246 | AY18: 1309 | AZ18: 1664 | BA18: 20219 | BB18: 27134 | BC18: 29 | BD18: 374 | BE18: 693 | BF18: 243 | BG18: 3653 | BI18: 3661 | BJ18: 0 | BL18: -8 | BM18: -1 | BN18: 91 | BO18: -1 | BP18: 25 | BQ18: -76 | BS18: -249 | BY18: 13882 | CA18: 37478 | CF18: 22 | CT18: -30 | CU18: -4315 | CV18: 581 | CW18: 234 | CX18: 14
A19: 72 | B19: Hailuoto | C19: 974 | D19: 20.5 | G19: 5181 | H19: 12055 | I19: 0 | J19: 3032 | K19: 98 | L19: 339 | M19: 3470 | N19: 3725 | O19: 6 | P19: 22 | Q19: 9 | R19: 4 | S19: 310 | U19: 681 | V19: 88 | X19: -283 | Y19: -7 | Z19: 0 | AA19: -1 | AB19: -1 | AD19: -292 | AF19: 6799 | AI19: -1060 | AL19: 2476 | AN19: 2726 | AQ19: 959 | AR19: 20.5 | AU19: 5157 | AV19: 12141 | AW19: 1 | AX19: 3032 | AY19: 98 | AZ19: 339 | BA19: 3469 | BB19: 3713 | BC19: 6 | BD19: 19 | BE19: 4 | BF19: 4 | BG19: 308 | BI19: 692 | BJ19: 0 | BL19: -384 | BM19: -1 | BN19: 1 | BO19: 0 | BP19: 0 | BQ19: -386 | BS19: 6414 | BY19: 1115 | CA19: 3581 | CF19: 20.5 | CT19: -28 | CU19: -2480 | CV19: 0 | CW19: 12 | CX19: 0
A20: 74 | B20: Halsua | C20: 1165 | D20: 22 | G20: 9508 | H20: 16750 | I20: 52 | J20: 2623 | K20: 432 | L20: 356 | M20: 3411 | N20: 4963 | O20: 7 | P20: 137 | Q20: 23 | R20: 5 | S20: 1072 | U20: 833 | V20: -53 | X20: 186 | Y20: -35 | Z20: -8 | AA20: -2 | AB20: -3 | AD20: 138 | AF20: 2074 | AI20: -415 | AL20: 2201 | AN20: 14180 | AQ20: 1127 | AR20: 22 | AU20: 9293 | AV20: 17331 | AW20: 53 | AX20: 2623 | AY20: 432 | AZ20: 356 | BA20: 3411 | BB20: 4788 | BC20: 7 | BD20: 132 | BE20: 26 | BF20: 1 | BG20: 555 | BI20: 841 | BJ20: 0 | BL20: -286 | BM20: -3 | BN20: 6 | BO20: 0 | BP20: -2 | BQ20: -297 | BS20: 1778 | BY20: 2342 | CA20: 14435 | CF20: 23.5 | CT20: -113 | CU20: -791 | CV20: 14 | CW20: 78 | CX20: 40
A21: 75 | B21: Hamina | C21: 20286 | D21: 21 | G21: 91213 | H21: 198288 | I21: 2247 | J21: 69190 | K21: 5404 | L21: 6608 | M21: 80921 | N21: 44679 | O21: 60 | P21: 2030 | Q21: 1228 | R21: 42 | S21: 19988 | U21: 15882 | V21: 0 | X21: 4106 | Y21: 0 | Z21: 0 | AA21: -111 | AB21: 51 | AD21: 4046 | AF21: 23232 | AI21: -29089 | AL21: 24633 | AN21: 153512 | AQ21: 20111 | AR21: 21 | AU21: 118933 | AV21: 232851 | AW21: 859 | AX21: 69190 | AY21: 5404 | AZ21: 6608 | BA21: 81202 | BB21: 45626 | BC21: 56 | BD21: 1738 | BE21: 1266 | BF21: 39 | BG21: 17300 | BI21: 17437 | BJ21: 0 | BL21: -137 | BM21: 0 | BN21: 0 | BO21: -139 | BP21: 41 | BQ21: -235 | BS21: 22890 | BY21: 17730 | CA21: 158807 | CF21: 21 | CT21: 830 | CU21: -27402 | CV21: 281 | CW21: 2051 | CX21: -249
A22: 77 | B22: Hankasalmi | C22: 4939 | D22: 22 | G22: 15392 | H22: 48514 | I22: 0 | J22: 12406 | K22: 873 | L22: 1307 | M22: 14524 | N22: 20157 | O22: 83 | P22: 99 | Q22: 201 | R22: 80 | S22: 1664 | U22: 2466 | V22: 12 | X22: -790 | Y22: -52 | Z22: 0 | AA22: 18 | AB22: 0 | AD22: -824 | AF22: -1150 | AI22: -3332 | AL22: 5305 | AN22: 21951 | AQ22: 4875 | AR22: 22 | AU22: 14039 | AV22: 48849 | AW22: 0 | AX22: 12406 | AY22: 873 | AZ22: 1307 | BA22: 14586 | BB22: 19794 | BC22: 81 | BD22: 97 | BE22: 185 | BF22: 13 | BG22: 485 | BI22: 2389 | BJ22: 0 | BL22: -1904 | BM22: 0 | BN22: 0 | BO22: 12 | BP22: 0 | BQ22: -1892 | BS22: -2962 | BY22: 3019 | CA22: 25356 | CF22: 22 | CT22: 59 | CU22: -5205 | CV22: 3 | CW22: 30 | CX22: -57
A23: 78 | B23: Hanko | C23: 8379 | D23: 21.75 | G23: 56107 | H23: 94461 | I23: -5 | J23: 33003 | K23: 2734 | L23: 2943 | M23: 38575 | N23: 12372 | O23: 21 | P23: 835 | Q23: 183 | R23: 106 | S23: 11851 | U23: 5783 | V23: -17 | X23: 6051 | Y23: -19 | Z23: -767 | AA23: -84 | AB23: -5 | AD23: 5176 | AF23: 7550 | AI23: -10909 | AL23: 5619 | AN23: 71075 | AQ23: 8199 | AR23: 21.75 | AU23: 58826 | AV23: 98522 | AW23: 6 | AX23: 33003 | AY23: 2734 | AZ23: 2943 | BA23: 38680 | BB23: 12613 | BC23: 31 | BD23: 881 | BE23: 311 | BF23: 116 | BG23: 11521 | BI23: 6330 | BJ23: 0 | BL23: 5191 | BM23: 2 | BN23: 935 | BO23: -110 | BP23: -2 | BQ23: 4146 | BS23: 11659 | BY23: 5910 | CA23: 77806 | CF23: 21.75 | CT23: -10 | CU23: -15853 | CV23: 11 | CW23: 588 | CX23: 62
A24: 79 | B24: Harjavalta | C24: 7018 | D24: 20.75 | G24: 26472 | H24: 71917 | I24: -34 | J24: 24048 | K24: 7408 | L24: 1893 | M24: 33349 | N24: 12990 | O24: 4 | P24: 171 | Q24: 89 | R24: 19 | S24: 763 | U24: 3338 | V24: 0 | X24: -2575 | Y24: 0 | Z24: -8 | AA24: -16 | AB24: -6 | AD24: -2605 | AF24: 5657 | AI24: -3204 | AL24: 4410 | AN24: 24797 | AQ24: 6931 | AR24: 21.5 | AU24: 27182 | AV24: 73761 | AW24: -49 | AX24: 24048 | AY24: 7408 | AZ24: 1893 | BA24: 33349 | BB24: 12330 | BC24: 4 | BD24: 134 | BE24: 82 | BF24: 14 | BG24: -137 | BI24: 3400 | BJ24: 0 | BL24: -3537 | BM24: 0 | BN24: 14 | BO24: -23 | BP24: -12 | BQ24: -3586 | BS24: 2086 | BY24: 3993 | CA24: 28217 | CF24: 21.5 | CT24: -113 | CU24: -4655 | CV24: 21 | CW24: 779 | CX24: -3
A25: 81 | B25: Hartola | C25: 2780 | D25: 21.5 | G25: 19955 | H25: 37292 | I25: 0 | J25: 7218 | K25: 1260 | L25: 1318 | M25: 9796 | N25: 8888 | O25: 14 | P25: 253 | Q25: 45 | R25: 5 | S25: 1148 | U25: 1861 | V25: 124 | X25: -589 | Y25: 18 | Z25: 0 | AA25: 0 | AB25: -36 | AD25: -607 | AF25: 1209 | AI25: -1008 | AL25: 2336 | AN25: 28289 | AQ25: 2697 | AR25: 21.5 | AU25: 20524 | AV25: 37663 | AW25: 6 | AX25: 7218 | AY25: 1260 | AZ25: 1318 | BA25: 9796 | BB25: 8632 | BC25: 17 | BD25: 236 | BE25: 84 | BF25: 26 | BG25: 693 | BI25: 1929 | BJ25: -21 | BL25: -1257 | BM25: 9 | BN25: 0 | BO25: 0 | BP25: -38 | BQ25: -1286 | BS25: -52 | BY25: 2478 | CA25: 26820 | CF25: 21.5 | CT25: -67 | CU25: -1116 | CV25: 71 | CW25: 3858 | CX25: 7
A26: 82 | B26: Hattula | C26: 9475 | D26: 20.5 | G26: 24931 | H26: 71771 | I26: 0 | J26: 34059 | K26: 1307 | L26: 2308 | M26: 37627 | N26: 11858 | O26: 206 | P26: 227 | Q26: 96 | R26: 36 | S26: 2684 | U26: 3394 | V26: 53 | X26: -657 | Y26: 0 | Z26: 0 | AA26: 7 | AB26: 0 | AD26: -650 | AF26: 7749 | AI26: -4296 | AL26: 2784 | AN26: 45063 | AQ26: 9422 | AR26: 20.5 | AU26: 24788 | AV26: 72510 | AW26: 0 | AX26: 34059 | AY26: 1307 | AZ26: 2308 | BA26: 37674 | BB26: 12228 | BC26: 202 | BD26: 213 | BE26: 101 | BF26: 25 | BG26: 1414 | BI26: 3746 | BJ26: 84 | BL26: -2248 | BM26: 3 | BN26: 1 | BO26: 37 | BP26: -1 | BQ26: -2210 | BS26: 5538 | BY26: 2375 | CA26: 50441 | CF26: 20.75 | CT26: -384 | CU26: -6497 | CV26: 34 | CW26: 245 | CX26: 5
A27: 86 | B27: Hausjärvi | C27: 8417 | D27: 21.5 | G27: 23068 | H27: 65796 | I27: 3 | J27: 28947 | K27: 1665 | L27: 1078 | M27: 31690 | N27: 13375 | O27: 11 | P27: 260 | Q27: 48 | R27: 3 | S27: 2136 | U27: 3128 | V27: 0 | X27: -992 | Y27: 1 | Z27: -13 | AA27: 0 | AB27: -1 | AD27: -1005 | AF27: 5773 | AI27: -1999 | AL27: 2592 | AN27: 24166 | AQ27: 8260 | AR27: 21.5 | AU27: 23063 | AV27: 65993 | AW27: 4 | AX27: 28947 | AY27: 1665 | AZ27: 1078 | BA27: 31690 | BB27: 13454 | BC27: 6 | BD27: 230 | BE27: 34 | BF27: 3 | BG27: 2986 | BI27: 2929 | BJ27: 0 | BL27: 57 | BM27: 2 | BN27: 11 | BO27: 0 | BP27: -1 | BQ27: 47 | BS27: 5463 | BY27: 4845 | CA27: 26350 | CF27: 21.5 | CT27: -681 | CU27: -3206 | CV27: 0 | CW27: 475 | CX27: 17
A28: 111 | B28: Heinola | C28: 18889 | D28: 20.5 | G28: 105165 | H28: 202938 | I28: 0 | J28: 59686 | K28: 2988 | L28: 6243 | M28: 68917 | N28: 42965 | O28: 55 | P28: 794 | Q28: 2829 | R28: 2057 | S28: 14142 | U28: 8695 | V28: 614 | X28: 6061 | Y28: 100 | Z28: -3 | AA28: -31 | AB28: -1 | AD28: 6126 | AF28: 31535 | AI28: -13837 | AL28: 86632 | AN28: 83094 | AQ28: 18667 | AR28: 20.5 | AU28: 103929 | AV28: 207906 | AW28: -1 | AX28: 59686 | AY28: 2988 | AZ28: 6243 | BA28: 68917 | BB28: 43449 | BC28: 68 | BD28: 702 | BE28: 4709 | BF28: 450 | BG28: 11500 | BI28: 9163 | BJ28: -203 | BL28: 2134 | BM28: 81 | BN28: 1 | BO28: -15 | BP28: -1 | BQ28: 2198 | BS28: 31760 | BY28: 88148 | CA28: 96615 | CF28: 20.5 | CT28: -831 | CU28: -24311 | CV28: 8 | CW28: 698 | CX28: 20
A29: 90 | B29: Heinävesi | C29: 3329 | D29: 21 | G29: 16627 | H29: 40008 | I29: 0 | J29: 8128 | K29: 2051 | L29: 1336 | M29: 11515 | N29: 13532 | O29: 167 | P29: 36 | Q29: 320 | R29: 10 | S29: 2107 | U29: 1893 | V29: 79 | X29: 293 | Y29: -10 | Z29: 0 | AA29: 1 | AB29: 2 | AD29: 286 | AF29: 2041 | AI29: -1076 | AL29: 7419 | AN29: 21270 | AQ29: 3254 | AR29: 21 | AU29: 16696 | AV29: 40621 | AW29: 0 | AX29: 8128 | AY29: 2051 | AZ29: 1336 | BA29: 11515 | BB29: 13570 | BC29: 156 | BD29: 38 | BE29: 323 | BF29: 6 | BG29: 2034 | BI29: 2240 | BJ29: 0 | BL29: -206 | BM29: 47 | BN29: 0 | BO29: 1 | BP29: 0 | BQ29: -158 | BS29: 1821 | BY29: 6956 | CA29: 20052 | CF29: 21 | CT29: -59 | CU29: -1131 | CV29: 10 | CW29: 23 | CX29: -300
A30: 91 | B30: Helsinki | C30: 648042 | D30: 18 | G30: 3551633 | H30: 5797476 | I30: 14523 | J30: 2580483 | K30: 574753 | L30: 261346 | M30: 3416582 | N30: 197861 | O30: 20613 | P30: 61488 | Q30: 7960 | R30: -7798 | S30: 1358006 | U30: 780501 | V30: -18391 | X30: 559114 | Y30: 2050 | Z30: -15145 | AA30: -18959 | AB30: 1312 | AD30: 528372 | AF30: 5249606 | AI30: -1200831 | AL30: 1508920 | AN30: 4983823 | AQ30: 653835 | AR30: 18 | AU30: 3739674 | AV30: 6076785 | AW30: 16817 | AX30: 2580483 | AY30: 574753 | AZ30: 261346 | BA30: 3416582 | BB30: 233329 | BC30: 22908 | BD30: 60129 | BE30: 8984 | BF30: 1480 | BG30: 1377050 | BI30: 834836 | BJ30: -50 | BL30: 542164 | BM30: 1522 | BN30: 24319 | BO30: -15729 | BP30: 95 | BQ30: 503733 | BS30: 5724455 | BY30: 1495297 | CA30: 5171263 | CF30: 18 | CT30: -136999 | CU30: -2210554 | CV30: 16603 | CW30: 645146 | CX30: 4169
A31: 97 | B31: Hirvensalmi | C31: 2152 | D31: 20 | G31: 15911 | H31: 28468 | I31: 5 | J31: 5457 | K31: 882 | L31: 1289 | M31: 7616 | N31: 7115 | O31: 7 | P31: 102 | Q31: 237 | R31: 1 | S31: 2320 | U31: 1561 | V31: 6 | X31: 765 | Y31: 0 | Z31: 0 | AA31: -5 | AB31: -1 | AD31: 759 | AF31: 4299 | AI31: -1258 | AL31: 11312 | AN31: 8236 | AQ31: 2136 | AR31: 20 | AU31: 16178 | AV31: 29763 | AW31: 9 | AX31: 5457 | AY31: 882 | AZ31: 1289 | BA31: 7628 | BB31: 6866 | BC31: 4 | BD31: 77 | BE31: 342 | BF31: 1 | BG31: 1367 | BI31: 1203 | BJ31: 953 | BL31: 1117 | BM31: 0 | BN31: 0 | BO31: -5 | BP31: 0 | BQ31: 1112 | BS31: 5377 | BY31: 12637 | CA31: 8444 | CF31: 20 | CT31: -990 | CU31: -1892 | CV31: 37 | CW31: 1562 | CX31: -71
A32: 98 | B32: Hollola | C32: 23602 | D32: 21 | G32: 96626 | H32: 215890 | I32: 6 | J32: 81565 | K32: 2799 | L32: 5376 | M32: 89740 | N32: 41487 | O32: 27 | P32: 833 | Q32: 653 | R32: 40 | S32: 11776 | U32: 13660 | V32: 69 | X32: -1815 | Y32: -1 | Z32: -4 | AA32: -45 | AB32: -2 | AD32: -1867 | AF32: 21484 | AI32: -5174 | AL32: 19221 | AN32: 65624 | AQ32: 23410 | AR32: 21 | AU32: 98475 | AV32: 222567 | AW32: 40 | AX32: 81565 | AY32: 2799 | AZ32: 5376 | BA32: 89740 | BB32: 43056 | BC32: 11 | BD32: 829 | BE32: 1353 | BF32: 29 | BG32: 11818 | BI32: 12065 | BJ32: 585 | BL32: 338 | BM32: 0 | BN32: 12 | BO32: -43 | BP32: -28 | BQ32: 255 | BS32: 23013 | BY32: 15672 | CA32: 59118 | CF32: 21 | CT32: -235 | CU32: -13802 | CV32: 0 | CW32: 2510 | CX32: -260
A33: 99 | B33: Honkajoki | C33: 1666 | D33: 22 | G33: 13851 | H33: 24515 | I33: 0 | J33: 3950 | K33: 691 | L33: 633 | M33: 5268 | N33: 4772 | O33: 2 | P33: 38 | Q33: 15 | R33: 4 | S33: -649 | U33: 445 | V33: 0 | X33: -1094 | Y33: -7 | Z33: 0 | AA33: 0 | AB33: 0 | AD33: -1101 | AF33: -2552 | AI33: -444 | AL33: 1300 | AN33: 4831 | AQ33: 1620 | AR33: 22.5 | AU33: 14130 | AV33: 24199 | AW33: 0 | AX33: 3950 | AY33: 691 | AZ33: 633 | BA33: 5274 | BB33: 5195 | BC33: 1 | BD33: 35 | BE33: 12 | BF33: 3 | BG33: 947 | BI33: 442 | BJ33: 0 | BL33: 505 | BM33: -4 | BN33: 0 | BO33: 1 | BP33: 0 | BQ33: 502 | BS33: -2048 | BY33: 2009 | CA33: 6559 | CF33: 22.5 | CT33: -399 | CU33: -530 | CV33: 5 | CW33: 565 | CX33: 0
A34: 102 | B34: Huittinen | C34: 10091 | D34: 20.75 | G34: 24387 | H34: 86066 | I34: 128 | J34: 28530 | K34: 1921 | L34: 2214 | M34: 32665 | N34: 30066 | O34: 5 | P34: 229 | Q34: 358 | R34: 42 | S34: 1272 | U34: 4576 | V34: -5 | X34: -3309 | Y34: 0 | Z34: -17 | AA34: -22 | AB34: -6 | AD34: -3354 | AF34: 7513 | AI34: -5915 | AL34: 8806 | AN34: 30680 | AQ34: 10044 | AR34: 21 | AU34: 24003 | AV34: 85796 | AW34: -1 | AX34: 28530 | AY34: 1921 | AZ34: 2214 | BA34: 32665 | BB34: 29950 | BC34: 2 | BD34: 224 | BE34: 114 | BF34: 66 | BG34: 1604 | BI34: 5325 | BJ34: -2 | BL34: -3723 | BM34: 24 | BN34: 19 | BO34: 0 | BP34: -12 | BQ34: -3730 | BS34: 3817 | BY34: 6681 | CA34: 32748 | CF34: 21 | CT34: -158 | CU34: -4505 | CV34: 450 | CW34: 255 | CX34: 0
A35: 103 | B35: Humppila | C35: 2235 | D35: 22 | G35: 8938 | H35: 22208 | I35: 0 | J35: 6326 | K35: 379 | L35: 547 | M35: 7252 | N35: 6436 | O35: 4 | P35: 54 | Q35: 6 | R35: 10 | S35: 364 | U35: 822 | V35: 664 | X35: 206 | Y35: 0 | Z35: -29 | AA35: -8 | AB35: 0 | AD35: 169 | AF35: -444 | AI35: -2322 | AL35: 1058 | AN35: 8936 | AQ35: 2184 | AR35: 22 | AU35: 8521 | AV35: 21730 | AW35: 0 | AX35: 6326 | AY35: 379 | AZ35: 547 | BA35: 7252 | BB35: 6317 | BC35: 3 | BD35: 56 | BE35: 5 | BF35: 8 | BG35: 820 | BI35: 826 | BJ35: 2 | BL35: -4 | BM35: 1 | BN35: 21 | BO35: 5 | BP35: 0 | BQ35: -19 | BS35: -350 | BY35: 1383 | CA35: 8090 | CF35: 22 | CT35: 1 | CU35: -549 | CV35: 53 | CW35: 1009 | CX35: 12
A36: 105 | B36: Hyrynsalmi | C36: 2287 | D36: 21.75 | G36: 17513 | H36: 34689 | I36: 0 | J36: 5826 | K36: 701 | L36: 1190 | M36: 7657 | N36: 11343 | O36: 4 | P36: 44 | Q36: 15 | R36: 41 | S36: 1758 | U36: 1707 | V36: -1 | X36: 50 | Y36: 3 | Z36: 0 | AA36: -12 | AB36: 0 | AD36: 41 | AF36: -1613 | AI36: -2891 | AL36: 3470 | AN36: 11029 | AQ36: 2271 | AR36: 21.75 | AU36: 17700 | AV36: 34833 | AW36: 0 | AX36: 5826 | AY36: 701 | AZ36: 1190 | BA36: 7717 | BB36: 11004 | BC36: 2 | BD36: 59 | BE36: 33 | BF36: 43 | BG36: 1890 | BI36: 1259 | BJ36: 0 | BL36: 631 | BM36: 5 | BN36: 0 | BO36: -13 | BP36: -6 | BQ36: 617 | BS36: -1019 | BY36: 3504 | CA36: 11678 | CF36: 21.75 | CT36: -115 | CU36: -2632 | CV36: 34 | CW36: 25 | CX36: 15
A37: 106 | B37: Hyvinkää | C37: 46504 | D37: 19.75 | G37: 315013 | H37: 533029 | I37: -71 | J37: 174257 | K37: 13476 | L37: 11764 | M37: 198798 | N37: 51806 | O37: 40 | P37: 3017 | Q37: 497 | R37: 531 | S37: 29506 | U37: 31206 | V37: 0 | X37: -1700 | Y37: -19 | Z37: -216 | AA37: -65 | AB37: -62 | AD37: -2062 | AF37: 54416 | AI37: -48910 | AL37: 51751 | AN37: 259590 | AQ37: 46470 | AR37: 19.75 | AU37: 289935 | AV37: 522902 | AW37: 124 | AX37: 174257 | AY37: 13476 | AZ37: 11764 | BA37: 199497 | BB37: 52983 | BC37: 22 | BD37: 3315 | BE37: 482 | BF37: 570 | BG37: 15043 | BI37: 32570 | BJ37: 0 | BL37: -17527 | BM37: 0 | BN37: 407 | BO37: -238 | BP37: -643 | BQ37: -18815 | BS37: 35601 | BY37: 61133 | CA37: 301476 | CF37: 19.75 | CT37: -3597 | CU37: -60209 | CV37: 73 | CW37: 6446 | CX37: 75
A38: 108 | B38: Hämeenkyrö | C38: 10510 | D38: 22 | G38: 40010 | H38: 91156 | I38: 7 | J38: 33656 | K38: 1656 | L38: 2107 | M38: 37360 | N38: 21575 | O38: 39 | P38: 402 | Q38: 517 | R38: 150 | S38: 7800 | U38: 6895 | V38: 0 | X38: 905 | Y38: 1 | Z38: -67 | AA38: -43 | AB38: -87 | AD38: 709 | AF38: 5974 | AI38: -12535 | AL38: 11997 | AN38: 67089 | AQ38: 10404 | AR38: 22 | AU38: 37807 | AV38: 93335 | AW38: 30 | AX38: 33656 | AY38: 1656 | AZ38: 2107 | BA38: 37419 | BB38: 23976 | BC38: 25 | BD38: 404 | BE38: 367 | BF38: 197 | BG38: 6081 | BI38: 7207 | BJ38: 0 | BL38: -1126 | BM38: 0 | BN38: 58 | BO38: -53 | BP38: -78 | BQ38: -1315 | BS38: 4926 | BY38: 12439 | CA38: 67088 | CF38: 22 | CT38: -357 | CU38: -7111 | CV38: 975 | CW38: 101 | CX38: 20
A39: 109 | B39: Hämeenlinna | C39: 67532 | D39: 20.75 | G39: 229427 | H39: 577780 | I39: 590 | J39: 237794 | K39: 15868 | L39: 27569 | M39: 278719 | N39: 113720 | O39: 593 | P39: 9894 | Q39: 6308 | R39: 2852 | S39: 38831 | U39: 50268 | V39: 0 | X39: -11437 | Y39: 7469 | Z39: -106 | AA39: -77 | AB39: -162 | AD39: -4313 | AF39: 3715 | AI39: -42198 | AL39: 125550 | AN39: 432523 | AQ39: 67633 | AR39: 20.75 | AU39: 226363 | AV39: 588799 | AW39: 885 | AX39: 237794 | AY39: 15868 | AZ39: 27569 | BA39: 281231 | BB39: 113162 | BC39: 648 | BD39: 9622 | BE39: 7081 | BF39: 188 | BG39: 30593 | BI39: 45777 | BJ39: 0 | BL39: -15184 | BM39: -204 | BN39: 230 | BO39: 94 | BP39: -466 | BQ39: -15990 | BS39: -14769 | BY39: 133793 | CA39: 471602 | CF39: 21 | CT39: -6424 | CU39: -69189 | CV39: 661 | CW39: 8264 | CX39: 236
A40: 139 | B40: Ii | C40: 9862 | D40: 21.25 | G40: 60810 | H40: 118217 | I40: 3 | J40: 26489 | K40: 1373 | L40: 4228 | M40: 32091 | N40: 30145 | O40: 32 | P40: 663 | Q40: 251 | R40: 46 | S40: 4406 | U40: 6056 | V40: 486 | X40: -1164 | Y40: -52 | Z40: -6 | AA40: -53 | AB40: -7 | AD40: -1282 | AF40: 13144 | AI40: -10829 | AL40: 8091 | AN40: 57005 | AQ40: 9844 | AR40: 21.25 | AU40: 64618 | AV40: 124010 | AW40: 4 | AX40: 26489 | AY40: 1373 | AZ40: 4228 | BA40: 32090 | BB40: 30435 | BC40: 38 | BD40: 519 | BE40: 212 | BF40: 69 | BG40: 4595 | BI40: 6895 | BJ40: 0 | BL40: -2300 | BM40: -6 | BN40: 5 | BO40: -59 | BP40: -6 | BQ40: -2376 | BS40: 11308 | BY40: 7615 | CA40: 62913 | CF40: 21.25 | CT40: 456 | CU40: -11821 | CV40: 652 | CW40: 528 | CX40: 595
A41: 140 | B41: Iisalmi | C41: 21472 | D41: 20.5 | G41: 118486 | H41: 243970 | I41: 571 | J41: 63744 | K41: 5766 | L41: 5737 | M41: 74684 | N41: 67041 | O41: 112 | P41: 659 | Q41: 1591 | R41: 1165 | S41: 16691 | U41: 15532 | V41: 2327 | X41: 3486 | Y41: 400 | Z41: -11 | AA41: -202 | AB41: -9 | AD41: 3664 | AF41: 36042 | AI41: -17256 | AL41: 45498 | AN41: 109138 | AQ41: 21368 | AR41: 20.5 | AU41: 117005 | AV41: 246335 | AW41: 719 | AX41: 63744 | AY41: 5766 | AZ41: 5737 | BA41: 75247 | BB41: 66025 | BC41: 98 | BD41: 804 | BE41: 2023 | BF41: 450 | BG41: 14768 | BI41: 13421 | BJ41: 0 | BL41: 1347 | BM41: -21 | BN41: 15 | BO41: -180 | BP41: -33 | BQ41: 1098 | BS41: 36877 | BY41: 37480 | CA41: 101054 | CF41: 20.5 | CT41: -1463 | CU41: -16688 | CV41: 513 | CW41: 952 | CX41: -80
A42: 142 | B42: Iitti | C42: 6765 | D42: 20.75 | G42: 28376 | H42: 64468 | I42: 0 | J42: 19362 | K42: 1421 | L42: 2453 | M42: 23237 | N42: 14934 | O42: 7 | P42: 182 | Q42: 212 | R42: 36 | S42: 2080 | U42: 2918 | V42: 230 | X42: -608 | Y42: 0 | Z42: 0 | AA42: 0 | AB42: 0 | AD42: -608 | AF42: -290 | AI42: -1360 | AL42: 8042 | AN42: 20291 | AQ42: 6711 | AR42: 20.75 | AU42: 29147 | AV42: 68597 | AW42: 9 | AX42: 19362 | AY42: 1421 | AZ42: 2453 | BA42: 23236 | BB42: 15231 | BC42: 13 | BD42: 162 | BE42: 91 | BF42: 15 | BG42: 28 | BI42: 2732 | BJ42: 0 | BL42: -2704 | BM42: 0 | BN42: 0 | BO42: 0 | BP42: -1 | BQ42: -2705 | BS42: -2995 | BY42: 7360 | CA42: 19499 | CF42: 21.25 | CT42: 9 | CU42: -2529 | CV42: 202 | CW42: 290 | CX42: 3
A43: 143 | B43: Ikaalinen | C43: 7003 | D43: 21.25 | G43: 32840 | H43: 79419 | I43: 11 | J43: 20257 | K43: 1663 | L43: 2907 | M43: 24715 | N43: 25162 | O43: 6 | P43: 285 | Q43: 502 | R43: 99 | S43: 3433 | U43: 4265 | V43: 0 | X43: -832 | Y43: 842 | Z43: -82 | AA43: 1 | AB43: -58 | AD43: -129 | AF43: 2678 | AI43: -8145 | AL43: 7751 | AN43: 45751 | AQ43: 6942 | AR43: 21.75 | AU43: 34218 | AV43: 80609 | AW43: 32 | AX43: 20257 | AY43: 1663 | AZ43: 2907 | BA43: 24827 | BB43: 25285 | BC43: 8 | BD43: 370 | BE43: 265 | BF43: 112 | BG43: 3044 | BI43: 4118 | BJ43: 0 | BL43: -1074 | BM43: 0 | BN43: 58 | BO43: -26 | BP43: -103 | BQ43: -1261 | BS43: 1450 | BY43: 8430 | CA43: 47691 | CF43: 22 | CT43: -366 | CU43: -4633 | CV43: 22 | CW43: 197 | CX43: 58
A44: 145 | B44: Ilmajoki | C44: 12187 | D44: 20.75 | G44: 63377 | H44: 127869 | I44: 13 | J44: 35062 | K44: 1571 | L44: 2516 | M44: 39149 | N44: 28873 | O44: 23 | P44: 635 | Q44: 197 | R44: 143 | S44: 2985 | U44: 5050 | V44: 0 | X44: -2065 | Y44: 13 | Z44: -9 | AA44: -4 | AB44: -3 | AD44: -2068 | AF44: 7611 | AI44: -7560 | AL44: 7810 | AN44: 69346 | AQ44: 12269 | AR44: 20.75 | AU44: 64587 | AV44: 133705 | AW44: 5 | AX44: 35062 | AY44: 1571 | AZ44: 2516 | BA44: 39149 | BB44: 29288 | BC44: 3 | BD44: 574 | BE44: 302 | BF44: 56 | BG44: 754 | BI44: 5497 | BJ44: 0 | BL44: -4743 | BM44: 0 | BN44: 1 | BO44: 9 | BP44: 24 | BQ44: -4711 | BS44: 2282 | BY44: 7123 | CA44: 74986 | CF44: 21 | CT44: -559 | CU44: -7907 | CV44: 10 | CW44: 827 | CX44: -9
A45: 146 | B45: Ilomantsi | C45: 4973 | D45: 20.75 | G45: 33211 | H45: 70208 | I45: -1 | J45: 12588 | K45: 3121 | L45: 1351 | M45: 17060 | N45: 21278 | O45: 42 | P45: 217 | Q45: 341 | R45: 34 | S45: 1472 | U45: 3250 | V45: 0 | X45: -1778 | Y45: 0 | Z45: -2 | AA45: -12 | AB45: 43 | AD45: -1749 | AF45: 761 | AI45: -2552 | AL45: 5738 | AN45: 19475 | AQ45: 4857 | AR45: 21 | AU45: 33862 | AV45: 71178 | AW45: -6 | AX45: 12588 | AY45: 3121 | AZ45: 1351 | BA45: 17060 | BB45: 21552 | BC45: 62 | BD45: 235 | BE45: 360 | BF45: 17 | BG45: 1689 | BI45: 3214 | BJ45: 0 | BL45: -1525 | BM45: -3 | BN45: 41 | BO45: -18 | BP45: 31 | BQ45: -1556 | BS45: -775 | BY45: 4702 | CA45: 19230 | CF45: 21 | CT45: -218 | CU45: -3498 | CV45: 1 | CW45: 2669 | CX45: -102
A46: 153 | B46: Imatra | C46: 26932 | D46: 20 | G46: 71109 | H46: 221611 | I46: 149 | J46: 89509 | K46: 3740 | L46: 9785 | M46: 102066 | N46: 67070 | O46: 141 | P46: 2374 | Q46: 193 | R46: 0 | S46: 16743 | U46: 20807 | V46: 0 | X46: -4064 | Y46: 407 | Z46: -397 | AA46: -297 | AB46: 0 | AD46: -4351 | AF46: 49132 | AI46: -39956 | AL46: 20931 | AN46: 219774 | AQ46: 26508 | AR46: 20 | AU46: 150394 | AV46: 298368 | AW46: 141 | AX46: 89509 | AY46: 3740 | AZ46: 9785 | BA46: 103034 | BB46: 67692 | BC46: 129 | BD46: 2299 | BE46: 273 | BF46: 210 | BG46: 23727 | BI46: 25761 | BJ46: 1683 | BL46: -351 | BM46: 1350 | BN46: 493 | BO46: 1 | BP46: 24 | BQ46: 531 | BS46: 49021 | BY46: 20019 | CA46: 238414 | CF46: 20 | CT46: -1436 | CU46: -45927 | CV46: 610 | CW46: 2738 | CX46: 1137
A47: 148 | B47: Inari | C47: 6930 | D47: 19 | G47: 39087 | H47: 79381 | I47: 4 | J47: 21115 | K47: 2487 | L47: 4390 | M47: 27992 | N47: 23428 | O47: 69 | P47: 736 | Q47: 116 | R47: 181 | S47: 10398 | U47: 5562 | V47: -4 | X47: 4832 | Y47: 44 | Z47: -320 | AA47: -360 | AB47: -207 | AD47: 3989 | AF47: 26271 | AI47: -8501 | AL47: 15031 | AN47: 41708 | AQ47: 6907 | AR47: 19 | AU47: 38486 | AV47: 80608 | AW47: 1 | AX47: 21115 | AY47: 2487 | AZ47: 4390 | BA47: 27992 | BB47: 23367 | BC47: 122 | BD47: 568 | BE47: 122 | BF47: 14 | BG47: 8561 | BI47: 5760 | BJ47: 0 | BL47: 2801 | BM47: 8 | BN47: 529 | BO47: -49 | BP47: -225 | BQ47: 2006 | BS47: 27685 | BY47: 10845 | CA47: 45618 | CF47: 19 | CT47: -696 | CU47: -18278 | CV47: 99 | CW47: 1113 | CX47: -1152
A48: 149 | B48: Inkoo | C48: 5403 | D48: 20.75 | G48: 16424 | H48: 46096 | I48: -3 | J48: 21994 | K48: 1042 | L48: 2939 | M48: 25976 | N48: 7112 | O48: 0 | P48: 127 | Q48: 62 | R48: 51 | S48: 3297 | U48: 2533 | V48: 0 | X48: 764 | Y48: -2 | Z48: 0 | AA48: 0 | AB48: 0 | AD48: 762 | AF48: 8429 | AI48: -2644 | AL48: 4670 | AN48: 18304 | AQ48: 5386 | AR48: 20.75 | AU48: 15921 | AV48: 47765 | AW48: 3 | AX48: 21994 | AY48: 1042 | AZ48: 2939 | BA48: 25975 | BB48: 7040 | BC48: 1 | BD48: 117 | BE48: 66 | BF48: 55 | BG48: 1047 | BI48: 2095 | BJ48: 0 | BL48: -1048 | BM48: 0 | BN48: 0 | BO48: 0 | BP48: 0 | BQ48: -1048 | BS48: 7381 | BY48: 2264 | CA48: 17991 | CF48: 20.75 | CT48: -114 | CU48: -2964 | CV48: 14 | CW48: 89 | CX48: -141
A49: 151 | B49: Isojoki | C49: 1976 | D49: 22 | G49: 16393 | H49: 30729 | I49: 129 | J49: 5099 | K49: 619 | L49: 454 | M49: 6172 | N49: 8645 | O49: 0 | P49: 49 | Q49: 28 | R49: 22 | S49: 567 | U49: 892 | V49: 0 | X49: -325 | Y49: 2 | Z49: 0 | AA49: -1 | AB49: 0 | AD49: -324 | AF49: 1414 | AI49: -1205 | AL49: 3226 | AN49: 3847 | AQ49: 1951 | AR49: 22 | AU49: 16586 | AV49: 30841 | AW49: 180 | AX49: 5099 | AY49: 619 | AZ49: 454 | BA49: 6172 | BB49: 8567 | BC49: 0 | BD49: 51 | BE49: 31 | BF49: 21 | BG49: 550 | BI49: 853 | BJ49: -21 | BL49: -324 | BM49: 0 | BN49: 0 | BO49: 2 | BP49: 3 | BQ49: -319 | BS49: 930 | BY49: 2470 | CA49: 4258 | CF49: 22 | CT49: -163 | CU49: -1113 | CV49: 28 | CW49: 52 | CX49: 22
A50: 152 | B50: Isokyrö | C50: 4601 | D50: 21.5 | G50: 13048 | H50: 37479 | I50: 5 | J50: 13175 | K50: 574 | L50: 895 | M50: 14646 | N50: 13385 | O50: 8 | P50: 152 | Q50: 73 | R50: 32 | S50: 3502 | U50: 1963 | V50: 0 | X50: 1539 | Y50: 57 | Z50: 0 | AA50: 0 | AB50: -1 | AD50: 1595 | AF50: 13710 | AI50: -2867 | AL50: 5298 | AN50: 9520 | AQ50: 4522 | AR50: 21.5 | AU50: 13035 | AV50: 39748 | AW50: 1 | AX50: 13175 | AY50: 574 | AZ50: 895 | BA50: 14644 | BB50: 13636 | BC50: 5 | BD50: 142 | BE50: 111 | BF50: 18 | BG50: 2094 | BI50: 2213 | BJ50: 0 | BL50: -119 | BM50: 6 | BN50: 0 | BO50: 0 | BP50: 7 | BQ50: -106 | BS50: 13465 | BY50: 4352 | CA50: 12005 | CF50: 21.5 | CT50: -12 | CU50: -7010 | CV50: 616 | CW50: 121 | CX50: -68
A51: 165 | B51: Janakkala | C51: 16447 | D51: 21 | G51: 44691 | H51: 127061 | I51: 0 | J51: 57504 | K51: 2130 | L51: 3658 | M51: 63114 | N51: 26747 | O51: 14 | P51: 626 | Q51: 186 | R51: 122 | S51: 6943 | U51: 7938 | V51: 80 | X51: -915 | Y51: 1 | Z51: -30 | AA51: 94 | AB51: 0 | AD51: -850 | AF51: 6209 | AI51: -7421 | AL51: 14138 | AN51: 69815 | AQ51: 16413 | AR51: 21 | AU51: 45775 | AV51: 131246 | AW51: 0 | AX51: 57504 | AY51: 2130 | AZ51: 3658 | BA51: 63292 | BB51: 27857 | BC51: 13 | BD51: 591 | BE51: 187 | BF51: 89 | BG51: 4528 | BI51: 9143 | BJ51: 128 | BL51: -4487 | BM51: 5 | BN51: 28 | BO51: 99 | BP51: -2 | BQ51: -4413 | BS51: 1744 | BY51: 9839 | CA51: 73332 | CF51: 21 | CT51: -2129 | CU51: -10648 | CV51: 306 | CW51: 557 | CX51: 8
A52: 167 | B52: Joensuu | C52: 76551 | D52: 20.5 | G52: 379627 | H52: 750242 | I52: -87 | J52: 218368 | K52: 21169 | L52: 21099 | M52: 260636 | N52: 163791 | O52: 414 | P52: 4519 | Q52: 3454 | R52: 1411 | S52: 51663 | U52: 61289 | V52: 0 | X52: -9626 | Y52: -513 | Z52: -620 | AA52: -733 | AB52: -265 | AD52: -11757 | AF52: 61624 | AI52: -90055 | AL52: 148073 | AN52: 507042 | AQ52: 76850 | AR52: 20.5 | AU52: 359679 | AV52: 768676 | AW52: 78 | AX52: 218368 | AY52: 21169 | AZ52: 21099 | BA52: 260636 | BB52: 194788 | BC52: 447 | BD52: 4596 | BE52: 4848 | BF52: 420 | BG52: 54713 | BI52: 66092 | BJ52: 0 | BL52: -11379 | BM52: 244 | BN52: 326 | BO52: 748 | BP52: 105 | BQ52: -10608 | BS52: 50015 | BY52: 146523 | CA52: 551390 | CF52: 20.5 | CT52: -3708 | CU52: -99924 | CV52: 1461 | CW52: 6828 | CX52: 358
A53: 169 | B53: Jokioinen | C53: 5195 | D53: 21.25 | G53: 27694 | H53: 55287 | I53: -14 | J53: 16786 | K53: 1021 | L53: 986 | M53: 18793 | N53: 11120 | O53: 1 | P53: 180 | Q53: 78 | R53: 48 | S53: 2157 | U53: 2974 | V53: 7 | X53: -810 | Y53: 0 | Z53: -1 | AA53: 0 | AB53: -1 | AD53: -812 | AF53: 6092 | AI53: -594 | AL53: 944 | AN53: 18755 | AQ53: 5133 | AR53: 21.25 | AU53: 25120 | AV53: 52729 | AW53: -3 | AX53: 16786 | AY53: 1021 | AZ53: 986 | BA53: 18793 | BB53: 11074 | BC53: 0 | BD53: 182 | BE53: 88 | BF53: 50 | BG53: 2412 | BI53: 2395 | BJ53: -33 | BL53: -16 | BM53: 1 | BN53: 1 | BO53: 0 | BP53: 1 | BQ53: -15 | BS53: 6528 | BY53: 1292 | CA53: 19217 | CF53: 21.25 | CT53: -144 | CU53: -1517 | CV53: 53 | CW53: 46 | CX53: 417
A54: 171 | B54: Joroinen | C54: 4812 | D54: 20.75 | G54: 25026 | H54: 53568 | I54: 6 | J54: 13705 | K54: 1385 | L54: 1125 | M54: 16171 | N54: 12205 | O54: 162 | P54: 214 | Q54: 78 | R54: 200 | S54: -334 | U54: 1468 | V54: 0 | X54: -1802 | Y54: -4 | Z54: 0 | AA54: 0 | AB54: -2 | AD54: -1808 | AF54: -1304 | AI54: -7320 | AL54: 14346 | AN54: 31179 | AQ54: 4767 | AR54: 21.25 | AU54: 25692 | AV54: 53934 | AW54: 19 | AX54: 13705 | AY54: 1385 | AZ54: 1125 | BA54: 16215 | BB54: 12353 | BC54: 146 | BD54: 239 | BE54: 261 | BF54: 48 | BG54: 1190 | BI54: 1611 | BJ54: 0 | BL54: -421 | BM54: 5 | BN54: 0 | BO54: 0 | BP54: 0 | BQ54: -416 | BS54: -1766 | BY54: 12126 | CA54: 34394 | CF54: 21.25 | CT54: 6 | CU54: -7177 | CV54: 123 | CW54: 20 | CX54: 241
A55: 172 | B55: Joutsa | C55: 4467 | D55: 21 | G55: 13567 | H55: 42727 | I55: -21 | J55: 11668 | K55: 1476 | L55: 1754 | M55: 14830 | N55: 16221 | O55: 4 | P55: 161 | Q55: 153 | R55: 28 | S55: 1838 | U55: 2251 | V55: 100 | X55: -313 | Y55: 0 | Z55: 2 | AA55: 3 | AB55: 20 | AD55: -288 | AF55: 2276 | AI55: -3669 | AL55: 3540 | AN55: 23137 | AQ55: 4377 | AR55: 21 | AU55: 13110 | AV55: 43624 | AW55: 109 | AX55: 11668 | AY55: 1476 | AZ55: 1754 | BA55: 14898 | BB55: 16212 | BC55: 4 | BD55: 150 | BE55: 198 | BF55: 19 | BG55: 1342 | BI55: 2166 | BJ55: 0 | BL55: -824 | BM55: 0 | BN55: 3 | BO55: 4 | BP55: 40 | BQ55: -783 | BS55: 1506 | BY55: 2864 | CA55: 26163 | CF55: 21 | CT55: -73 | CU55: -4980 | CV55: 55 | CW55: 296 | CX55: 14
A56: 176 | B56: Juuka | C56: 4709 | D56: 20.75 | G56: 35715 | H56: 66898 | I56: 0 | J56: 10804 | K56: 1646 | L56: 1204 | M56: 13654 | N56: 20074 | O56: 96 | P56: 87 | Q56: 372 | R56: 1 | S56: 2925 | U56: 2784 | V56: 0 | X56: 141 | Y56: -247 | Z56: -39 | AA56: -4 | AB56: 0 | AD56: -149 | AF56: 11272 | AI56: -2516 | AL56: 10533 | AN56: 11039 | AQ56: 4606 | AR56: 20.75 | AU56: 36206 | AV56: 68085 | AW56: 0 | AX56: 10804 | AY56: 1646 | AZ56: 1204 | BA56: 13654 | BB56: 20319 | BC56: 59 | BD56: 82 | BE56: 483 | BF56: 2 | BG56: 2776 | BI56: 2755 | BJ56: -165 | BL56: -144 | BM56: 251 | BN56: 21 | BO56: -3 | BP56: -3 | BQ56: 80 | BS56: 10927 | BY56: 8981 | CA56: 10866 | CF56: 20.75 | CT56: -474 | CU56: -3466 | CV56: 2 | CW56: 250 | CX56: -16
A57: 177 | B57: Juupajoki | C57: 1884 | D57: 21 | G57: 7480 | H57: 17860 | I57: 24 | J57: 5424 | K57: 1003 | L57: 484 | M57: 6911 | N57: 4239 | O57: 25 | P57: 63 | Q57: 10 | R57: 9 | S57: 757 | U57: 831 | V57: 0 | X57: -74 | Y57: -1 | Z57: 0 | AA57: 0 | AB57: 71 | AD57: -4 | AF57: 2704 | AI57: -1099 | AL57: 1191 | AN57: 6405 | AQ57: 1844 | AR57: 21 | AU57: 7775 | AV57: 18029 | AW57: 31 | AX57: 5424 | AY57: 1003 | AZ57: 484 | BA57: 6911 | BB57: 4413 | BC57: 7 | BD57: 67 | BE57: 75 | BF57: 76 | BG57: 1288 | BI57: 825 | BJ57: 0 | BL57: 463 | BM57: 10 | BN57: 9 | BO57: -1 | BP57: 72 | BQ57: 535 | BS57: 3124 | BY57: 1517 | CA57: 6763 | CF57: 21 | CT57: -101 | CU57: -1320 | CV57: 1 | CW57: 10 | CX57: 3
A58: 178 | B58: Juva | C58: 6225 | D58: 20.75 | G58: 31710 | H58: 70030 | I58: 153 | J58: 15564 | K58: 2405 | L58: 1513 | M58: 19425 | N58: 21548 | O58: 5 | P58: 197 | Q58: 518 | R58: 34 | S58: 3098 | U58: 2731 | V58: -115 | X58: 252 | Y58: -18 | Z58: 0 | AA58: 0 | AB58: -1 | AD58: 233 | AF58: 3993 | AI58: -6126 | AL58: 1513 | AN58: 31903 | AQ58: 6116 | AR58: 20.75 | AU58: 32631 | AV58: 72191 | AW58: 67 | AX58: 15564 | AY58: 2405 | AZ58: 1513 | BA58: 19482 | BB58: 21196 | BC58: 5 | BD58: 240 | BE58: 698 | BF58: 11 | BG58: 1910 | BI58: 2896 | BJ58: 11 | BL58: -975 | BM58: 4 | BN58: 0 | BO58: 0 | BP58: 0 | BQ58: -971 | BS58: 2863 | BY58: 1843 | CA58: 34413 | CF58: 20.75 | CT58: 801 | CU58: -5870 | CV58: 264 | CW58: 497 | CX58: 1044
A59: 179 | B59: Jyväskylä | C59: 141305 | D59: 20 | G59: 570959 | H59: 1203046 | I59: 935 | J59: 438821 | K59: 25942 | L59: 48998 | M59: 510190 | N59: 266167 | O59: 719 | P59: 16011 | Q59: 1212 | R59: 1508 | S59: 129617 | U59: 114136 | V59: 0 | X59: 15481 | Y59: -498 | Z59: -2413 | AA59: -2174 | AB59: -637 | AD59: 9759 | AF59: 33107 | AI59: -210152 | AL59: 37036 | AN59: 1099603 | AQ59: 142400 | AR59: 20 | AU59: 525287 | AV59: 1202071 | AW59: -659 | AX59: 438821 | AY59: 25942 | AZ59: 48998 | BA59: 513761 | BB59: 265546 | BC59: 736 | BD59: 15370 | BE59: 734 | BF59: 1366 | BG59: 91059 | BI59: 115464 | BJ59: 0 | BL59: -24405 | BM59: 80 | BN59: 3207 | BO59: -904 | BP59: -424 | BQ59: -28860 | BS59: 4247 | BY59: 47030 | CA59: 1215954 | CF59: 20 | CT59: -9979 | CU59: -223676 | CV59: 1353 | CW59: 17447 | CX59: 1054
A60: 181 | B60: Jämijärvi | C60: 1809 | D60: 22.5 | G60: 9347 | H60: 20040 | I60: 0 | J60: 4775 | K60: 274 | L60: 721 | M60: 5760 | N60: 5781 | O60: 0 | P60: 47 | Q60: 43 | R60: 7 | S60: 837 | U60: 553 | V60: 407 | X60: 691 | Y60: 0 | Z60: 0 | AA60: 0 | AB60: 0 | AD60: 691 | AF60: -2092 | AI60: -47 | AL60: 662 | AN60: 6120 | AQ60: 1739 | AR60: 22.5 | AU60: 9675 | AV60: 20707 | AW60: 0 | AX60: 4775 | AY60: 274 | AZ60: 721 | BA60: 5770 | BB60: 5686 | BC60: 0 | BD60: 41 | BE60: 8 | BF60: 15 | BG60: 766 | BI60: 565 | BJ60: 0 | BL60: 201 | BM60: -14 | BN60: 0 | BO60: 0 | BP60: 0 | BQ60: 187 | BS60: -1813 | BY60: 1677 | CA60: 6612 | CF60: 22.5 | CT60: -265 | CU60: -395 | CV60: 40 | CW60: 581 | CX60: -14
A61: 182 | B61: Jämsä | C61: 20607 | D61: 21 | G61: 66909 | H61: 196655 | I61: -165 | J61: 69472 | K61: 8479 | L61: 6087 | M61: 84038 | N61: 57135 | O61: 18 | P61: 740 | Q61: 602 | R61: 154 | S61: 10988 | U61: 13515 | V61: 2360 | X61: -167 | Y61: -123 | Z61: -29 | AA61: 0 | AB61: -25 | AD61: -344 | AF61: 11343 | AI61: -4998 | AL61: 18621 | AN61: 69605 | AQ61: 20182 | AR61: 21 | AU61: 67520 | AV61: 198223 | AW61: 189 | AX61: 69472 | AY61: 8479 | AZ61: 6087 | BA61: 84038 | BB61: 57017 | BC61: 19 | BD61: 666 | BE61: 239 | BF61: 153 | BG61: 10805 | BI61: 13054 | BJ61: 0 | BL61: -2249 | BM61: 1 | BN61: 21 | BO61: -3 | BP61: -37 | BQ61: -2309 | BS61: 8867 | BY61: 12971 | CA61: 64271 | CF61: 21 | CT61: -390 | CU61: -11848 | CV61: 148 | CW61: 520 | CX61: 83
A62: 186 | B62: Järvenpää | C62: 43410 | D62: 19.75 | G62: 260125 | H62: 457858 | I62: 258 | J62: 168830 | K62: 5198 | L62: 13788 | M62: 186872 | N62: 39476 | O62: 347 | P62: 1419 | Q62: 393 | R62: 1326 | S62: 26868 | U62: 34919 | V62: 0 | X62: -8051 | Y62: -14 | Z62: -215 | AA62: -108 | AB62: 27 | AD62: -8361 | AF62: 29844 | AI62: -67194 | AL62: 12273 | AN62: 340857 | AQ62: 43711 | AR62: 19.75 | AU62: 234340 | AV62: 460857 | AW62: -1224 | AX62: 168830 | AY62: 5198 | AZ62: 13788 | BA62: 187816 | BB62: 41563 | BC62: 180 | BD62: 2575 | BE62: 422 | BF62: 1277 | BG62: 3261 | BI62: 33838 | BJ62: 0 | BL62: -30577 | BM62: 0 | BN62: 167 | BO62: -286 | BP62: 15 | BQ62: -31015 | BS62: -6112 | BY62: 13011 | CA62: 399104 | CF62: 19.75 | CT62: -3683 | CU62: -60894 | CV62: 784 | CW62: 6843 | CX62: 0
A63: 202 | B63: Kaarina | C63: 33458 | D63: 19.75 | G63: 83798 | H63: 246041 | I63: 6 | J63: 127265 | K63: 4896 | L63: 7185 | M63: 139346 | N63: 32724 | O63: 466 | P63: 1851 | Q63: 901 | R63: 40 | S63: 9309 | U63: 13062 | V63: 0 | X63: -3753 | Y63: 0 | Z63: -1 | AA63: 0 | AB63: 3 | AD63: -3751 | AF63: 25166 | AI63: -19783 | AL63: 17148 | AN63: 121676 | AQ63: 33937 | AR63: 19.75 | AU63: 92043 | AV63: 258564 | AW63: 43 | AX63: 127265 | AY63: 4896 | AZ63: 7185 | BA63: 139346 | BB63: 28275 | BC63: 151 | BD63: 2887 | BE63: 1796 | BF63: 26 | BG63: 6121 | BI63: 16111 | BJ63: 0 | BL63: -9990 | BM63: 0 | BN63: 0 | BO63: -4 | BP63: 12 | BQ63: -9982 | BS63: 15092 | BY63: 23669 | CA63: 133537 | CF63: 19.75 | CT63: -4041 | CU63: -17570 | CV63: 27 | CW63: 4954 | CX63: 0
A64: 204 | B64: Kaavi | C64: 2990 | D64: 21.75 | G64: 14264 | H64: 35986 | I64: 89 | J64: 7148 | K64: 967 | L64: 1104 | M64: 9191 | N64: 13487 | O64: 4 | P64: 290 | Q64: 214 | R64: 25 | S64: 948 | U64: 1508 | V64: -50 | X64: -610 | Y64: 4 | Z64: -1 | AA64: -1 | AB64: -2 | AD64: -610 | AF64: 35 | AI64: 2 | AL64: 2286 | AN64: 16584 | AQ64: 2893 | AR64: 22 | AU64: 14061 | AV64: 35004 | AW64: 46 | AX64: 7148 | AY64: 967 | AZ64: 1104 | BA64: 9219 | BB64: 13121 | BC64: 8 | BD64: 237 | BE64: 191 | BF64: 4 | BG64: 1597 | BI64: 1746 | BJ64: 0 | BL64: -149 | BM64: 3 | BN64: 5 | BO64: -3 | BP64: -14 | BQ64: -168 | BS64: -104 | BY64: 2205 | CA64: 16683 | CF64: 22 | CT64: -271 | CU64: -1724 | CV64: 19 | CW64: 735 | CX64: 0
A65: 205 | B65: Kajaani | C65: 36973 | D65: 21 | G65: 298911 | H65: 514215 | I65: 791 | J65: 120067 | K65: 5397 | L65: 10142 | M65: 134861 | N65: 116209 | O65: 191 | P65: 2365 | Q65: 427 | R65: 6111 | S65: 28699 | U65: 37698 | V65: 0 | X65: -8999 | Y65: -286 | Z65: -780 | AA65: -493 | AB65: -225 | AD65: -10783 | AF65: 72348 | AI65: -65584 | AL65: 26025 | AN65: 383759 | AQ65: 36709 | AR65: 21 | AU65: 312784 | AV65: 537316 | AW65: 398 | AX65: 120067 | AY65: 5397 | AZ65: 10142 | BA65: 135606 | BB65: 116706 | BC65: 175 | BD65: 2544 | BE65: 462 | BF65: 15394 | BG65: 12917 | BI65: 45208 | BJ65: 115597 | BL65: 83306 | BM65: 125 | BN65: 672 | BO65: -1290 | BP65: 2428 | BQ65: 83897 | BS65: 131446 | BY65: 254791 | CA65: 599164 | CF65: 21 | CT65: -110900 | CU65: -84951 | CV65: 850 | CW65: 137628 | CX65: 248
A66: 208 | B66: Kalajoki | C66: 12387 | D66: 20 | G66: 39888 | H66: 104096 | I66: 136 | J66: 31797 | K66: 2129 | L66: 5079 | M66: 38850 | N66: 35082 | O66: 101 | P66: 473 | Q66: 859 | R66: 385 | S66: 9962 | U66: 9926 | V66: 146 | X66: 182 | Y66: 10 | Z66: -54 | AA66: 59 | AB66: -89 | AD66: 108 | AF66: 22174 | AI66: -17047 | AL66: 27680 | AN66: 68437 | AQ66: 12373 | AR66: 21 | AU66: 40244 | AV66: 109189 | AW66: 113 | AX66: 31797 | AY66: 2129 | AZ66: 5079 | BA66: 39005 | BB66: 35914 | BC66: 84 | BD66: 369 | BE66: 732 | BF66: 87 | BG66: 8854 | BI66: 8802 | BJ66: 0 | BL66: 52 | BM66: 17 | BN66: 27 | BO66: 68 | BP66: -105 | BQ66: 5 | BS66: 22405 | BY66: 27076 | CA66: 70809 | CF66: 21 | CT66: -341 | CU66: -15413 | CV66: 1420 | CW66: 1037 | CX66: 151
A67: 211 | B67: Kangasala | C67: 31676 | D67: 21 | G67: 116161 | H67: 265051 | I67: 29 | J67: 114129 | K67: 4094 | L67: 7148 | M67: 125174 | N67: 37493 | O67: 98 | P67: 1233 | Q67: 3194 | R67: 2714 | S67: 13151 | U67: 17607 | V67: 0 | X67: -4456 | Y67: 1 | Z67: -375 | AA67: -79 | AB67: -211 | AD67: -5120 | AF67: 67806 | AI67: -29567 | AL67: 43833 | AN67: 101383 | AQ67: 31868 | AR67: 21 | AU67: 119381 | AV67: 269358 | AW67: 138 | AX67: 114129 | AY67: 4094 | AZ67: 7148 | BA67: 125371 | BB67: 38622 | BC67: 100 | BD67: 1240 | BE67: 2436 | BF67: 290 | BG67: 21230 | BI67: 18767 | BJ67: 0 | BL67: 2463 | BM67: 0 | BN67: 324 | BO67: -121 | BP67: -141 | BQ67: 1877 | BS67: 69100 | BY67: 61409 | CA67: 137589 | CF67: 21 | CT67: -2418 | CU67: -43978 | CV67: 0 | CW67: 3840 | CX67: 74
A68: 213 | B68: Kangasniemi | C68: 5452 | D68: 20.75 | G68: 25024 | H68: 59547 | I68: 5 | J68: 13689 | K68: 2568 | L68: 1807 | M68: 18063 | N68: 18116 | O68: 23 | P68: 193 | Q68: 186 | R68: 2 | S68: 1675 | U68: 2585 | V68: 15 | X68: -895 | Y68: 8 | Z68: 0 | AA68: 0 | AB68: 9 | AD68: -878 | AF68: -907 | AI68: -3501 | AL68: 1764 | AN68: 30405 | AQ68: 5356 | AR68: 20.75 | AU68: 26002 | AV68: 61757 | AW68: 17 | AX68: 13689 | AY68: 2568 | AZ68: 1807 | BA68: 18064 | BB68: 18372 | BC68: 25 | BD68: 216 | BE68: 250 | BF68: 5 | BG68: 1202 | BI68: 2691 | BJ68: 0 | BL68: -1489 | BM68: 0 | BN68: 0 | BO68: 0 | BP68: 19 | BQ68: -1470 | BS68: -2417 | BY68: 3101 | CA68: 30813 | CF68: 21.5 | CT68: 33 | CU68: -3149 | CV68: 30 | CW68: 405 | CX68: 116
A69: 214 | B69: Kankaanpää | C69: 11471 | D69: 21.5 | G69: 67714 | H69: 129320 | I69: 20 | J69: 33790 | K69: 2546 | L69: 3442 | M69: 39779 | N69: 28613 | O69: 18 | P69: 446 | Q69: 631 | R69: 25 | S69: 6984 | U69: 9583 | V69: 0 | X69: -2599 | Y69: -1 | Z69: 0 | AA69: -200 | AB69: -632 | AD69: -3432 | AF69: 6400 | AI69: -11055 | AL69: 5387 | AN69: 73033 | AQ69: 11286 | AR69: 21.5 | AU69: 66892 | AV69: 129802 | AW69: -57 | AX69: 33790 | AY69: 2546 | AZ69: 3442 | BA69: 39778 | BB69: 28733 | BC69: 29 | BD69: 403 | BE69: 526 | BF69: 26 | BG69: 5318 | BI69: 8985 | BJ69: 0 | BL69: -3667 | BM69: 2 | BN69: 17 | BO69: -82 | BP69: -541 | BQ69: -4305 | BS69: 1132 | BY69: 5916 | CA69: 78249 | CF69: 21.75 | CT69: 319 | CU69: -11428 | CV69: 173 | CW69: 74 | CX69: 1
A70: 216 | B70: Kannonkoski | C70: 1353 | D70: 21 | G70: 15267 | H70: 24123 | I70: 0 | J70: 3034 | K70: 574 | L70: 441 | M70: 4049 | N70: 5907 | O70: 14 | P70: 19 | Q70: 145 | R70: 53 | S70: 1187 | U70: 1292 | V70: 18 | X70: -87 | Y70: 1 | Z70: 0 | AA70: 0 | AB70: 8 | AD70: -78 | AF70: 11798 | AI70: -2654 | AL70: 4288 | AN70: 11737 | AQ70: 1339 | AR70: 21 | AU70: 16283 | AV70: 25702 | AW70: -1 | AX70: 3034 | AY70: 574 | AZ70: 441 | BA70: 4049 | BB70: 5729 | BC70: 9 | BD70: 16 | BE70: 57 | BF70: 2432 | BG70: -1769 | BI70: 1341 | BJ70: -134 | BL70: -3244 | BM70: 1 | BN70: 0 | BO70: 0 | BP70: 10 | BQ70: -3233 | BS70: 8567 | BY70: 5398 | CA70: 13258 | CF70: 21 | CT70: 2384 | CU70: -2087 | CV70: 14 | CW70: 18 | CX70: 0
A71: 217 | B71: Kannus | C71: 5502 | D71: 21.5 | G71: 38693 | H71: 65720 | I71: 227 | J71: 15347 | K71: 1153 | L71: 1279 | M71: 17779 | N71: 13339 | O71: 25 | P71: 141 | Q71: 34 | R71: 34 | S71: 4202 | U71: 3147 | V71: 0 | X71: 1055 | Y71: -271 | Z71: -144 | AA71: 0 | AB71: -150 | AD71: 490 | AF71: 12872 | AI71: -2401 | AL71: 9621 | AN71: 28644 | AQ71: 5464 | AR71: 21.5 | AU71: 37672 | AV71: 66838 | AW71: 232 | AX71: 15347 | AY71: 1153 | AZ71: 1279 | BA71: 17779 | BB71: 13702 | BC71: 27 | BD71: 152 | BE71: 39 | BF71: 18 | BG71: 2466 | BI71: 3204 | BJ71: 0 | BL71: -738 | BM71: -10 | BN71: 31 | BO71: 0 | BP71: -33 | BQ71: -812 | BS71: 12038 | BY71: 8411 | CA71: 29127 | CF71: 21.5 | CT71: -173 | CU71: -3456 | CV71: 0 | CW71: 99 | CX71: 24
A72: 218 | B72: Karijoki | C72: 1274 | D72: 22 | G72: 9985 | H72: 18628 | I72: 1 | J72: 3509 | K72: 281 | L72: 243 | M72: 4032 | N72: 4880 | O72: 0 | P72: 37 | Q72: 9 | R72: 6 | S72: 236 | U72: 451 | V72: 0 | X72: -215 | Y72: 1 | Z72: 0 | AA72: 0 | AB72: 0 | AD72: -214 | AF72: 1246 | AI72: -1464 | AL72: 1819 | AN72: 3034 | AQ72: 1245 | AR72: 22 | AU72: 9957 | AV72: 19143 | AW72: 0 | AX72: 3509 | AY72: 281 | AZ72: 243 | BA72: 4033 | BB72: 5096 | BC72: 0 | BD72: 36 | BE72: 12 | BF72: 4 | BG72: -280 | BI72: 496 | BJ72: -4 | BL72: -780 | BM72: 0 | BN72: 0 | BO72: 1 | BP72: 2 | BQ72: -777 | BS72: 451 | BY72: 1134 | CA72: 3396 | CF72: 22 | CT72: 0 | CU72: -830 | CV72: 27 | CW72: 12 | CX72: 1
A73: 224 | B73: Karkkila | C73: 8778 | D73: 20.75 | G73: 53575 | H73: 100388 | I73: -6 | J73: 27267 | K73: 1193 | L73: 2260 | M73: 30716 | N73: 20049 | O73: 36 | P73: 585 | Q73: 135 | R73: 111 | S73: 3421 | U73: 4326 | V73: 0 | X73: -905 | Y73: 0 | Z73: -2 | AA73: 0 | AB73: -9 | AD73: -916 | AF73: 1808 | AI73: -2031 | AL73: 7880 | AN73: 62980 | AQ73: 8714 | AR73: 20.75 | AU73: 56672 | AV73: 106822 | AW73: 7 | AX73: 27267 | AY73: 1193 | AZ73: 2260 | BA73: 30720 | BB73: 20509 | BC73: 6 | BD73: 514 | BE73: 151 | BF73: 134 | BG73: 650 | BI73: 4068 | BJ73: 0 | BL73: -3418 | BM73: 0 | BN73: 1 | BO73: -1 | BP73: 29 | BQ73: -3391 | BS73: -1524 | BY73: 6879 | CA73: 65888 | CF73: 20.75 | CT73: -243 | CU73: -5244 | CV73: 55 | CW73: 365 | CX73: 0
A74: 226 | B74: Karstula | C74: 4031 | D74: 21 | G74: 33843 | H74: 58799 | I74: 0 | J74: 9626 | K74: 1298 | L74: 1089 | M74: 12013 | N74: 15483 | O74: 82 | P74: 57 | Q74: 49 | R74: 33 | S74: 2581 | U74: 2604 | V74: 0 | X74: -23 | Y74: 0 | Z74: -58 | AA74: 14 | AB74: -89 | AD74: -156 | AF74: 3514 | AI74: -4105 | AL74: 12843 | AN74: 24222 | AQ74: 3949 | AR74: 21.5 | AU74: 34343 | AV74: 64933 | AW74: 0 | AX74: 9626 | AY74: 1298 | AZ74: 1089 | BA74: 12013 | BB74: 15320 | BC74: 70 | BD74: 54 | BE74: 29 | BF74: 32 | BG74: -2719 | BI74: 2628 | BJ74: 0 | BL74: -5347 | BM74: 0 | BN74: 24 | BO74: 5 | BP74: -10 | BQ74: -5376 | BS74: -1854 | BY74: 12818 | CA74: 26490 | CF74: 21.5 | CT74: 4252 | CU74: -4261 | CV74: 0 | CW74: 212 | CX74: 8
A75: 230 | B75: Karvia | C75: 2390 | D75: 20.5 | G75: 21936 | H75: 34722 | I75: -11 | J75: 5092 | K75: 615 | L75: 704 | M75: 6397 | N75: 8185 | O75: 9 | P75: 97 | Q75: 92 | R75: 12 | S75: 1777 | U75: 2482 | V75: 0 | X75: -705 | Y75: 0 | Z75: -2 | AA75: -68 | AB75: -265 | AD75: -1040 | AF75: 12455 | AI75: -1707 | AL75: 3464 | AN75: 10224 | AQ75: 2342 | AR75: 20.5 | AU75: 21505 | AV75: 35107 | AW75: -11 | AX75: 5092 | AY75: 615 | AZ75: 704 | BA75: 6411 | BB75: 8255 | BC75: 12 | BD75: 92 | BE75: 48 | BF75: 7 | BG75: 1402 | BI75: 2563 | BJ75: 0 | BL75: -1161 | BM75: 0 | BN75: 12 | BO75: -29 | BP75: -225 | BQ75: -1427 | BS75: 11183 | BY75: 2315 | CA75: 8706 | CF75: 20.5 | CT75: 127 | CU75: -1839 | CV75: 9 | CW75: 106 | CX75: 0
A76: 231 | B76: Kaskinen | C76: 1262 | D76: 22 | G76: 4865 | H76: 12922 | I76: 0 | J76: 4970 | K76: 1082 | L76: 610 | M76: 6663 | N76: 1913 | O76: 2 | P76: 57 | Q76: 8 | R76: 7 | S76: 465 | U76: 1940 | V76: 0 | X76: -1475 | Y76: -8 | Z76: 0 | AA76: -18 | AB76: 0 | AD76: -1501 | AF76: 4329 | AI76: -108 | AL76: 215 | AN76: 5444 | AQ76: 1246 | AR76: 22 | AU76: 7441 | AV76: 16081 | AW76: 0 | AX76: 4970 | AY76: 1082 | AZ76: 610 | BA76: 6662 | BB76: 1832 | BC76: 1 | BD76: 75 | BE76: 6 | BF76: 6 | BG76: -522 | BI76: 1397 | BJ76: -3 | BL76: -1922 | BM76: 0 | BN76: 35 | BO76: 6 | BP76: 0 | BQ76: -1951 | BS76: 4763 | BY76: 395 | CA76: 7840 | CF76: 22 | CT76: -59 | CU76: -1480 | CV76: 14 | CW76: 320 | CX76: 0
A77: 232 | B77: Kauhajoki | C77: 13375 | D77: 22 | G77: 84479 | H77: 166629 | I77: 214 | J77: 37191 | K77: 3479 | L77: 3850 | M77: 44521 | N77: 43857 | O77: 59 | P77: 1020 | Q77: 1304 | R77: 311 | S77: 6474 | U77: 8076 | V77: 0 | X77: -1602 | Y77: -54 | Z77: 0 | AA77: -7 | AB77: -25 | AD77: -1688 | AF77: -2381 | AI77: -8822 | AL77: 23584 | AN77: 93478 | AQ77: 13184 | AR77: 22 | AU77: 87691 | AV77: 171610 | AW77: 192 | AX77: 37191 | AY77: 3479 | AZ77: 3850 | BA77: 44520 | BB77: 44951 | BC77: 7 | BD77: 1006 | BE77: 10157 | BF77: 173 | BG77: 15007 | BI77: 8843 | BJ77: -80 | BL77: 6084 | BM77: -65 | BN77: 0 | BO77: 47 | BP77: 2 | BQ77: 6068 | BS77: 3425 | BY77: 35757 | CA77: 108445 | CF77: 22 | CT77: -797 | CU77: -19391 | CV77: 30 | CW77: 861 | CX77: 40
A78: 233 | B78: Kauhava | C78: 16022 | D78: 21.75 | G78: 119536 | H78: 218741 | I78: 53 | J78: 44637 | K78: 3319 | L78: 4089 | M78: 52045 | N78: 54506 | O78: 21 | P78: 1133 | Q78: 314 | R78: 270 | S78: 6331 | U78: 11590 | V78: 0 | X78: -5259 | Y78: 646 | Z78: -128 | AA78: -28 | AB78: -13 | AD78: -4782 | AF78: 20042 | AI78: -22374 | AL78: 30277 | AN78: 121585 | AQ78: 15726 | AR78: 21.75 | AU78: 82398 | AV78: 187279 | AW78: 34 | AX78: 44637 | AY78: 3319 | AZ78: 4089 | BA78: 52045 | BB78: 57614 | BC78: 115 | BD78: 936 | BE78: 317 | BF78: 406 | BG78: 5455 | BI78: 14478 | BJ78: 0 | BL78: -9023 | BM78: 1888 | BN78: 130 | BO78: 17 | BP78: 148 | BQ78: -7100 | BS78: 10841 | BY78: 28018 | CA78: 132962 | CF78: 21.75 | CT78: 53 | CU78: -18915 | CV78: 403 | CW78: 1698 | CX78: 2770
A79: 235 | B79: Kauniainen | C79: 9615 | D79: 17 | G79: 42147 | H79: 96141 | I79: -5 | J79: 62301 | K79: 1997 | L79: 4851 | M79: 69149 | N79: -2284 | O79: 238 | P79: 328 | Q79: 147 | R79: 93 | S79: 12830 | U79: 9199 | V79: 0 | X79: 3631 | Y79: -246 | Z79: -7 | AA79: -61 | AB79: 0 | AD79: 3317 | AF79: 51762 | AI79: -10447 | AL79: 11855 | AN79: 19470 | AQ79: 9797 | AR79: 17 | AU79: 44611 | AV79: 101214 | AW79: 6 | AX79: 62301 | AY79: 1997 | AZ79: 4851 | BA79: 69149 | BB79: -1864 | BC79: 237 | BD79: 322 | BE79: 153 | BF79: 100 | BG79: 8500 | BI79: 9705 | BJ79: 0 | BL79: -1205 | BM79: -286 | BN79: 8 | BO79: -72 | BP79: -3 | BQ79: -1574 | BS79: 50406 | BY79: 10105 | CA79: 22681 | CF79: 17 | CT79: -2689 | CU79: -14056 | CV79: 14 | CW79: 2736 | CX79: 66
A80: 236 | B80: Kaustinen | C80: 4273 | D80: 21.5 | G80: 31162 | H80: 55132 | I80: 120 | J80: 12180 | K80: 1031 | L80: 957 | M80: 14057 | N80: 12977 | O80: 95 | P80: 358 | Q80: 47 | R80: 97 | S80: 2871 | U80: 3261 | V80: -1 | X80: -391 | Y80: -76 | Z80: 0 | AA80: 0 | AB80: 8 | AD80: -459 | AF80: 3906 | AI80: -3542 | AL80: 6309 | AN80: 49632 | AQ80: 4261 | AR80: 21.5 | AU80: 28529 | AV80: 53879 | AW80: 121 | AX80: 12180 | AY80: 1031 | AZ80: 957 | BA80: 14168 | BB80: 13164 | BC80: 28 | BD80: 377 | BE80: 23 | BF80: 15 | BG80: 1445 | BI80: 3318 | BJ80: 0 | BL80: -1873 | BM80: 4 | BN80: 0 | BO80: 0 | BP80: -21 | BQ80: -1890 | BS80: 2487 | BY80: 5625 | CA80: 50818 | CF80: 22 | CT80: -355 | CU80: -4357 | CV80: 15 | CW80: 195 | CX80: -22
A81: 239 | B81: Keitele | C81: 2244 | D81: 20.5 | G81: 10247 | H81: 24712 | I81: 22 | J81: 5713 | K81: 618 | L81: 542 | M81: 6874 | N81: 7943 | O81: 3 | P81: 87 | Q81: 257 | R81: 44 | S81: 503 | U81: 1150 | V81: -26 | X81: -673 | Y81: 5 | Z81: 0 | AA81: -1 | AB81: 1 | AD81: -668 | AF81: -1456 | AI81: -1349 | AL81: 2037 | AN81: 19621 | AQ81: 2202 | AR81: 20.5 | AU81: 9713 | AV81: 23896 | AW81: 16 | AX81: 5713 | AY81: 618 | AZ81: 542 | BA81: 6873 | BB81: 8692 | BC81: 7 | BD81: 113 | BE81: 251 | BF81: 42 | BG81: 1762 | BI81: 1192 | BJ81: -181 | BL81: 389 | BM81: 1 | BN81: 3 | BO81: -8 | BP81: -9 | BQ81: 370 | BS81: -1014 | BY81: 1878 | CA81: 19909 | CF81: 20.5 | CT81: 56 | CU81: -2006 | CV81: 81 | CW81: 52 | CX81: -4
A82: 240 | B82: Kemi | C82: 21021 | D82: 21.75 | G82: 111044 | H82: 231676 | I82: 132 | J82: 72619 | K82: 7185 | L82: 6556 | M82: 85711 | N82: 44851 | O82: 71 | P82: 1506 | Q82: 359 | R82: 28 | S82: 8958 | U82: 13615 | V82: 35 | X82: -4622 | Y82: -54 | Z82: -1219 | AA82: -79 | AB82: -26 | AD82: -6000 | AF82: -1332 | AI82: -21297 | AL82: 17330 | AN82: 135345 | AQ82: 20707 | AR82: 21.75 | AU82: 107533 | AV82: 233851 | AW82: 67 | AX82: 72619 | AY82: 7185 | AZ82: 6556 | BA82: 86360 | BB82: 44093 | BC82: 127 | BD82: 1245 | BE82: 6500 | BF82: 10 | BG82: 9314 | BI82: 12453 | BJ82: 0 | BL82: -3139 | BM82: 3014 | BN82: 613 | BO82: 12 | BP82: -6 | BQ82: -732 | BS82: -2970 | BY82: 20079 | CA82: 149221 | CF82: 21.75 | CT82: 389 | CU82: -21034 | CV82: 417 | CW82: 976 | CX82: -3
A83: 320 | B83: Kemijärvi | C83: 7370 | D83: 21.5 | G83: 51891 | H83: 101202 | I83: 0 | J83: 23822 | K83: 1298 | L83: 4326 | M83: 29446 | N83: 28548 | O83: 99 | P83: 1083 | Q83: 1774 | R83: 708 | S83: 8765 | U83: 7171 | V83: 0 | X83: 1594 | Y83: 57 | Z83: 0 | AA83: -485 | AB83: -316 | AD83: 850 | AF83: 7513 | AI83: -4299 | AL83: 11476 | AN83: 66238 | AQ83: 7274 | AR83: 21.5 | AU83: 53104 | AV83: 103613 | AW83: 0 | AX83: 23822 | AY83: 1298 | AZ83: 4326 | BA83: 29446 | BB83: 28503 | BC83: 170 | BD83: 800 | BE83: 1751 | BF83: 379 | BG83: 7233 | BI83: 7196 | BJ83: 0 | BL83: 37 | BM83: 24 | BN83: 0 | BO83: -491 | BP83: -373 | BQ83: -803 | BS83: 6836 | BY83: 10332 | CA83: 67127 | CF83: 21.5 | CT83: -210 | CU83: -9978 | CV83: 1673 | CW83: 366 | CX83: -77
A84: 241 | B84: Keminmaa | C84: 8147 | D84: 21.25 | G84: 27442 | H84: 71492 | I84: 0 | J84: 30057 | K84: 1033 | L84: 3765 | M84: 34796 | N84: 12410 | O84: 5 | P84: 314 | Q84: 134 | R84: 11 | S84: 2970 | U84: 4057 | V84: 713 | X84: -374 | Y84: 5 | Z84: 0 | AA84: -165 | AB84: 0 | AD84: -534 | AF84: 5459 | AI84: 3539 | AL84: 9404 | AN84: 26012 | AQ84: 8079 | AR84: 21.25 | AU84: 30254 | AV84: 74348 | AW84: 0 | AX84: 30057 | AY84: 1033 | AZ84: 3765 | BA84: 34855 | BB84: 13114 | BC84: 3 | BD84: 275 | BE84: 123 | BF84: 3 | BG84: 4672 | BI84: 3826 | BJ84: 3 | BL84: 849 | BM84: -67 | BN84: 0 | BO84: -276 | BP84: 0 | BQ84: 506 | BS84: 5338 | BY84: 12432 | CA84: 27666 | CF84: 21.25 | CT84: 87 | CU84: -5682 | CV84: 131 | CW84: 9 | CX84: 235
A85: 322 | B85: Kemiönsaari | C85: 6724 | D85: 19.75 | G85: 27424 | H85: 68266 | I85: 2 | J85: 17833 | K85: 1070 | L85: 3359 | M85: 22262 | N85: 21205 | O85: -1 | P85: 452 | Q85: 157 | R85: 97 | S85: 2234 | U85: 5149 | V85: 0 | X85: -2915 | Y85: -214 | Z85: -59 | AA85: 27 | AB85: -2 | AD85: -3163 | AF85: 17302 | AI85: -1754 | AL85: 3881 | AN85: 31218 | AQ85: 6640 | AR85: 19.75 | AU85: 27481 | AV85: 68792 | AW85: 16 | AX85: 17833 | AY85: 1070 | AZ85: 3359 | BA85: 22262 | BB85: 21601 | BC85: 0 | BD85: 366 | BE85: 134 | BF85: 95 | BG85: 2636 | BI85: 5154 | BJ85: 0 | BL85: -2518 | BM85: 211 | BN85: 45 | BO85: -54 | BP85: -6 | BQ85: -2412 | BS85: 14770 | BY85: 4728 | CA85: 32081 | CF85: 19.75 | CT85: -50 | CU85: -2234 | CV85: 44 | CW85: 90 | CX85: 1
A86: 244 | B86: Kempele | C86: 17923 | D86: 20.5 | G86: 37141 | H86: 124080 | I86: -32 | J86: 61290 | K86: 3686 | L86: 3688 | M86: 68585 | N86: 28668 | O86: 15 | P86: 810 | Q86: 81 | R86: 83 | S86: 9485 | U86: 7897 | V86: 453 | X86: 2041 | Y86: -109 | Z86: -2 | AA86: -31 | AB86: -15 | AD86: 1884 | AF86: 23761 | AI86: -15539 | AL86: 15040 | AN86: 71092 | AQ86: 18355 | AR86: 20.5 | AU86: 37179 | AV86: 132292 | AW86: 23 | AX86: 61290 | AY86: 3686 | AZ86: 3688 | BA86: 68664 | BB86: 29370 | BC86: 14 | BD86: 766 | BE86: 54 | BF86: 37 | BG86: 4733 | BI86: 7698 | BJ86: 0 | BL86: -2965 | BM86: -3 | BN86: 6 | BO86: -59 | BP86: -1 | BQ86: -3034 | BS86: 20727 | BY86: 11447 | CA86: 80493 | CF86: 20.5 | CT86: -3656 | CU86: -20986 | CV86: 492 | CW86: 4683 | CX86: 4
A87: 245 | B87: Kerava | C87: 36254 | D87: 19.25 | G87: 182884 | H87: 338222 | I87: 59 | J87: 132745 | K87: 9562 | L87: 10224 | M87: 151935 | N87: 35834 | O87: 134 | P87: 916 | Q87: 1271 | R87: 720 | S87: 32259 | U87: 30748 | V87: 0 | X87: 1511 | Y87: -10 | Z87: -19 | AA87: -68 | AB87: 60 | AD87: 1474 | AF87: 139430 | AI87: -37435 | AL87: 23517 | AN87: 179815 | AQ87: 36756 | AR87: 19.25 | AU87: 189064 | AV87: 357082 | AW87: 330 | AX87: 132745 | AY87: 9562 | AZ87: 10224 | BA87: 152531 | BB87: 37655 | BC87: 134 | BD87: 1680 | BE87: 1213 | BF87: 385 | BG87: 26070 | BI87: 34923 | BJ87: 14166 | BL87: 5313 | BM87: -1 | BN87: 19 | BO87: -274 | BP87: 28 | BQ87: 5047 | BS87: 144477 | BY87: 25585 | CA87: 191426 | CF87: 19.25 | CT87: -2736 | CU87: -68577 | CV87: 215 | CW87: 14374 | CX87: -8
A88: 249 | B88: Keuruu | C88: 9762 | D88: 21.5 | G88: 55436 | H88: 109333 | I88: 217 | J88: 29644 | K88: 2473 | L88: 2156 | M88: 34185 | N88: 31000 | O88: 44 | P88: 672 | Q88: 168 | R88: 98 | S88: 10947 | U88: 10153 | V88: 0 | X88: 794 | Y88: -1 | Z88: -80 | AA88: -155 | AB88: -379 | AD88: 179 | AF88: 14074 | AI88: -12967 | AL88: 6636 | AN88: 102233 | AQ88: 9605 | AR88: 21.5 | AU88: 53344 | AV88: 111365 | AW88: 252 | AX88: 29644 | AY88: 2473 | AZ88: 2156 | BA88: 34273 | BB88: 31090 | BC88: 48 | BD88: 627 | BE88: 148 | BF88: 41 | BG88: 6456 | BI88: 10045 | BJ88: 0 | BL88: -3589 | BM88: 1 | BN88: 6 | BO88: -9 | BP88: -93 | BQ88: -3696 | BS88: 10512 | BY88: 5760 | CA88: 110156 | CF88: 21.5 | CT88: 252 | CU88: -16752 | CV88: 8 | CW88: 180 | CX88: -1
A89: 250 | B89: Kihniö | C89: 1910 | D89: 21.5 | G89: 6900 | H89: 19089 | I89: 1 | J89: 4554 | K89: 664 | L89: 560 | M89: 5774 | N89: 7457 | O89: 3 | P89: 144 | Q89: 131 | R89: 22 | S89: 1011 | U89: 894 | V89: 0 | X89: 117 | Y89: 0 | Z89: -11 | AA89: -1 | AB89: -16 | AD89: 89 | AF89: -424 | AI89: -936 | AL89: 2850 | AN89: 10566 | AQ89: 1865 | AR89: 21.5 | AU89: 6765 | AV89: 19285 | AW89: -3 | AX89: 4554 | AY89: 664 | AZ89: 560 | BA89: 5778 | BB89: 7646 | BC89: 3 | BD89: 141 | BE89: -17 | BF89: 25 | BG89: 656 | BI89: 873 | BJ89: 0 | BL89: -217 | BM89: 0 | BN89: 9 | BO89: -1 | BP89: -15 | BQ89: -242 | BS89: -666 | BY89: 1872 | CA89: 10285 | CF89: 21.5 | CT89: -55 | CU89: -1424 | CV89: 2 | CW89: 8 | CX89: -14
A90: 256 | B90: Kinnula | C90: 1615 | D90: 20.5 | G90: 5903 | H90: 17749 | I90: -29 | J90: 3669 | K90: 569 | L90: 365 | M90: 4599 | N90: 6995 | O90: 79 | P90: 5 | Q90: 45 | R90: 7 | S90: -169 | U90: 1042 | V90: 0 | X90: -1211 | Y90: 0 | Z90: 0 | AA90: 0 | AB90: 0 | AD90: -1211 | AF90: 6144 | AI90: -2571 | AL90: 2561 | AN90: 9199 | AQ90: 1620 | AR90: 21 | AU90: 6148 | AV90: 17942 | AW90: -25 | AX90: 3669 | AY90: 569 | AZ90: 365 | BA90: 4603 | BB90: 6967 | BC90: 65 | BD90: 7 | BE90: 41 | BF90: 1 | BG90: -322 | BI90: 1078 | BJ90: 0 | BL90: -1400 | BM90: 0 | BN90: 0 | BO90: 0 | BP90: -5 | BQ90: -1405 | BS90: 3240 | BY90: 2014 | CA90: 10388 | CF90: 21 | CT90: 86 | CU90: -2144 | CV90: 13 | CW90: 155 | CX90: 44
A91: 257 | B91: Kirkkonummi | C91: 39262 | D91: 19.5 | G91: 120214 | H91: 319679 | I91: -59 | J91: 171177 | K91: 6599 | L91: 11571 | M91: 189339 | N91: 28687 | O91: 73 | P91: 1615 | Q91: 601 | R91: 426 | S91: 17135 | U91: 21656 | V91: -190 | X91: -4711 | Y91: 48 | Z91: -4 | AA91: -49 | AB91: 57 | AD91: -4659 | AF91: 22294 | AI91: -30126 | AL91: 31470 | AN91: 174841 | AQ91: 39586 | AR91: 19.75 | AU91: 126520 | AV91: 342125 | AW91: -487 | AX91: 171177 | AY91: 6599 | AZ91: 11571 | BA91: 189347 | BB91: 29487 | BC91: 67 | BD91: 1802 | BE91: 647 | BF91: 469 | BG91: 1763 | BI91: 23685 | BJ91: 0 | BL91: -21922 | BM91: -23 | BN91: 3 | BO91: 5 | BP91: 53 | BQ91: -21890 | BS91: 405 | BY91: 27449 | CA91: 233982 | CF91: 19.75 | CT91: -3423 | CU91: -65399 | CV91: 13 | CW91: 4613 | CX91: 0
A92: 260 | B92: Kitee | C92: 10358 | D92: 21.5 | G92: 61656 | H92: 126206 | I92: 1 | J92: 27147 | K92: 2167 | L92: 2845 | M92: 32042 | N92: 39590 | O92: 30 | P92: 227 | Q92: 416 | R92: 4 | S92: 7298 | U92: 4819 | V92: 20 | X92: 2499 | Y92: 1 | Z92: -77 | AA92: -73 | AB92: -23 | AD92: 2327 | AF92: 23324 | AI92: -4925 | AL92: 14424 | AN92: 20176 | AQ92: 10136 | AR92: 21 | AU92: 63022 | AV92: 129044 | AW92: 0 | AX92: 27147 | AY92: 2167 | AZ92: 2845 | BA92: 32159 | BB92: 39712 | BC92: 41 | BD92: 207 | BE92: 445 | BF92: 2 | BG92: 6085 | BI92: 5601 | BJ92: 0 | BL92: 484 | BM92: -6 | BN92: 54 | BO92: 82 | BP92: -29 | BQ92: 477 | BS92: 23529 | BY92: 13549 | CA92: 19544 | CF92: 21 | CT92: -32 | CU92: -4986 | CV92: 321 | CW92: 179 | CX92: -264
A93: 261 | B93: Kittilä | C93: 6436 | D93: 20.25 | G93: 51079 | H93: 90616 | I93: 1248 | J93: 19614 | K93: 1926 | L93: 7040 | M93: 28580 | N93: 23980 | O93: 1 | P93: 668 | Q93: 716 | R93: 823 | S93: 13497 | U93: 8502 | V93: 0 | X93: 4995 | Y93: 662 | Z93: -386 | AA93: -46 | AB93: -671 | AD93: 4554 | AF93: 48182 | AI93: -4269 | AL93: 7849 | AN93: 43992 | AQ93: 6453 | AR93: 20.25 | AU93: 50433 | AV93: 91942 | AW93: 1199 | AX93: 19614 | AY93: 1926 | AZ93: 7040 | BA93: 28580 | BB93: 25830 | BC93: 8 | BD93: 766 | BE93: 869 | BF93: 978 | BG93: 15206 | BI93: 8606 | BJ93: 0 | BL93: 6600 | BM93: 911 | BN93: 504 | BO93: -30 | BP93: -827 | BQ93: 6150 | BS93: 52782 | BY93: 8943 | CA93: 49841 | CF93: 20.25 | CT93: -1505 | CU93: -20862 | CV93: 79 | CW93: 1170 | CX93: 233
A94: 263 | B94: Kiuruvesi | C94: 8153 | D94: 20.75 | G94: 46447 | H94: 100170 | I94: 154 | J94: 19533 | K94: 1814 | L94: 1708 | M94: 22913 | N94: 34298 | O94: 6 | P94: 537 | Q94: 1112 | R94: 377 | S94: 3846 | U94: 5634 | V94: 140 | X94: -1648 | Y94: 9 | Z94: -4 | AA94: -66 | AB94: -2 | AD94: -1711 | AF94: 887 | AI94: -4743 | AL94: 11832 | AN94: 56328 | AQ94: 7998 | AR94: 20.75 | AU94: 47223 | AV94: 101847 | AW94: 166 | AX94: 19533 | AY94: 1814 | AZ94: 1708 | BA94: 23055 | BB94: 33942 | BC94: 14 | BD94: 503 | BE94: 1256 | BF94: 198 | BG94: 3466 | BI94: 5705 | BJ94: 419 | BL94: -1820 | BM94: 6 | BN94: 9 | BO94: -67 | BP94: -23 | BQ94: -1913 | BS94: -812 | BY94: 11787 | CA94: 57614 | CF94: 21.75 | CT94: -292 | CU94: -5780 | CV94: 478 | CW94: 209 | CX94: 48
A95: 265 | B95: Kivijärvi | C95: 1103 | D95: 21.5 | G95: 10488 | H95: 18683 | I95: 0 | J95: 2441 | K95: 609 | L95: 439 | M95: 3489 | N95: 5113 | O95: 7 | P95: 47 | Q95: 13 | R95: 208 | S95: 172 | U95: 1106 | V95: 0 | X95: -934 | Y95: 0 | Z95: 0 | AA95: -1 | AB95: 0 | AD95: -935 | AF95: 1610 | AI95: -1764 | AL95: 2492 | AN95: 8596 | AQ95: 1096 | AR95: 21.5 | AU95: 10550 | AV95: 18983 | AW95: 0 | AX95: 2441 | AY95: 609 | AZ95: 439 | BA95: 3489 | BB95: 4938 | BC95: 6 | BD95: 39 | BE95: 8 | BF95: 1713 | BG95: -1662 | BI95: 924 | BJ95: 0 | BL95: -2586 | BM95: 0 | BN95: 0 | BO95: -2 | BP95: 0 | BQ95: -2588 | BS95: -1007 | BY95: 2067 | CA95: 9332 | CF95: 21.75 | CT95: 1847 | CU95: -1642 | CV95: 102 | CW95: 27 | CX95: 0
A96: 271 | B96: Kokemäki | C96: 7226 | D96: 21.75 | G96: 32223 | H96: 74380 | I96: -14 | J96: 22047 | K96: 1229 | L96: 2525 | M96: 25747 | N96: 20169 | O96: 17 | P96: 219 | Q96: 69 | R96: 119 | S96: 3493 | U96: 3618 | V96: -455 | X96: -580 | Y96: 0 | Z96: -66 | AA96: 0 | AB96: 3 | AD96: -643 | AF96: 452 | AI96: -3610 | AL96: 4030 | AN96: 34262 | AQ96: 7103 | AR96: 21.75 | AU96: 33369 | AV96: 77264 | AW96: -7 | AX96: 22047 | AY96: 1229 | AZ96: 2525 | BA96: 25801 | BB96: 20978 | BC96: 12 | BD96: 184 | BE96: 55 | BF96: 151 | BG96: 2622 | BI96: 3785 | BJ96: 93 | BL96: -1070 | BM96: 5 | BN96: 82 | BO96: 0 | BP96: 0 | BQ96: -1147 | BS96: 212 | BY96: 2683 | CA96: 34360 | CF96: 21.75 | CT96: -98 | CU96: -4103 | CV96: 41 | CW96: 95 | CX96: 0
A97: 272 | B97: Kokkola | C97: 47657 | D97: 21.75 | G97: 332872 | H97: 555741 | I97: -20 | J97: 156967 | K97: 15715 | L97: 15332 | M97: 186811 | N97: 87938 | O97: 660 | P97: 4472 | Q97: 1551 | R97: 2414 | S97: 47185 | U97: 41215 | V97: -21 | X97: 5949 | Y97: -1389 | Z97: -1886 | AA97: -237 | AB97: -354 | AD97: 2083 | AF97: 100604 | AI97: -44993 | AL97: 71426 | AN97: 408593 | AQ97: 47681 | AR97: 21.75 | AU97: 352361 | AV97: 592247 | AW97: 659 | AX97: 156967 | AY97: 15715 | AZ97: 15332 | BA97: 188014 | BB97: 89006 | BC97: 385 | BD97: 4673 | BE97: 1802 | BF97: 2984 | BG97: 38141 | BI97: 40763 | BJ97: -347 | BL97: -2969 | BM97: -175 | BN97: 1946 | BO97: -129 | BP97: -212 | BQ97: -5431 | BS97: 94512 | BY97: 68027 | CA97: 422894 | CF97: 21.5 | CT97: -3236 | CU97: -59559 | CV97: 395 | CW97: 3074 | CX97: -17
B98: KOKO MAA (Manner-Suomi) | C98: 5488130 | D98: 19.87 | G98: 25941171 | H98: 52925761 | I98: 66298 | J98: 18664568 | K98: 1866127 | L98: 1790525 | M98: 22270468 | N98: 9617527 | O98: 79083 | P98: 413842 | Q98: 213264 | R98: 110352 | S98: 4737856 | U98: 4281238 | V98: -9816 | X98: 446802 | Y98: 17985 | Z98: -84766 | AA98: -64631 | AB98: -26068 | AD98: 289322 | AF98: 12554784 | AI98: -3504641 | AL98: 3451236 | AN98: 35989201 | AQ98: 5495408 | AR98: 19.9 | AU98: 26773679 | AV98: 54871181 | AW98: 70720 | AX98: 18664568 | AY98: 1866127 | AZ98: 1790525 | BA98: 22321220 | BB98: 9778488 | BC98: 78665 | BD98: 410649 | BE98: 279711 | BF98: 75103 | BG98: 4476884 | BI98: 4468739 | BJ98: 339728 | BL98: 347873 | BM98: 24483 | BN98: 103368 | BO98: -54303 | BP98: -36500 | BQ98: 178184 | BS98: 12670810 | BY98: 7778386 | CA98: 39046656 | CF98: 19.93 | CT98: -824529 | CU98: -8899552 | CV98: 189104 | CW98: 1879002 | CX98: 81193
A99: 273 | B99: Kolari | C99: 3834 | D99: 20 | G99: 14698 | H99: 39667 | I99: 0 | J99: 10418 | K99: 762 | L99: 3676 | M99: 14808 | N99: 14322 | O99: 5 | P99: 126 | Q99: 28 | R99: 21 | S99: 4047 | U99: 2943 | V99: 0 | X99: 1104 | Y99: 13 | Z99: -5 | AA99: 19 | AB99: -6 | AD99: 1125 | AF99: 14090 | AI99: -1620 | AL99: 5784 | AN99: 9885 | AQ99: 3846 | AR99: 20 | AU99: 15744 | AV99: 41059 | AW99: 0 | AX99: 10418 | AY99: 762 | AZ99: 3676 | BA99: 14856 | BB99: 14674 | BC99: 4 | BD99: 83 | BE99: 25 | BF99: 16 | BG99: 4353 | BI99: 2931 | BJ99: 0 | BL99: 1422 | BM99: 1 | BN99: 10 | BO99: -48 | BP99: -19 | BQ99: 1346 | BS99: 19733 | BY99: 13809 | CA99: 14340 | CF99: 20 | CT99: -85 | CU99: -2211 | CV99: 29 | CW99: 315 | CX99: 493
A100: 275 | B100: Konnevesi | C100: 2698 | D100: 22 | G100: 8530 | H100: 26317 | I100: 0 | J100: 7329 | K100: 806 | L100: 782 | M100: 8897 | N100: 9290 | O100: 247 | P100: 225 | Q100: 11 | R100: 62 | S100: 371 | U100: 1881 | V100: 0 | X100: -1510 | Y100: -1 | Z100: -42 | AA100: 2 | AB100: 0 | AD100: -1551 | AF100: 1395 | AI100: -2362 | AL100: 2469 | AN100: 27962 | AQ100: 2627 | AR100: 22 | AU100: 8378 | AV100: 30037 | AW100: 0 | AX100: 7329 | AY100: 806 | AZ100: 782 | BA100: 8917 | BB100: 9047 | BC100: 39 | BD100: 234 | BE100: 215 | BF100: 57 | BG100: -3843 | BI100: 1715 | BJ100: 0 | BL100: -5558 | BM100: 0 | BN100: 27 | BO100: 4 | BP100: 0 | BQ100: -5581 | BS100: -4283 | BY100: 2611 | CA100: 29208 | CF100: 22 | CT100: 3840 | CU100: -1892 | CV100: 28 | CW100: 138 | CX100: 63
A101: 276 | B101: Kontiolahti | C101: 14849 | D101: 20.5 | G101: 52941 | H101: 124287 | I101: 1 | J101: 45058 | K101: 1444 | L101: 2812 | M101: 49315 | N101: 24595 | O101: 28 | P101: 728 | Q101: 270 | R101: 134 | S101: 2001 | U101: 5978 | V101: 36 | X101: -3941 | Y101: 66 | Z101: -30 | AA101: -5 | AB101: 1 | AD101: -3909 | AF101: 21864 | AI101: -14580 | AL101: 9216 | AN101: 68948 | AQ101: 14821 | AR101: 20.5 | AU101: 53386 | AV101: 124254 | AW101: 16 | AX101: 45058 | AY101: 1444 | AZ101: 2812 | BA101: 49314 | BB101: 26053 | BC101: 43 | BD101: 798 | BE101: 312 | BF101: 8 | BG101: 7454 | BI101: 7684 | BJ101: 0 | BL101: -230 | BM101: 168 | BN101: 7 | BO101: 9 | BP101: -6 | BQ101: -66 | BS101: 21496 | BY101: 7891 | CA101: 71664 | CF101: 20.5 | CT101: -706 | CU101: -11777 | CV101: 78 | CW101: 557 | CX101: -64
A102: 280 | B102: Korsnäs | C102: 2122 | D102: 21 | G102: 7689 | H102: 20112 | I102: -2 | J102: 5066 | K102: 852 | L102: 721 | M102: 6638 | N102: 6535 | O102: 0 | P102: 53 | Q102: 17 | R102: 12 | S102: 700 | U102: 1342 | V102: 0 | X102: -642 | Y102: 0 | Z102: 0 | AA102: 0 | AB102: 0 | AD102: -642 | AF102: 8699 | AI102: -1113 | AL102: 793 | AN102: 3213 | AQ102: 2077 | AR102: 21.5 | AU102: 7834 | AV102: 20861 | AW102: -3 | AX102: 5066 | AY102: 852 | AZ102: 721 | BA102: 6639 | BB102: 6995 | BC102: 0 | BD102: 46 | BE102: 17 | BF102: 10 | BG102: 843 | BI102: 1585 | BJ102: 0 | BL102: -742 | BM102: 0 | BN102: 0 | BO102: 0 | BP102: 0 | BQ102: -742 | BS102: 7946 | BY102: 1517 | CA102: 5069 | CF102: 21.5 | CT102: 44 | CU102: -1415 | CV102: 61 | CW102: 26 | CX102: 0
A103: 284 | B103: Koski tl | C103: 2340 | D103: 19.5 | G103: 9779 | H103: 23670 | I103: 14 | J103: 5587 | K103: 599 | L103: 526 | M103: 6709 | N103: 7517 | O103: 0 | P103: 25 | Q103: 23 | R103: 5 | S103: 342 | U103: 1138 | V103: 0 | X103: -796 | Y103: 47 | Z103: -1 | AA103: 0 | AB103: -1 | AD103: -751 | AF103: 4589 | AI103: -1465 | AL103: 2262 | AN103: 1443 | AQ103: 2308 | AR103: 19.5 | AU103: 10108 | AV103: 23783 | AW103: 5 | AX103: 5587 | AY103: 599 | AZ103: 526 | BA103: 6712 | BB103: 7581 | BC103: 0 | BD103: 24 | BE103: 23 | BF103: 3 | BG103: 873 | BI103: 1147 | BJ103: 0 | BL103: -274 | BM103: 75 | BN103: 0 | BO103: 0 | BP103: 0 | BQ103: -199 | BS103: 4358 | BY103: 1350 | CA103: 1362 | CF103: 20 | CT103: -32 | CU103: -1415 | CV103: 56 | CW103: 56 | CX103: 5
A104: 285 | B104: Kotka | C104: 52883 | D104: 21.5 | G104: 299862 | H104: 561357 | I104: 304 | J104: 187770 | K104: 9500 | L104: 15212 | M104: 211083 | N104: 128242 | O104: 151 | P104: 5443 | Q104: 143 | R104: 3251 | S104: 69734 | U104: 59107 | V104: 8402 | X104: 19029 | Y104: 0 | Z104: -3403 | AA104: -93 | AB104: -3087 | AD104: 12446 | AF104: 28173 | AI104: -81740 | AL104: 130131 | AN104: 557126 | AQ104: 52126 | AR104: 21.5 | AU104: 404715 | AV104: 665464 | AW104: 97 | AX104: 187770 | AY104: 9500 | AZ104: 15212 | BA104: 212482 | BB104: 128852 | BC104: 132 | BD104: 4647 | BE104: 202 | BF104: 3364 | BG104: 77186 | BI104: 62966 | BJ104: 568 | BL104: 14788 | BM104: 0 | BN104: 3551 | BO104: -194 | BP104: -4320 | BQ104: 6723 | BS104: 50093 | BY104: 93829 | CA104: 545353 | CF104: 21.5 | CT104: -3409 | CU104: -97812 | CV104: 2009 | CW104: 14082 | CX104: 5
A105: 286 | B105: Kouvola | C105: 83177 | D105: 20.75 | G105: 313098 | H105: 787091 | I105: 4371 | J105: 283094 | K105: 27768 | L105: 20213 | M105: 329566 | N105: 170969 | O105: 365 | P105: 4904 | Q105: 1993 | R105: 2028 | S105: 26339 | U105: 42700 | V105: 0 | X105: -16361 | Y105: 5 | Z105: -2328 | AA105: -101 | AB105: -37 | AD105: -18822 | AF105: 51931 | AI105: -66212 | AL105: 72835 | AN105: 367644 | AQ105: 82113 | AR105: 20.75 | AU105: 452012 | AV105: 937026 | AW105: 4946 | AX105: 283094 | AY105: 27768 | AZ105: 20213 | BA105: 331075 | BB105: 173241 | BC105: 378 | BD105: 5044 | BE105: 2864 | BF105: 92 | BG105: 27795 | BI105: 40721 | BJ105: 0 | BL105: -12926 | BM105: 92 | BN105: 2944 | BO105: 131 | BP105: -100 | BQ105: -15747 | BS105: 40119 | BY105: 104160 | CA105: 489089 | CF105: 21.25 | CT105: -5465 | CU105: -101600 | CV105: 5655 | CW105: 15666 | CX105: -40
A106: 287 | B106: Kristiinankaupunki | C106: 6596 | D106: 21.5 | G106: 22922 | H106: 62871 | I106: 0 | J106: 19548 | K106: 1369 | L106: 2552 | M106: 23469 | N106: 20205 | O106: 1 | P106: 485 | Q106: 124 | R106: 29 | S106: 3336 | U106: 3313 | V106: 0 | X106: 23 | Y106: 20 | Z106: 0 | AA106: -3 | AB106: 0 | AD106: 40 | AF106: 10681 | AI106: -6854 | AL106: 7079 | AN106: 37013 | AQ106: 6486 | AR106: 21.5 | AU106: 24309 | AV106: 67543 | AW106: -5 | AX106: 19548 | AY106: 1369 | AZ106: 2552 | BA106: 23469 | BB106: 20714 | BC106: 1 | BD106: 467 | BE106: 128 | BF106: 58 | BG106: 1728 | BI106: 3931 | BJ106: -6 | BL106: -2209 | BM106: 5 | BN106: 11 | BO106: -16 | BP106: -2 | BQ106: -2233 | BS106: 8569 | BY106: 4355 | CA106: 38045 | CF106: 21.5 | CT106: 1242 | CU106: -9406 | CV106: 697 | CW106: 675 | CX106: 0
A107: 288 | B107: Kruunupyy | C107: 6509 | D107: 22 | G107: 26832 | H107: 63498 | I107: 24 | J107: 19461 | K107: 2316 | L107: 1807 | M107: 23584 | N107: 16364 | O107: 6 | P107: 352 | Q107: 159 | R107: 15 | S107: 3104 | U107: 2821 | V107: -2 | X107: 281 | Y107: -81 | Z107: -12 | AA107: -55 | AB107: 0 | AD107: 133 | AF107: 8720 | AI107: -2812 | AL107: 3781 | AN107: 25266 | AQ107: 6428 | AR107: 22 | AU107: 26781 | AV107: 63636 | AW107: 16 | AX107: 19461 | AY107: 2316 | AZ107: 1807 | BA107: 23584 | BB107: 15950 | BC107: 9 | BD107: 316 | BE107: 188 | BF107: 13 | BG107: 3108 | BI107: 2537 | BJ107: 0 | BL107: 571 | BM107: -20 | BN107: 48 | BO107: -27 | BP107: 0 | BQ107: 476 | BS107: 9174 | BY107: 4678 | CA107: 28618 | CF107: 22 | CT107: -622 | CU107: -6239 | CV107: 260 | CW107: 918 | CX107: -43
A108: 290 | B108: Kuhmo | C108: 8329 | D108: 21.5 | G108: 52066 | H108: 108580 | I108: 0 | J108: 22756 | K108: 2888 | L108: 2144 | M108: 27788 | N108: 32246 | O108: 21 | P108: 244 | Q108: 845 | R108: 1332 | S108: 2810 | U108: 4882 | V108: -3 | X108: -2075 | Y108: 12 | Z108: 0 | AA108: -135 | AB108: -238 | AD108: -2436 | AF108: 6201 | AI108: -11469 | AL108: 29900 | AN108: 55585 | AQ108: 8190 | AR108: 21.5 | AU108: 51830 | AV108: 107746 | AW108: 0 | AX108: 22756 | AY108: 2888 | AZ108: 2144 | BA108: 27788 | BB108: 32092 | BC108: 15 | BD108: 281 | BE108: 2160 | BF108: 987 | BG108: 5341 | BI108: 5515 | BJ108: 0 | BL108: -174 | BM108: 16 | BN108: 0 | BO108: -161 | BP108: -200 | BQ108: -519 | BS108: 5639 | BY108: 32886 | CA108: 62329 | CF108: 22 | CT108: -550 | CU108: -10252 | CV108: 276 | CW108: 787 | CX108: 50
A109: 291 | B109: Kuhmoinen | C109: 2238 | D109: 20.75 | G109: 5042 | H109: 21400 | I109: 0 | J109: 5685 | K109: 1013 | L109: 1342 | M109: 8040 | N109: 9822 | O109: 85 | P109: 36 | Q109: 95 | R109: 111 | S109: 1537 | U109: 1576 | V109: 0 | X109: -39 | Y109: 47 | Z109: -3 | AA109: -8 | AB109: 19 | AD109: 16 | AF109: 5504 | AI109: -2224 | AL109: 4738 | AN109: 7167 | AQ109: 2206 | AR109: 20.75 | AU109: 5279 | AV109: 21729 | AW109: 2 | AX109: 5685 | AY109: 1013 | AZ109: 1342 | BA109: 8040 | BB109: 9394 | BC109: 65 | BD109: 18 | BE109: 212 | BF109: 56 | BG109: 1288 | BI109: 1677 | BJ109: -5 | BL109: -394 | BM109: 47 | BN109: 3 | BO109: -11 | BP109: -4 | BQ109: -365 | BS109: 5122 | BY109: 4067 | CA109: 8310 | CF109: 21.75 | CT109: -24 | CU109: -1855 | CV109: 3 | CW109: 8 | CX109: 17
A110: 297 | B110: Kuopio | C110: 118664 | D110: 20.5 | G110: 662764 | H110: 1232300 | I110: 952 | J110: 378301 | K110: 24219 | L110: 38754 | M110: 441274 | N110: 257328 | O110: 372 | P110: 12447 | Q110: 6467 | R110: 1202 | S110: 123208 | U110: 106063 | V110: 1379 | X110: 18524 | Y110: -961 | Z110: -1549 | AA110: -5087 | AB110: -989 | AD110: 9938 | AF110: 10875 | AI110: -122023 | AL110: 171985 | AN110: 955659 | AQ110: 119282 | AR110: 20.5 | AU110: 683752 | AV110: 1281632 | AW110: 333 | AX110: 378301 | AY110: 24219 | AZ110: 38754 | BA110: 441274 | BB110: 265495 | BC110: 685 | BD110: 11672 | BE110: 3805 | BF110: 47 | BG110: 124719 | BI110: 116077 | BJ110: 0 | BL110: 8642 | BM110: -95 | BN110: 3003 | BO110: -4420 | BP110: -2694 | BQ110: -1570 | BS110: 10746 | BY110: 217752 | CA110: 1075929 | CF110: 20.75 | CT110: -20450 | CU110: -247356 | CV110: 2768 | CW110: 65339 | CX110: -350
A111: 300 | B111: Kuortane | C111: 3572 | D111: 21 | G111: 31144 | H111: 53821 | I111: -13 | J111: 9230 | K111: 707 | L111: 839 | M111: 10776 | N111: 14215 | O111: 38 | P111: 95 | Q111: 149 | R111: 27 | S111: 2366 | U111: 1964 | V111: 0 | X111: 402 | Y111: -8 | Z111: 0 | AA111: 0 | AB111: -2 | AD111: 392 | AF111: 3484 | AI111: -3167 | AL111: 2853 | AN111: 15534 | AQ111: 3551 | AR111: 21 | AU111: 31490 | AV111: 54906 | AW111: -13 | AX111: 9230 | AY111: 707 | AZ111: 839 | BA111: 10776 | BB111: 14076 | BC111: 28 | BD111: 169 | BE111: 48 | BF111: 25 | BG111: 1642 | BI111: 2158 | BJ111: 0 | BL111: -516 | BM111: 41 | BN111: 0 | BO111: 0 | BP111: 7 | BQ111: -468 | BS111: 3068 | BY111: 3492 | CA111: 18597 | CF111: 21 | CT111: 18 | CU111: -5937 | CV111: 205 | CW111: 66 | CX111: 34
A112: 301 | B112: Kurikka | C112: 20952 | D112: 21 | G112: 92967 | H112: 216865 | I112: 24 | J112: 55377 | K112: 4019 | L112: 4376 | M112: 63772 | N112: 67569 | O112: 171 | P112: 1197 | Q112: 9777 | R112: 286 | S112: 15932 | U112: 14631 | V112: 0 | X112: 1301 | Y112: -40 | Z112: -190 | AA112: -39 | AB112: 48 | AD112: 1080 | AF112: 22823 | AI112: -17620 | AL112: 55853 | AN112: 134854 | AQ112: 20678 | AR112: 21 | AU112: 93292 | AV112: 224243 | AW112: 17 | AX112: 55377 | AY112: 4019 | AZ112: 4376 | BA112: 63772 | BB112: 67318 | BC112: 176 | BD112: 1217 | BE112: 10997 | BF112: 180 | BG112: 11070 | BI112: 23222 | BJ112: -6 | BL112: -12158 | BM112: -280 | BN112: 171 | BO112: 47 | BP112: 309 | BQ112: -12253 | BS112: 10327 | BY112: 54491 | CA112: 137265 | CF112: 21 | CT112: -331 | CU112: -15095 | CV112: 130 | CW112: 2231 | CX112: 84
A113: 304 | B113: Kustavi | C113: 926 | D113: 18.75 | G113: 5242 | H113: 11053 | I113: 0 | J113: 2827 | K113: 223 | L113: 1421 | M113: 4469 | N113: 2303 | O113: 0 | P113: 53 | Q113: 3 | R113: 12 | S113: 899 | U113: 588 | V113: 0 | X113: 311 | Y113: 21 | Z113: 0 | AA113: 0 | AB113: 0 | AD113: 332 | AF113: 3761 | AI113: -368 | AL113: 1463 | AN113: 4012 | AQ113: 949 | AR113: 18.5 | AU113: 5180 | AV113: 11240 | AW113: 3 | AX113: 2827 | AY113: 223 | AZ113: 1421 | BA113: 4471 | BB113: 2132 | BC113: 0 | BD113: 50 | BE113: 2 | BF113: 1 | BG113: 609 | BI113: 586 | BJ113: 0 | BL113: 23 | BM113: 23 | BN113: 0 | BO113: 0 | BP113: 0 | BQ113: 46 | BS113: 3810 | BY113: 1688 | CA113: 4399 | CF113: 18.25 | CT113: -3 | CU113: -1171 | CV113: 52 | CW113: 58 | CX113: 10
A114: 305 | B114: Kuusamo | C114: 15207 | D114: 20 | G114: 48008 | H114: 137406 | I114: 4 | J114: 40189 | K114: 3843 | L114: 7218 | M114: 51130 | N114: 44886 | O114: 25 | P114: 741 | Q114: 1134 | R114: 1021 | S114: 6019 | U114: 7343 | V114: 511 | X114: -813 | Y114: 412 | Z114: -21 | AA114: -92 | AB114: -8 | AD114: -522 | AF114: 21569 | AI114: -9444 | AL114: 36583 | AN114: 60107 | AQ114: 15134 | AR114: 20 | AU114: 49253 | AV114: 141442 | AW114: 5 | AX114: 40189 | AY114: 3843 | AZ114: 7218 | BA114: 51250 | BB114: 45725 | BC114: 15 | BD114: 618 | BE114: 1911 | BF114: 240 | BG114: 7094 | BI114: 7698 | BJ114: 0 | BL114: -604 | BM114: 474 | BN114: 46 | BO114: -45 | BP114: -11 | BQ114: -232 | BS114: 21275 | BY114: 29530 | CA114: 54630 | CF114: 20 | CT114: -208 | CU114: -9825 | CV114: 45 | CW114: 187 | CX114: 0
A115: 312 | B115: Kyyjärvi | C115: 1343 | D115: 21.75 | G115: 9522 | H115: 18191 | I115: 0 | J115: 3406 | K115: 597 | L115: 381 | M115: 4384 | N115: 4149 | O115: 10 | P115: 21 | Q115: 581 | R115: 136 | S115: 298 | U115: 2383 | V115: 0 | X115: -2085 | Y115: 0 | Z115: 0 | AA115: 0 | AB115: 492 | AD115: -1593 | AF115: -1867 | AI115: -1682 | AL115: 6585 | AN115: 16518 | AQ115: 1313 | AR115: 21.75 | AU115: 10030 | AV115: 20690 | AW115: 0 | AX115: 3406 | AY115: 597 | AZ115: 381 | BA115: 4384 | BB115: 4342 | BC115: 8 | BD115: 19 | BE115: 440 | BF115: 33 | BG115: -1441 | BI115: 1223 | BJ115: 196 | BL115: -2468 | BM115: 0 | BN115: 0 | BO115: 0 | BP115: 38 | BQ115: -2430 | BS115: -4186 | BY115: 7067 | CA115: 16990 | CF115: 22.5 | CT115: 3271 | CU115: -1247 | CV115: 0 | CW115: 710 | CX115: 43
A116: 316 | B116: Kärkölä | C116: 4451 | D116: 21.75 | G116: 25304 | H116: 47952 | I116: -2 | J116: 13911 | K116: 616 | L116: 1137 | M116: 15663 | N116: 7861 | O116: 2 | P116: 144 | Q116: 40 | R116: 29 | S116: 743 | U116: 1482 | V116: 173 | X116: -566 | Y116: 0 | Z116: -1 | AA116: -2 | AB116: -4 | AD116: -573 | AF116: 1275 | AI116: -1129 | AL116: 4018 | AN116: 9321 | AQ116: 4368 | AR116: 22 | AU116: 25747 | AV116: 49311 | AW116: 8 | AX116: 13911 | AY116: 616 | AZ116: 1137 | BA116: 15664 | BB116: 8661 | BC116: 3 | BD116: 134 | BE116: 164 | BF116: 27 | BG116: 948 | BI116: 1508 | BJ116: -26 | BL116: -586 | BM116: 0 | BN116: 7 | BO116: 0 | BP116: -8 | BQ116: -601 | BS116: 921 | BY116: 8745 | CA116: 18638 | CF116: 22 | CT116: -219 | CU116: -6253 | CV116: 2 | CW116: 230 | CX116: 6
A117: 317 | B117: Kärsämäki | C117: 2613 | D117: 21.5 | G117: 22956 | H117: 40419 | I117: 1 | J117: 5855 | K117: 589 | L117: 586 | M117: 6977 | N117: 12237 | O117: 23 | P117: 99 | Q117: 484 | R117: 249 | S117: 1911 | U117: 1528 | V117: 189 | X117: 572 | Y117: -5 | Z117: -4 | AA117: -1 | AB117: -1 | AD117: 561 | AF117: 5675 | AI117: -932 | AL117: 11797 | AN117: 19560 | AQ117: 2576 | AR117: 21.5 | AU117: 21843 | AV117: 38943 | AW117: 1 | AX117: 5855 | AY117: 589 | AZ117: 586 | BA117: 7030 | BB117: 11672 | BC117: 11 | BD117: 119 | BE117: 647 | BF117: 33 | BG117: 2537 | BI117: 1824 | BJ117: 0 | BL117: 713 | BM117: -1 | BN117: 6 | BO117: -1 | BP117: 0 | BQ117: 705 | BS117: 6633 | BY117: 12060 | CA117: 20990 | CF117: 21.5 | CT117: -14 | CU117: -6095 | CV117: 166 | CW117: 22 | CX117: -470
A118: 398 | B118: Lahti | C118: 119951 | D118: 20.75 | G118: 630995 | H118: 1145546 | I118: -11 | J118: 396744 | K118: 27427 | L118: 40968 | M118: 460249 | N118: 225413 | O118: 1738 | P118: 19083 | Q118: 2162 | R118: 1037 | S118: 154880 | U118: 127681 | V118: 3106 | X118: 30305 | Y118: -122 | Z118: -6640 | AA118: -3619 | AB118: -43 | AD118: 19881 | AF118: 182621 | AI118: -228853 | AL118: 143836 | AN118: 1161404 | AQ118: 119823 | AR118: 20.75 | AU118: 616971 | AV118: 1177824 | AW118: -9 | AX118: 396744 | AY118: 27427 | AZ118: 40968 | BA118: 465139 | BB118: 229519 | BC118: 511 | BD118: 20121 | BE118: 6814 | BF118: 4003 | BG118: 123508 | BI118: 117359 | BJ118: -414 | BL118: 5735 | BM118: -3 | BN118: 5493 | BO118: -2397 | BP118: -894 | BQ118: -3052 | BS118: 176963 | BY118: 78157 | CA118: 1192951 | CF118: 20.75 | CT118: -3972 | CU118: -253956 | CV118: 628 | CW118: 41846 | CX118: 519
A119: 399 | B119: Laihia | C119: 8058 | D119: 21.75 | G119: 18535 | H119: 61225 | I119: 0 | J119: 26941 | K119: 1015 | L119: 1234 | M119: 29126 | N119: 15050 | O119: 2 | P119: 245 | Q119: 114 | R119: 55 | S119: 1302 | U119: 3075 | V119: 0 | X119: -1773 | Y119: 0 | Z119: 0 | AA119: -12 | AB119: 20 | AD119: -1765 | AF119: -2078 | AI119: -3876 | AL119: 2746 | AN119: 40881 | AQ119: 8017 | AR119: 21.75 | AU119: 18570 | AV119: 62208 | AW119: 0 | AX119: 26941 | AY119: 1015 | AZ119: 1234 | BA119: 29190 | BB119: 15591 | BC119: 1 | BD119: 235 | BE119: 170 | BF119: 58 | BG119: 2485 | BI119: 3188 | BJ119: 0 | BL119: -703 | BM119: 0 | BN119: 0 | BO119: -58 | BP119: 26 | BQ119: -735 | BS119: -2864 | BY119: 4327 | CA119: 43163 | CF119: 21.75 | CT119: -345 | CU119: -4784 | CV119: 60 | CW119: 206 | CX119: 0
A120: 400 | B120: Laitila | C120: 8647 | D120: 20.5 | G120: 38494 | H120: 83775 | I120: 23 | J120: 24995 | K120: 1948 | L120: 2063 | M120: 29006 | N120: 20359 | O120: 54 | P120: 235 | Q120: 86 | R120: 29 | S120: 3983 | U120: 4746 | V120: 0 | X120: -763 | Y120: 0 | Z120: -40 | AA120: 9 | AB120: -107 | AD120: -901 | AF120: 8207 | AI120: -6506 | AL120: 6125 | AN120: 35307 | AQ120: 8588 | AR120: 20.75 | AU120: 39072 | AV120: 87243 | AW120: -72 | AX120: 24995 | AY120: 1948 | AZ120: 2063 | BA120: 29006 | BB120: 20212 | BC120: 6 | BD120: 249 | BE120: 92 | BF120: 127 | BG120: 2037 | BI120: 4917 | BJ120: 0 | BL120: -2880 | BM120: 0 | BN120: 43 | BO120: 60 | BP120: -103 | BQ120: -2966 | BS120: 5194 | BY120: 5020 | CA120: 47681 | CF120: 20.75 | CT120: -26 | CU120: -7429 | CV120: 21 | CW120: 165 | CX120: 51
A121: 407 | B121: Lapinjärvi | C121: 2665 | D121: 20.5 | G121: 10533 | H121: 26313 | I121: -2 | J121: 7362 | K121: 549 | L121: 545 | M121: 8438 | N121: 7316 | O121: 4 | P121: 115 | Q121: 866 | R121: 27 | S121: 700 | U121: 1525 | V121: 0 | X121: -825 | Y121: -1 | Z121: 0 | AA121: -1 | AB121: 0 | AD121: -827 | AF121: -2173 | AI121: -4160 | AL121: 1285 | AN121: 17716 | AQ121: 2606 | AR121: 20.5 | AU121: 10402 | AV121: 26443 | AW121: 2 | AX121: 7362 | AY121: 549 | AZ121: 545 | BA121: 8456 | BB121: 7302 | BC121: 2 | BD121: 117 | BE121: 861 | BF121: 41 | BG121: 788 | BI121: 1502 | BJ121: 0 | BL121: -714 | BM121: 0 | BN121: 0 | BO121: 0 | BP121: -3 | BQ121: -717 | BS121: -2890 | BY121: 1785 | CA121: 19582 | CF121: 21 | CT121: 13 | CU121: -3224 | CV121: 28 | CW121: 1028 | CX121: 1
A122: 402 | B122: Lapinlahti | C122: 9617 | D122: 21.25 | G122: 35029 | H122: 91782 | I122: 130 | J122: 25409 | K122: 1555 | L122: 2224 | M122: 29062 | N122: 32843 | O122: 15 | P122: 552 | Q122: 899 | R122: 57 | S122: 5587 | U122: 6029 | V122: -116 | X122: -558 | Y122: 10 | Z122: -27 | AA122: 27 | AB122: 65 | AD122: -483 | AF122: -276 | AI122: -4585 | AL122: 4716 | AN122: 54782 | AQ122: 9485 | AR122: 21.25 | AU122: 35638 | AV122: 93365 | AW122: 179 | AX122: 25409 | AY122: 1555 | AZ122: 2224 | BA122: 29188 | BB122: 32635 | BC122: 23 | BD122: 530 | BE122: 918 | BF122: 28 | BG122: 5542 | BI122: 6125 | BJ122: 0 | BL122: -583 | BM122: 1 | BN122: 42 | BO122: -36 | BP122: 22 | BQ122: -638 | BS122: -891 | BY122: 4284 | CA122: 56152 | CF122: 21.25 | CT122: 13 | CU122: -8285 | CV122: 139 | CW122: 200 | CX122: 436
A123: 403 | B123: Lappajärvi | C123: 3078 | D123: 21 | G123: 19343 | H123: 38647 | I123: -67 | J123: 7532 | K123: 757 | L123: 1029 | M123: 9318 | N123: 12342 | O123: 9 | P123: 90 | Q123: 96 | R123: 59 | S123: 2245 | U123: 2513 | V123: 0 | X123: -268 | Y123: 4 | Z123: -7 | AA123: -1 | AB123: 42 | AD123: -230 | AF123: 2541 | AI123: 4792 | AL123: 5886 | AN123: 15246 | AQ123: 2996 | AR123: 21.5 | AU123: 13414 | AV123: 34769 | AW123: -33 | AX123: 7532 | AY123: 757 | AZ123: 1029 | BA123: 9318 | BB123: 12594 | BC123: 4 | BD123: 85 | BE123: 221 | BF123: 27 | BG123: 1012 | BI123: 1759 | BJ123: 0 | BL123: -747 | BM123: -3 | BN123: 0 | BO123: 8 | BP123: 19 | BQ123: -723 | BS123: 1768 | BY123: 2246 | CA123: 14995 | CF123: 21.5 | CT123: 43 | CU123: -4049 | CV123: 252 | CW123: 143 | CX123: 2
A124: 405 | B124: Lappeenranta | C124: 72699 | D124: 21 | G124: 386828 | H124: 716530 | I124: -260 | J124: 243607 | K124: 22310 | L124: 24771 | M124: 288085 | N124: 120593 | O124: 135 | P124: 4751 | Q124: 331 | R124: 1027 | S124: 73404 | U124: 54595 | V124: 0 | X124: 18809 | Y124: 96 | Z124: -2761 | AA124: -2140 | AB124: -668 | AD124: 13336 | AF124: 88902 | AI124: -48919 | AL124: 50011 | AN124: 479933 | AQ124: 72634 | AR124: 21 | AU124: 343788 | AV124: 689707 | AW124: 176 | AX124: 243607 | AY124: 22310 | AZ124: 24771 | BA124: 290688 | BB124: 124237 | BC124: 126 | BD124: 4647 | BE124: 640 | BF124: 140 | BG124: 67207 | BI124: 58744 | BJ124: 3875 | BL124: 12338 | BM124: 104 | BN124: 2211 | BO124: -2030 | BP124: -183 | BQ124: 8018 | BS124: 97571 | BY124: 59433 | CA124: 495935 | CF124: 21 | CT124: -13578 | CU124: -85976 | CV124: 2127 | CW124: 13004 | CX124: 23
A125: 408 | B125: Lapua | C125: 14427 | D125: 21.5 | G125: 47633 | H125: 122288 | I125: 19 | J125: 42420 | K125: 2343 | L125: 3014 | M125: 47777 | N125: 35853 | O125: 41 | P125: 957 | Q125: 625 | R125: 112 | S125: 8591 | U125: 9146 | V125: 0 | X125: -555 | Y125: 237 | Z125: -3 | AA125: -122 | AB125: -4 | AD125: -447 | AF125: 16520 | AI125: -18457 | AL125: 14047 | AN125: 101285 | AQ125: 14278 | AR125: 21.5 | AU125: 48069 | AV125: 126102 | AW125: 14 | AX125: 42420 | AY125: 2343 | AZ125: 3014 | BA125: 47777 | BB125: 36810 | BC125: 43 | BD125: 1018 | BE125: 564 | BF125: 67 | BG125: 8185 | BI125: 9580 | BJ125: 0 | BL125: -1395 | BM125: 0 | BN125: -1 | BO125: -10 | BP125: 23 | BQ125: -1381 | BS125: 14946 | BY125: 12555 | CA125: 112469 | CF125: 21.5 | CT125: -759 | CU125: -23728 | CV125: 86 | CW125: 2457 | CX125: 9
A126: 410 | B126: Laukaa | C126: 18927 | D126: 21.5 | G126: 42889 | H126: 147556 | I126: 0 | J126: 58865 | K126: 2511 | L126: 4754 | M126: 66130 | N126: 43733 | O126: 37 | P126: 168 | Q126: 770 | R126: 41 | S126: 5794 | U126: 9245 | V126: 0 | X126: -3451 | Y126: 86 | Z126: -15 | AA126: -40 | AB126: 0 | AD126: -3420 | AF126: -3820 | AI126: -17172 | AL126: 5705 | AN126: 128124 | AQ126: 18903 | AR126: 21.5 | AU126: 42665 | AV126: 149102 | AW126: 0 | AX126: 58865 | AY126: 2511 | AZ126: 4754 | BA126: 66130 | BB126: 45075 | BC126: 31 | BD126: 184 | BE126: 346 | BF126: 38 | BG126: 6373 | BI126: 10269 | BJ126: 0 | BL126: -3896 | BM126: -304 | BN126: 15 | BO126: -182 | BP126: 0 | BQ126: -4397 | BS126: -7842 | BY126: 11318 | CA126: 144610 | CF126: 21.5 | CT126: -1142 | CU126: -17162 | CV126: 58 | CW126: 1714 | CX126: 794
A127: 416 | B127: Lemi | C127: 3043 | D127: 21 | G127: 13688 | H127: 31018 | I127: 4 | J127: 9046 | K127: 421 | L127: 816 | M127: 10252 | N127: 6230 | O127: 1 | P127: 80 | Q127: 16 | R127: 3 | S127: -910 | U127: 1122 | V127: 0 | X127: -2032 | Y127: -5 | Z127: 0 | AA127: 0 | AB127: 0 | AD127: -2037 | AF127: -1859 | AI127: -1365 | AL127: 910 | AN127: 11297 | AQ127: 2971 | AR127: 21 | AU127: 14146 | AV127: 30746 | AW127: 2 | AX127: 9046 | AY127: 421 | AZ127: 816 | BA127: 10283 | BB127: 6728 | BC127: 1 | BD127: 138 | BE127: 27 | BF127: 5 | BG127: 275 | BI127: 1049 | BJ127: 154 | BL127: -620 | BM127: 2 | BN127: 0 | BO127: 0 | BP127: 0 | BQ127: -618 | BS127: -2272 | BY127: 357 | CA127: 12869 | CF127: 22 | CT127: -365 | CU127: -832 | CV127: 52 | CW127: 551 | CX127: 0
A128: 418 | B128: Lempäälä | C128: 23206 | D128: 20.5 | G128: 63439 | H128: 167347 | I128: 24 | J128: 82103 | K128: 4275 | L128: 5572 | M128: 91776 | N128: 22687 | O128: 22 | P128: 940 | Q128: 834 | R128: 98 | S128: 10397 | U128: 14504 | V128: 0 | X128: -4107 | Y128: 1 | Z128: -143 | AA128: -42 | AB128: -86 | AD128: -4377 | AF128: 16229 | AI128: -30953 | AL128: 7957 | AN128: 128938 | AQ128: 23523 | AR128: 20.5 | AU128: 68504 | AV128: 176656 | AW128: -13 | AX128: 82103 | AY128: 4275 | AZ128: 5572 | BA128: 91950 | BB128: 24037 | BC128: 21 | BD128: 884 | BE128: 785 | BF128: 45 | BG128: 12743 | BI128: 14761 | BJ128: 0 | BL128: -2018 | BM128: 0 | BN128: 130 | BO128: -105 | BP128: -85 | BQ128: -2338 | BS128: 13719 | BY128: 6318 | CA128: 154399 | CF128: 20.5 | CT128: -2715 | CU128: -42785 | CV128: 5735 | CW128: 2672 | CX128: -45
A129: 420 | B129: Leppävirta | C129: 9650 | D129: 21 | G129: 35387 | H129: 91930 | I129: 81 | J129: 29588 | K129: 2598 | L129: 2499 | M129: 34685 | N129: 25450 | O129: 39 | P129: 431 | Q129: 728 | R129: 230 | S129: 3779 | U129: 5428 | V129: -88 | X129: -1737 | Y129: 70 | Z129: -1 | AA129: -3 | AB129: -5 | AD129: -1676 | AF129: 3230 | AI129: -7499 | AL129: 6631 | AN129: 36290 | AQ129: 9454 | AR129: 21 | AU129: 35702 | AV129: 92644 | AW129: 59 | AX129: 29588 | AY129: 2598 | AZ129: 2499 | BA129: 34685 | BB129: 24657 | BC129: 49 | BD129: 359 | BE129: 802 | BF129: 85 | BG129: 2970 | BI129: 6047 | BJ129: -426 | BL129: -3503 | BM129: -148 | BN129: 11 | BO129: -5 | BP129: -27 | BQ129: -3694 | BS129: -92 | BY129: 6641 | CA129: 38177 | CF129: 21 | CT129: 409 | CU129: -5592 | CV129: 174 | CW129: 112 | CX129: 44
A130: 421 | B130: Lestijärvi | C130: 737 | D130: 21 | G130: 8595 | H130: 13815 | I130: 27 | J130: 1763 | K130: 384 | L130: 273 | M130: 2420 | N130: 2965 | O130: 6 | P130: 33 | Q130: 4 | R130: 6 | S130: 163 | U130: 616 | V130: 50 | X130: -403 | Y130: -38 | Z130: 0 | AA130: 2 | AB130: -1 | AD130: -440 | AF130: 2007 | AI130: -553 | AL130: 1369 | AN130: 3949 | AQ130: 719 | AR130: 21 | AU130: 8727 | AV130: 14151 | AW130: 27 | AX130: 1763 | AY130: 384 | AZ130: 273 | BA130: 2420 | BB130: 3107 | BC130: 5 | BD130: 33 | BE130: 6 | BF130: 2 | BG130: 67 | BI130: 811 | BJ130: 0 | BL130: -744 | BM130: -13 | BN130: 0 | BO130: 4 | BP130: -1 | BQ130: -754 | BS130: 1278 | BY130: 1795 | CA130: 5084 | CF130: 21 | CT130: -38 | CU130: -673 | CV130: 0 | CW130: 13 | CX130: -16
A131: 422 | B131: Lieksa | C131: 11098 | D131: 21 | G131: 70729 | H131: 139581 | I131: -2 | J131: 30785 | K131: 4483 | L131: 3277 | M131: 38403 | N131: 37374 | O131: 185 | P131: 577 | Q131: 573 | R131: 32 | S131: 7072 | U131: 6056 | V131: 0 | X131: 1016 | Y131: 1 | Z131: 0 | AA131: 51 | AB131: 0 | AD131: 1068 | AF131: 32996 | AI131: -6612 | AL131: 15235 | AN131: 37404 | AQ131: 10884 | AR131: 21 | AU131: 72866 | AV131: 141689 | AW131: -3 | AX131: 30785 | AY131: 4483 | AZ131: 3277 | BA131: 38545 | BB131: 37236 | BC131: 130 | BD131: 438 | BE131: 599 | BF131: 30 | BG131: 7076 | BI131: 6845 | BJ131: 0 | BL131: 231 | BM131: -8 | BN131: 9 | BO131: 29 | BP131: -7 | BQ131: 236 | BS131: 33019 | BY131: 13535 | CA131: 37381 | CF131: 21 | CT131: -339 | CU131: -10692 | CV131: 6 | CW131: 126 | CX131: 0
A132: 423 | B132: Lieto | C132: 19831 | D132: 19.5 | G132: 53617 | H132: 143266 | I132: 8 | J132: 67828 | K132: 3640 | L132: 3657 | M132: 75125 | N132: 21032 | O132: 14 | P132: 651 | Q132: 61 | R132: 8 | S132: 5932 | U132: 10014 | V132: 0 | X132: -4082 | Y132: 0 | Z132: 0 | AA132: -79 | AB132: -5 | AD132: -4166 | AF132: 5433 | AI132: -8820 | AL132: 9394 | AN132: 88511 | AQ132: 19994 | AR132: 19.5 | AU132: 52462 | AV132: 145349 | AW132: 23 | AX132: 67828 | AY132: 3640 | AZ132: 3657 | BA132: 75125 | BB132: 21943 | BC132: 13 | BD132: 706 | BE132: 78 | BF132: 8 | BG132: 7893 | BI132: 10154 | BJ132: 0 | BL132: -2261 | BM132: 0 | BN132: 0 | BO132: -51 | BP132: 0 | BQ132: -2312 | BS132: 3113 | BY132: 10971 | CA132: 92790 | CF132: 19.5 | CT132: -2225 | CU132: -12784 | CV132: 34 | CW132: 2951 | CX132: 1
A133: 425 | B133: Liminka | C133: 10161 | D133: 21.5 | G133: 21539 | H133: 73612 | I133: 1 | J133: 30159 | K133: 684 | L133: 1255 | M133: 32097 | N133: 26851 | O133: 27 | P133: 268 | Q133: 34 | R133: 10 | S133: 6659 | U133: 5422 | V133: 265 | X133: 1502 | Y133: -45 | Z133: -5 | AA133: -21 | AB133: 78 | AD133: 1509 | AF133: 30591 | AI133: -24316 | AL133: 7186 | AN133: 45432 | AQ133: 10191 | AR133: 21.5 | AU133: 25237 | AV133: 77325 | AW133: 2 | AX133: 30159 | AY133: 684 | AZ133: 1255 | BA133: 32098 | BB133: 24598 | BC133: 28 | BD133: 273 | BE133: 222 | BF133: 7 | BG133: 6225 | BI133: 6912 | BJ133: 383 | BL133: -304 | BM133: -2 | BN133: 8 | BO133: 0 | BP133: 13 | BQ133: -301 | BS133: 30291 | BY133: 9833 | CA133: 51178 | CF133: 21.5 | CT133: -902 | CU133: -11372 | CV133: 475 | CW133: 1459 | CX133: -26
A134: 426 | B134: Liperi | C134: 12145 | D134: 21.5 | G134: 59894 | H134: 122909 | I134: -20 | J134: 35753 | K134: 1338 | L134: 2397 | M134: 39488 | N134: 28846 | O134: 22 | P134: 454 | Q134: 347 | R134: 3 | S134: 5211 | U134: 4528 | V134: 0 | X134: 683 | Y134: 1 | Z134: -23 | AA134: -72 | AB134: -77 | AD134: 512 | AF134: 11789 | AI134: -5771 | AL134: 11309 | AN134: 49203 | AQ134: 12084 | AR134: 21.5 | AU134: 60169 | AV134: 125509 | AW134: -37 | AX134: 35753 | AY134: 1338 | AZ134: 2397 | BA134: 39488 | BB134: 28499 | BC134: 32 | BD134: 395 | BE134: 379 | BF134: 5 | BG134: 3882 | BI134: 4710 | BJ134: 0 | BL134: -828 | BM134: -4 | BN134: 12 | BO134: -67 | BP134: 4 | BQ134: -907 | BS134: 10762 | BY134: 8744 | CA134: 50434 | CF134: 21.5 | CT134: -405 | CU134: -5908 | CV134: 88 | CW134: 268 | CX134: -39
A135: 444 | B135: Lohja | C135: 46296 | D135: 20.5 | G135: 167376 | H135: 420848 | I135: 15 | J135: 168400 | K135: 6789 | L135: 13269 | M135: 188458 | N135: 79524 | O135: 133 | P135: 1987 | Q135: 812 | R135: 708 | S135: 12775 | U135: 25222 | V135: 0 | X135: -12447 | Y135: -20 | Z135: -223 | AA135: -2 | AB135: 24 | AD135: -12668 | AF135: 6080 | AI135: -33873 | AL135: 19140 | AN135: 222603 | AQ135: 45965 | AR135: 20.5 | AU135: 177542 | AV135: 429891 | AW135: 35 | AX135: 168400 | AY135: 6789 | AZ135: 13269 | BA135: 188458 | BB135: 79533 | BC135: 119 | BD135: 2458 | BE135: 1116 | BF135: 660 | BG135: 15424 | BI135: 24283 | BJ135: 0 | BL135: -8859 | BM135: -40 | BN135: 429 | BO135: -5 | BP135: -22 | BQ135: -9355 | BS135: -3088 | BY135: 18493 | CA135: 244962 | CF135: 20.5 | CT135: -979 | CU135: -48944 | CV135: 3011 | CW135: 11730 | CX135: 0
A136: 430 | B136: Loimaa | C136: 16032 | D136: 20.5 | G136: 70084 | H136: 167122 | I136: 6 | J136: 45814 | K136: 3300 | L136: 4163 | M136: 53278 | N136: 48729 | O136: 3 | P136: 517 | Q136: 72 | R136: 26 | S136: 4507 | U136: 8544 | V136: -62 | X136: -4099 | Y136: 0 | Z136: -184 | AA136: -44 | AB136: -356 | AD136: -4683 | AF136: 6476 | AI136: -5416 | AL136: 9180 | AN136: 54212 | AQ136: 15875 | AR136: 21 | AU136: 71318 | AV136: 167845 | AW136: 40 | AX136: 45814 | AY136: 3300 | AZ136: 4163 | BA136: 53277 | BB136: 48804 | BC136: 5 | BD136: 441 | BE136: 80 | BF136: 18 | BG136: 6326 | BI136: 7766 | BJ136: -827 | BL136: -2267 | BM136: 0 | BN136: 181 | BO136: -37 | BP136: -330 | BQ136: -2815 | BS136: 3630 | BY136: 12269 | CA136: 58054 | CF136: 21 | CT136: -283 | CU136: -6527 | CV136: 25 | CW136: 604 | CX136: 416
A137: 433 | B137: Loppi | C137: 7861 | D137: 21.5 | G137: 24931 | H137: 65632 | I137: -87 | J137: 24605 | K137: 1482 | L137: 2025 | M137: 28086 | N137: 15422 | O137: 3 | P137: 375 | Q137: 62 | R137: 5 | S137: 2405 | U137: 3060 | V137: 0 | X137: -655 | Y137: 1 | Z137: -1 | AA137: -28 | AB137: 0 | AD137: -683 | AF137: 12968 | AI137: -2479 | AL137: 3279 | AN137: 27988 | AQ137: 7828 | AR137: 21.5 | AU137: 24879 | AV137: 65892 | AW137: -59 | AX137: 24605 | AY137: 1482 | AZ137: 2025 | BA137: 28112 | BB137: 16123 | BC137: 6 | BD137: 362 | BE137: 43 | BF137: 3 | BG137: 3915 | BI137: 3150 | BJ137: 0 | BL137: 765 | BM137: 2 | BN137: 0 | BO137: 21 | BP137: -1 | BQ137: 787 | BS137: 13755 | BY137: 5319 | CA137: 29421 | CF137: 21.5 | CT137: -364 | CU137: -3141 | CV137: 84 | CW137: 425 | CX137: 4
A138: 434 | B138: Loviisa | C138: 14891 | D138: 19.75 | G138: 53875 | H138: 141448 | I138: 11857 | J138: 45706 | K138: 6689 | L138: 7605 | M138: 60000 | N138: 27357 | O138: 136 | P138: 391 | Q138: 1396 | R138: 141 | S138: 12641 | U138: 7341 | V138: -5 | X138: 5295 | Y138: -10 | Z138: -27 | AA138: -31 | AB138: -14 | AD138: 5213 | AF138: 15641 | AI138: -13258 | AL138: 9125 | AN138: 65431 | AQ138: 14772 | AR138: 19.75 | AU138: 55484 | AV138: 140789 | AW138: 4552 | AX138: 45706 | AY138: 6689 | AZ138: 7605 | BA138: 60000 | BB138: 24859 | BC138: 9 | BD138: 398 | BE138: 192 | BF138: 139 | BG138: 3062 | BI138: 8703 | BJ138: -260 | BL138: -5901 | BM138: -5 | BN138: 30 | BO138: -11 | BP138: -34 | BQ138: -5981 | BS138: 9680 | BY138: 12605 | CA138: 84874 | CF138: 20.25 | CT138: -4215 | CU138: -18551 | CV138: 78 | CW138: 3001 | CX138: -77
A139: 435 | B139: Luhanka | C139: 707 | D139: 18.5 | G139: 2621 | H139: 7452 | I139: 0 | J139: 1589 | K139: 284 | L139: 579 | M139: 2452 | N139: 2959 | O139: 20 | P139: 14 | Q139: 3 | R139: 102 | S139: 487 | U139: 357 | V139: 69 | X139: 199 | Y139: 0 | Z139: 0 | AA139: 0 | AB139: 0 | AD139: 199 | AF139: 2174 | AI139: -882 | AL139: 1408 | AN139: 3310 | AQ139: 690 | AR139: 18.5 | AU139: 2553 | AV139: 7929 | AW139: 0 | AX139: 1589 | AY139: 284 | AZ139: 579 | BA139: 2452 | BB139: 2789 | BC139: 11 | BD139: 24 | BE139: 31 | BF139: 2 | BG139: 71 | BI139: 361 | BJ139: -1111 | BL139: -1401 | BM139: 0 | BN139: 0 | BO139: 0 | BP139: -2 | BQ139: -1403 | BS139: 776 | BY139: 1247 | CA139: 3865 | CF139: 18.5 | CT139: 1130 | CU139: -575 | CV139: 1 | CW139: 29 | CX139: 0
A140: 436 | B140: Lumijoki | C140: 2052 | D140: 21 | G140: 5172 | H140: 16090 | I140: -18 | J140: 5255 | K140: 159 | L140: 290 | M140: 5692 | N140: 6682 | O140: 2 | P140: 72 | Q140: 11 | R140: 6 | S140: 1373 | U140: 1289 | V140: 90 | X140: 174 | Y140: -11 | Z140: -7 | AA140: -16 | AB140: 10 | AD140: 150 | AF140: 1147 | AI140: -2063 | AL140: 1050 | AN140: 9339 | AQ140: 2020 | AR140: 21 | AU140: 4962 | AV140: 16175 | AW140: 36 | AX140: 5255 | AY140: 159 | AZ140: 290 | BA140: 5704 | BB140: 6737 | BC140: 3 | BD140: 58 | BE140: 12 | BF140: 6 | BG140: 1421 | BI140: 1025 | BJ140: 0 | BL140: 396 | BM140: -1 | BN140: 6 | BO140: -12 | BP140: 18 | BQ140: 395 | BS140: 1542 | BY140: 1729 | CA140: 9239 | CF140: 21 | CT140: -82 | CU140: -1195 | CV140: 0 | CW140: 41 | CX140: 0
A141: 440 | B141: Luoto | C141: 5340 | D141: 19.5 | G141: 9706 | H141: 35420 | I141: 0 | J141: 13671 | K141: 352 | L141: 1032 | M141: 15056 | N141: 13350 | O141: 111 | P141: 30 | Q141: 215 | R141: 592 | S141: 2396 | U141: 2261 | V141: -2 | X141: 133 | Y141: 94 | Z141: -24 | AA141: 0 | AB141: 0 | AD141: 203 | AF141: 17505 | AI141: -5314 | AL141: 12094 | AN141: 41322 | AQ141: 5417 | AR141: 19.5 | AU141: 10002 | AV141: 37482 | AW141: 0 | AX141: 13671 | AY141: 352 | AZ141: 1032 | BA141: 15055 | BB141: 13142 | BC141: 118 | BD141: 38 | BE141: 329 | BF141: 511 | BG141: 1329 | BI141: 2599 | BJ141: -2 | BL141: -1272 | BM141: 65 | BN141: 13 | BO141: 0 | BP141: 0 | BQ141: -1220 | BS141: 16225 | BY141: 13033 | CA141: 43022 | CF141: 19.5 | CT141: 132 | CU141: -3074 | CV141: 191 | CW141: 250 | CX141: -4
A142: 441 | B142: Luumäki | C142: 4662 | D142: 20.5 | G142: 23540 | H142: 51657 | I142: -40 | J142: 12822 | K142: 1513 | L142: 1966 | M142: 16301 | N142: 12016 | O142: 109 | P142: 155 | Q142: 578 | R142: 426 | S142: 266 | U142: 3297 | V142: 0 | X142: -3031 | Y142: 3 | Z142: 0 | AA142: -11 | AB142: 1 | AD142: -3038 | AF142: 15904 | AI142: -3962 | AL142: 13819 | AN142: 19697 | AQ142: 4636 | AR142: 20.5 | AU142: 23878 | AV142: 52358 | AW142: -45 | AX142: 12822 | AY142: 1513 | AZ142: 1966 | BA142: 16301 | BB142: 12390 | BC142: 32 | BD142: 109 | BE142: 1350 | BF142: 82 | BG142: 1843 | BI142: 3500 | BJ142: 262 | BL142: -1395 | BM142: 7 | BN142: 0 | BO142: -13 | BP142: 31 | BQ142: -1370 | BS142: 14473 | BY142: 10399 | CA142: 19676 | CF142: 20.5 | CT142: -1183 | CU142: -4313 | CV142: 329 | CW142: 439 | CX142: 0
A143: 475 | B143: Maalahti | C143: 5477 | D143: 21.5 | G143: 23754 | H143: 56751 | I143: -9 | J143: 16592 | K143: 1085 | L143: 1416 | M143: 19062 | N143: 16446 | O143: 6 | P143: 148 | Q143: 49 | R143: 36 | S143: 2373 | U143: 2852 | V143: 0 | X143: -479 | Y143: 11 | Z143: -19 | AA143: 0 | AB143: 15 | AD143: -472 | AF143: 5184 | AI143: -6100 | AL143: 1696 | AN143: 29590 | AQ143: 5475 | AR143: 21.5 | AU143: 24533 | AV143: 58923 | AW143: -10 | AX143: 16592 | AY143: 1085 | AZ143: 1416 | BA143: 19093 | BB143: 16116 | BC143: 5 | BD143: 157 | BE143: 74 | BF143: 28 | BG143: 1726 | BI143: 2978 | BJ143: 0 | BL143: -1252 | BM143: 9 | BN143: 24 | BO143: 4 | BP143: -1 | BQ143: -1264 | BS143: 4052 | BY143: 1631 | CA143: 35858 | CF143: 21.5 | CT143: -54 | CU143: -8452 | CV143: 265 | CW143: 152 | CX143: -8
A144: 480 | B144: Marttila | C144: 2018 | D144: 20.75 | G144: 6415 | H144: 16416 | I144: 0 | J144: 5592 | K144: 309 | L144: 342 | M144: 6243 | N144: 4505 | O144: 3 | P144: 38 | Q144: 4 | R144: 1 | S144: 715 | U144: 710 | V144: 0 | X144: 5 | Y144: 7 | Z144: 0 | AA144: 0 | AB144: 0 | AD144: 12 | AF144: 3499 | AI144: -266 | AL144: 817 | AN144: 3098 | AQ144: 2013 | AR144: 20.75 | AU144: 6488 | AV144: 16995 | AW144: 0 | AX144: 5592 | AY144: 309 | AZ144: 342 | BA144: 6243 | BB144: 4534 | BC144: 3 | BD144: 35 | BE144: 5 | BF144: 1 | BG144: 670 | BI144: 702 | BJ144: 0 | BL144: -32 | BM144: 4 | BN144: 0 | BO144: 0 | BP144: 0 | BQ144: -28 | BS144: 3481 | BY144: 2204 | CA144: 4084 | CF144: 20.75 | CT144: -3 | CU144: -676 | CV144: 40 | CW144: 18 | CX144: 0
A145: 481 | B145: Masku | C145: 9554 | D145: 20.75 | G145: 33154 | H145: 79578 | I145: 2 | J145: 36887 | K145: 1554 | L145: 1888 | M145: 40329 | N145: 9194 | O145: 1 | P145: 171 | Q145: 84 | R145: 29 | S145: 2986 | U145: 3983 | V145: 0 | X145: -997 | Y145: 0 | Z145: -8 | AA145: 24 | AB145: 6 | AD145: -975 | AF145: -545 | AI145: -8702 | AL145: 4836 | AN145: 47417 | AQ145: 9534 | AR145: 20.75 | AU145: 34500 | AV145: 81265 | AW145: 13 | AX145: 36887 | AY145: 1554 | AZ145: 1888 | BA145: 40329 | BB145: 8965 | BC145: 6 | BD145: 207 | BE145: 103 | BF145: 12 | BG145: 2418 | BI145: 3977 | BJ145: 0 | BL145: -1559 | BM145: 0 | BN145: 0 | BO145: 0 | BP145: 0 | BQ145: -1559 | BS145: -1221 | BY145: 6347 | CA145: 56308 | CF145: 20.75 | CT145: -696 | CU145: -7434 | CV145: 13 | CW145: 1197 | CX145: 0
A146: 483 | B146: Merijärvi | C146: 1104 | D146: 21.5 | G146: 4465 | H146: 11361 | I146: 12 | J146: 2126 | K146: 121 | L146: 332 | M146: 2578 | N146: 4493 | O146: 1 | P146: 23 | Q146: 167 | R146: 112 | S146: 220 | U146: 579 | V146: 77 | X146: -282 | Y146: -1 | Z146: 0 | AA146: -1 | AB146: 0 | AD146: -284 | AF146: 2496 | AI146: -1326 | AL146: 3032 | AN146: 3959 | AQ146: 1089 | AR146: 22 | AU146: 4599 | AV146: 12031 | AW146: 51 | AX146: 2126 | AY146: 121 | AZ146: 332 | BA146: 2579 | BB146: 4484 | BC146: 1 | BD146: 23 | BE146: 99 | BF146: 46 | BG146: -117 | BI146: 614 | BJ146: 0 | BL146: -731 | BM146: 3 | BN146: 0 | BO146: 0 | BP146: 0 | BQ146: -728 | BS146: 1763 | BY146: 3187 | CA146: 4762 | CF146: 22 | CT146: -74 | CU146: -579 | CV146: 10 | CW146: 56 | CX146: 2
A147: 484 | B147: Merikarvia | C147: 3115 | D147: 19.5 | G147: 11006 | H147: 32134 | I147: -8 | J147: 7459 | K147: 817 | L147: 1010 | M147: 9286 | N147: 11723 | O147: 1 | P147: 18 | Q147: 44 | R147: 13 | S147: -113 | U147: 1631 | V147: 0 | X147: -1744 | Y147: -28 | Z147: 0 | AA147: 0 | AB147: 0 | AD147: -1772 | AF147: 4510 | AI147: -1727 | AL147: 2434 | AN147: 2395 | AQ147: 3067 | AR147: 20.5 | AU147: 11415 | AV147: 32354 | AW147: 1 | AX147: 7459 | AY147: 817 | AZ147: 1010 | BA147: 9286 | BB147: 11582 | BC147: 29 | BD147: 15 | BE147: 91 | BF147: 3 | BG147: 758 | BI147: 1698 | BJ147: 0 | BL147: -940 | BM147: -90 | BN147: 1 | BO147: 0 | BP147: 1 | BQ147: -1030 | BS147: 3606 | BY147: 2250 | CA147: 4891 | CF147: 20.5 | CT147: -35 | CU147: -3375 | CV147: 270 | CW147: 160 | CX147: 9
A148: 489 | B148: Miehikkälä | C148: 1940 | D148: 20 | G148: 14853 | H148: 27376 | I148: 1 | J148: 4349 | K148: 777 | L148: 490 | M148: 5617 | N148: 7887 | O148: 13 | P148: 46 | Q148: 17 | R148: 140 | S148: 826 | U148: 1320 | V148: 0 | X148: -494 | Y148: -9 | Z148: 0 | AA148: -12 | AB148: 0 | AD148: -515 | AF148: 5336 | AI148: -1051 | AL148: 2693 | AN148: 9278 | AQ148: 1857 | AR148: 20.5 | AU148: 11533 | AV148: 23844 | AW148: -4 | AX148: 4349 | AY148: 777 | AZ148: 490 | BA148: 5616 | BB148: 7857 | BC148: 16 | BD148: 39 | BE148: 23 | BF148: 3 | BG148: 1421 | BI148: 1251 | BJ148: 0 | BL148: 170 | BM148: -5 | BN148: 0 | BO148: -13 | BP148: 0 | BQ148: 152 | BS148: 5487 | BY148: 3437 | CA148: 11278 | CF148: 20.5 | CT148: -11 | CU148: -1147 | CV148: 38 | CW148: -16 | CX148: 0
A149: 491 | B149: Mikkeli | C149: 53818 | D149: 20.5 | G149: 266352 | H149: 561229 | I149: -78 | J149: 167523 | K149: 13164 | L149: 19147 | M149: 197629 | N149: 136843 | O149: 612 | P149: 4330 | Q149: 1147 | R149: 1870 | S149: 35076 | U149: 46197 | V149: 144 | X149: -10977 | Y149: 0 | Z149: -1042 | AA149: -595 | AB149: 253 | AD149: -12361 | AF149: 47738 | AI149: -68279 | AL149: 29848 | AN149: 523530 | AQ149: 53134 | AR149: 20.5 | AU149: 277059 | AV149: 579313 | AW149: -552 | AX149: 167523 | AY149: 13164 | AZ149: 19147 | BA149: 199834 | BB149: 141236 | BC149: 750 | BD149: 4477 | BE149: 3713 | BF149: 3191 | BG149: 37349 | BI149: 50093 | BJ149: 0 | BL149: -12744 | BM149: 0 | BN149: 969 | BO149: -923 | BP149: 11 | BQ149: -14625 | BS149: 20388 | BY149: 28228 | CA149: 581069 | CF149: 22 | CT149: -5524 | CU149: -101631 | CV149: 2568 | CW149: 10757 | CX149: 726
A150: 494 | B150: Muhos | C150: 8980 | D150: 21 | G150: 32609 | H150: 86278 | I150: 38 | J150: 25620 | K150: 782 | L150: 3680 | M150: 30082 | N150: 27467 | O150: 31 | P150: 421 | Q150: 66 | R150: 12 | S150: 3582 | U150: 4828 | V150: 483 | X150: -763 | Y150: -50 | Z150: -2 | AA150: -4 | AB150: -3 | AD150: -822 | AF150: 3132 | AI150: -3748 | AL150: 6147 | AN150: 47543 | AQ150: 8908 | AR150: 21.5 | AU150: 33022 | AV150: 87574 | AW150: 41 | AX150: 25620 | AY150: 782 | AZ150: 3680 | BA150: 30082 | BB150: 27687 | BC150: 24 | BD150: 388 | BE150: 24 | BF150: 6 | BG150: 3701 | BI150: 5095 | BJ150: 0 | BL150: -1394 | BM150: -6 | BN150: 2 | BO150: -2 | BP150: -1 | BQ150: -1405 | BS150: 1609 | BY150: 4828 | CA150: 55080 | CF150: 21 | CT150: -278 | CU150: -13016 | CV150: 99 | CW150: 364 | CX150: 0
A151: 495 | B151: Multia | C151: 1584 | D151: 22 | G151: 5658 | H151: 16182 | I151: 0 | J151: 3890 | K151: 1086 | L151: 403 | M151: 5379 | N151: 5778 | O151: 7 | P151: 11 | Q151: 11 | R151: 57 | S151: 583 | U151: 651 | V151: 0 | X151: -68 | Y151: 12 | Z151: 0 | AA151: 0 | AB151: -1 | AD151: -57 | AF151: 1112 | AI151: -1234 | AL151: 1756 | AN151: 3356 | AQ151: 1566 | AR151: 22 | AU151: 5936 | AV151: 18580 | AW151: 0 | AX151: 3890 | AY151: 1086 | AZ151: 403 | BA151: 5379 | BB151: 5834 | BC151: 4 | BD151: 8 | BE151: 11 | BF151: 4 | BG151: -1160 | BI151: 865 | BJ151: 0 | BL151: -2025 | BM151: -1 | BN151: 0 | BO151: 0 | BP151: -23 | BQ151: -2049 | BS151: -851 | BY151: 2068 | CA151: 4275 | CF151: 22 | CT151: 1539 | CU151: -1553 | CV151: 2 | CW151: 434 | CX151: 0
A152: 498 | B152: Muonio | C152: 2299 | D152: 21.5 | G152: 8627 | H152: 25127 | I152: 0 | J152: 6997 | K152: 705 | L152: 948 | M152: 8650 | N152: 9228 | O152: 3 | P152: 80 | Q152: 17 | R152: 13 | S152: 1305 | U152: 1373 | V152: 9 | X152: -59 | Y152: 34 | Z152: 0 | AA152: 5 | AB152: 0 | AD152: -20 | AF152: 738 | AI152: -1065 | AL152: 1229 | AN152: 8900 | AQ152: 2308 | AR152: 21.5 | AU152: 8725 | AV152: 26117 | AW152: 0 | AX152: 6997 | AY152: 705 | AZ152: 948 | BA152: 8650 | BB152: 9166 | BC152: 2 | BD152: 50 | BE152: 14 | BF152: 14 | BG152: 582 | BI152: 1405 | BJ152: 0 | BL152: -823 | BM152: 59 | BN152: 0 | BO152: 0 | BP152: 0 | BQ152: -764 | BS152: -102 | BY152: 1575 | CA152: 9700 | CF152: 21.5 | CT152: -8 | CU152: -1091 | CV152: 45 | CW152: 11 | CX152: 25
A153: 499 | B153: Mustasaari | C153: 19444 | D153: 20.75 | G153: 56879 | H153: 157487 | I153: 272 | J153: 68348 | K153: 2430 | L153: 4579 | M153: 75323 | N153: 31855 | O153: 3 | P153: 525 | Q153: 158 | R153: 66 | S153: 6412 | U153: 9524 | V153: 0 | X153: -3112 | Y153: 24 | Z153: -31 | AA153: -32 | AB153: 16 | AD153: -3135 | AF153: 8212 | AI153: -25739 | AL153: 7688 | AN153: 95233 | AQ153: 19448 | AR153: 20.75 | AU153: 60090 | AV153: 161850 | AW153: 236 | AX153: 68348 | AY153: 2430 | AZ153: 4579 | BA153: 75357 | BB153: 33143 | BC153: 4 | BD153: 579 | BE153: 268 | BF153: 68 | BG153: 8147 | BI153: 10042 | BJ153: 0 | BL153: -1895 | BM153: 19 | BN153: 11 | BO153: -3 | BP153: 33 | BQ153: -1857 | BS153: 6583 | BY153: 6757 | CA153: 113515 | CF153: 20.75 | CT153: -1255 | CU153: -28827 | CV153: 2315 | CW153: 1484 | CX153: -20
A154: 500 | B154: Muurame | C154: 10170 | D154: 19.5 | G154: 24135 | H154: 70576 | I154: -52 | J154: 35053 | K154: 2139 | L154: 2212 | M154: 39403 | N154: 13256 | O154: 38 | P154: 355 | Q154: 385 | R154: 20 | S154: 6214 | U154: 6128 | V154: 0 | X154: 86 | Y154: -1 | Z154: -34 | AA154: -43 | AB154: 0 | AD154: 8 | AF154: 4734 | AI154: -5711 | AL154: 2264 | AN154: 48713 | AQ154: 10164 | AR154: 19.5 | AU154: 24636 | AV154: 73066 | AW154: -69 | AX154: 35053 | AY154: 2139 | AZ154: 2212 | BA154: 39404 | BB154: 13387 | BC154: 45 | BD154: 299 | BE154: 172 | BF154: 20 | BG154: 4838 | BI154: 5831 | BJ154: 0 | BL154: -993 | BM154: 1 | BN154: 51 | BO154: -84 | BP154: 0 | BQ154: -1127 | BS154: 3826 | BY154: 2977 | CA154: 51482 | CF154: 19.5 | CT154: -1074 | CU154: -8627 | CV154: 289 | CW154: 1514 | CX154: -1
A155: 503 | B155: Mynämäki | C155: 7766 | D155: 21 | G155: 36947 | H155: 81233 | I155: 26 | J155: 24650 | K155: 1053 | L155: 1593 | M155: 27296 | N155: 17019 | O155: 16 | P155: 173 | Q155: 49 | R155: 14 | S155: -67 | U155: 3180 | V155: 0 | X155: -3247 | Y155: 53 | Z155: -11 | AA155: 0 | AB155: 7 | AD155: -3198 | AF155: 23 | AI155: -3791 | AL155: 5860 | AN155: 25039 | AQ155: 7654 | AR155: 21 | AU155: 40317 | AV155: 84556 | AW155: 38 | AX155: 24650 | AY155: 1053 | AZ155: 1593 | BA155: 27296 | BB155: 15107 | BC155: 1 | BD155: 175 | BE155: 94 | BF155: 18 | BG155: -2170 | BI155: 9141 | BJ155: 0 | BL155: -11311 | BM155: 0 | BN155: 0 | BO155: 3 | BP155: -12 | BQ155: -11320 | BS155: -11481 | BY155: 4504 | CA155: 34954 | CF155: 21.25 | CT155: -158 | CU155: -8783 | CV155: 13 | CW155: 882 | CX155: 0
A156: 504 | B156: Myrskylä | C156: 1922 | D156: 21.5 | G156: 8544 | H156: 19194 | I156: 4 | J156: 5582 | K156: 441 | L156: 394 | M156: 6417 | N156: 4770 | O156: 0 | P156: 33 | Q156: 292 | R156: 4 | S156: 796 | U156: 659 | V156: 18 | X156: 155 | Y156: -1 | Z156: 0 | AA156: -1 | AB156: 5 | AD156: 158 | AF156: 1519 | AI156: -132 | AL156: 1474 | AN156: 2216 | AQ156: 1882 | AR156: 21.5 | AU156: 8678 | AV156: 19284 | AW156: -5 | AX156: 5582 | AY156: 441 | AZ156: 394 | BA156: 6417 | BB156: 4691 | BC156: 0 | BD156: 28 | BE156: 297 | BF156: 3 | BG156: 943 | BI156: 609 | BJ156: 0 | BL156: 334 | BM156: 0 | BN156: 0 | BO156: 0 | BP156: -1 | BQ156: 333 | BS156: 1919 | BY156: 1671 | CA156: 2152 | CF156: 21.5 | CT156: -10 | CU156: -1102 | CV156: 0 | CW156: 172 | CX156: 2
A157: 505 | B157: Mäntsälä | C157: 20686 | D157: 20.5 | G157: 163168 | H157: 260462 | I157: -8 | J157: 69917 | K157: 2753 | L157: 6954 | M157: 79438 | N157: 31659 | O157: 49 | P157: 1694 | Q157: 160 | R157: 154 | S157: 12156 | U157: 14439 | V157: 0 | X157: -2283 | Y157: -7 | Z157: -16 | AA157: 215 | AB157: -50 | AD157: -2141 | AF157: 30528 | AI157: -29300 | AL157: 14920 | AN157: 173714 | AQ157: 20721 | AR157: 20.5 | AU157: 142437 | AV157: 249308 | AW157: 10 | AX157: 69917 | AY157: 2753 | AZ157: 6954 | BA157: 79624 | BB157: 32517 | BC157: 117 | BD157: 1587 | BE157: 183 | BF157: 368 | BG157: 7451 | BI157: 15081 | BJ157: 0 | BL157: -7630 | BM157: 0 | BN157: 23 | BO157: 256 | BP157: 6 | BQ157: -7391 | BS157: 23137 | BY157: 17811 | CA157: 193528 | CF157: 20.5 | CT157: -2079 | CU157: -27316 | CV157: 322 | CW157: 4910 | CX157: -209
A158: 508 | B158: Mänttä-Vilppula | C158: 9983 | D158: 22 | G158: 63493 | H158: 129382 | I158: 33 | J158: 34122 | K158: 2046 | L158: 3145 | M158: 39314 | N158: 31202 | O158: 20 | P158: 805 | Q158: 759 | R158: 208 | S158: 4426 | U158: 6221 | V158: 0 | X158: -1795 | Y158: 1 | Z158: -102 | AA158: 32 | AB158: -155 | AD158: -2019 | AF158: 4082 | AI158: -3515 | AL158: 8722 | AN158: 63673 | AQ158: 9855 | AR158: 22 | AU158: 64945 | AV158: 130945 | AW158: 28 | AX158: 34122 | AY158: 2046 | AZ158: 3145 | BA158: 39313 | BB158: 30354 | BC158: 20 | BD158: 762 | BE158: 1897 | BF158: 177 | BG158: 4861 | BI158: 5928 | BJ158: 0 | BL158: -1067 | BM158: 0 | BN158: 87 | BO158: 42 | BP158: -166 | BQ158: -1278 | BS158: 2028 | BY158: 20367 | CA158: 77848 | CF158: 22 | CT158: -2343 | CU158: -6809 | CV158: 118 | CW158: 125 | CX158: -13
A159: 507 | B159: Mäntyharju | C159: 5924 | D159: 19.75 | G159: 33385 | H159: 69219 | I159: 10 | J159: 15855 | K159: 2818 | L159: 2232 | M159: 20906 | N159: 17999 | O159: 9 | P159: 216 | Q159: 267 | R159: 41 | S159: 3100 | U159: 3175 | V159: 19 | X159: -56 | Y159: 3 | Z159: 0 | AA159: 10 | AB159: -1 | AD159: -44 | AF159: 6731 | AI159: -3870 | AL159: 2295 | AN159: 27248 | AQ159: 5791 | AR159: 19.75 | AU159: 33170 | AV159: 71517 | AW159: 19 | AX159: 15855 | AY159: 2818 | AZ159: 2232 | BA159: 20905 | BB159: 17950 | BC159: 7 | BD159: 256 | BE159: 393 | BF159: 13 | BG159: 569 | BI159: 3033 | BJ159: 0 | BL159: -2464 | BM159: 3 | BN159: 0 | BO159: 0 | BP159: 0 | BQ159: -2461 | BS159: 3682 | BY159: 4984 | CA159: 30628 | CF159: 20.25 | CT159: -47 | CU159: -6689 | CV159: 284 | CW159: 89 | CX159: 173
A160: 529 | B160: Naantali | C160: 19245 | D160: 19 | G160: 78967 | H160: 162728 | I160: 14 | J160: 74124 | K160: 8840 | L160: 6600 | M160: 89563 | N160: 14306 | O160: 146 | P160: 1074 | Q160: 968 | R160: 23 | S160: 20139 | U160: 13197 | V160: 0 | X160: 6942 | Y160: 0 | Z160: -381 | AA160: -291 | AB160: -2 | AD160: 6268 | AF160: 71651 | AI160: -16832 | AL160: 13055 | AN160: 69559 | AQ160: 19314 | AR160: 19 | AU160: 82771 | AV160: 170132 | AW160: 37 | AX160: 74124 | AY160: 8840 | AZ160: 6600 | BA160: 89564 | BB160: 15447 | BC160: 144 | BD160: 1015 | BE160: 1388 | BF160: 25 | BG160: 19393 | BI160: 14391 | BJ160: 413 | BL160: 5415 | BM160: 0 | BN160: 339 | BO160: -252 | BP160: 3 | BQ160: 4827 | BS160: 62472 | BY160: 9872 | CA160: 65443 | CF160: 19 | CT160: -3244 | CU160: -22053 | CV160: 109 | CW160: 4933 | CX160: 457
A161: 531 | B161: Nakkila | C161: 5437 | D161: 21.25 | G161: 20875 | H161: 50355 | I161: -1 | J161: 17362 | K161: 574 | L161: 1405 | M161: 19341 | N161: 12982 | O161: 2 | P161: 87 | Q161: 125 | R161: 12 | S161: 2870 | U161: 1996 | V161: 0 | X161: 874 | Y161: 0 | Z161: 9 | AA161: 0 | AB161: 16 | AD161: 899 | AF161: 3789 | AI161: -6061 | AL161: 6465 | AN161: 12443 | AQ161: 5329 | AR161: 21.25 | AU161: 21457 | AV161: 52430 | AW161: 0 | AX161: 17362 | AY161: 574 | AZ161: 1405 | BA161: 19341 | BB161: 13021 | BC161: 2 | BD161: 96 | BE161: 106 | BF161: 8 | BG161: 1482 | BI161: 2337 | BJ161: 0 | BL161: -855 | BM161: 0 | BN161: 19 | BO161: -11 | BP161: 5 | BQ161: -880 | BS161: 2577 | BY161: 5930 | CA161: 13091 | CF161: 21.25 | CT161: -61 | CU161: -1795 | CV161: 20 | CW161: 34 | CX161: 0
A162: 535 | B162: Nivala | C162: 10737 | D162: 21.5 | G162: 65748 | H162: 130564 | I162: 40 | J162: 27573 | K162: 1130 | L162: 2476 | M162: 30941 | N162: 41943 | O162: 186 | P162: 719 | Q162: 731 | R162: 507 | S162: 7799 | U162: 6809 | V162: 426 | X162: 1416 | Y162: 498 | Z162: -54 | AA162: 240 | AB162: 9 | AD162: 2109 | AF162: 16483 | AI162: -12607 | AL162: 30287 | AN162: 100419 | AQ162: 10639 | AR162: 22 | AU162: 68936 | AV162: 136051 | AW162: -37 | AX162: 27573 | AY162: 1130 | AZ162: 2476 | BA162: 31179 | BB162: 41881 | BC162: 191 | BD162: 677 | BE162: 476 | BF162: 656 | BG162: 7899 | BI162: 6682 | BJ162: 0 | BL162: 1217 | BM162: -164 | BN162: 35 | BO162: 176 | BP162: 1 | BQ162: 1195 | BS162: 17333 | BY162: 31589 | CA162: 102674 | CF162: 22 | CT162: -135 | CU162: -8999 | CV162: 497 | CW162: 211 | CX162: 0
A163: 536 | B163: Nokia | C163: 33527 | D163: 20.5 | G163: 96109 | H163: 251425 | I163: 16 | J163: 118109 | K163: 8837 | L163: 8942 | M163: 135598 | N163: 39829 | O163: 72 | P163: 1229 | Q163: 1422 | R163: 515 | S163: 19877 | U163: 20698 | V163: 0 | X163: -821 | Y163: 1 | Z163: -351 | AA163: -73 | AB163: -179 | AD163: -1423 | AF163: 7778 | AI163: -18351 | AL163: 40926 | AN163: 144253 | AQ163: 33929 | AR163: 20.5 | AU163: 99426 | AV163: 260345 | AW163: 86 | AX163: 118109 | AY163: 8837 | AZ163: 8942 | BA163: 135888 | BB163: 38787 | BC163: 61 | BD163: 1295 | BE163: 1250 | BF163: 453 | BG163: 15878 | BI163: 20062 | BJ163: 0 | BL163: -4184 | BM163: 0 | BN163: 242 | BO163: -79 | BP163: -166 | BQ163: -4671 | BS163: 3049 | BY163: 38337 | CA163: 149897 | CF163: 21 | CT163: -2233 | CU163: -31162 | CV163: 2174 | CW163: 1847 | CX163: -8
A164: 538 | B164: Nousiainen | C164: 4733 | D164: 21.5 | G164: 20199 | H164: 45671 | I164: 1 | J164: 16500 | K164: 428 | L164: 858 | M164: 17787 | N164: 8704 | O164: 1 | P164: 96 | Q164: 24 | R164: 71 | S164: 878 | U164: 2250 | V164: 0 | X164: -1372 | Y164: 0 | Z164: 0 | AA164: 0 | AB164: -1 | AD164: -1373 | AF164: 584 | AI164: -1590 | AL164: 931 | AN164: 10912 | AQ164: 4715 | AR164: 21.5 | AU164: 20854 | AV164: 46797 | AW164: 8 | AX164: 16500 | AY164: 428 | AZ164: 858 | BA164: 17786 | BB164: 8820 | BC164: 4 | BD164: 88 | BE164: 21 | BF164: 71 | BG164: 258 | BI164: 1683 | BJ164: 0 | BL164: -1425 | BM164: 0 | BN164: 0 | BO164: 0 | BP164: 0 | BQ164: -1425 | BS164: -762 | BY164: 1831 | CA164: 14286 | CF164: 21.5 | CT164: -95 | CU164: -3581 | CV164: 230 | CW164: 128 | CX164: 0
A165: 541 | B165: Nurmes | C165: 7641 | D165: 20.5 | G165: 51113 | H165: 97013 | I165: 1 | J165: 19247 | K165: 2691 | L165: 1681 | M165: 23619 | N165: 29747 | O165: 58 | P165: 293 | Q165: 352 | R165: 11 | S165: 7573 | U165: 5987 | V165: -9 | X165: 1577 | Y165: -35 | Z165: -40 | AA165: -5 | AB165: 55 | AD165: 1552 | AF165: 25362 | AI165: -8916 | AL165: 9026 | AN165: 19279 | AQ165: 7455 | AR165: 20.5 | AU165: 51923 | AV165: 99689 | AW165: -1 | AX165: 19247 | AY165: 2691 | AZ165: 1681 | BA165: 23619 | BB165: 29252 | BC165: 68 | BD165: 212 | BE165: 376 | BF165: 8 | BG165: 5733 | BI165: 6374 | BJ165: 0 | BL165: -641 | BM165: -40 | BN165: 59 | BO165: -4 | BP165: -16 | BQ165: -760 | BS165: 24484 | BY165: 8690 | CA165: 25373 | CF165: 20.5 | CT165: -199 | CU165: -11751 | CV165: 252 | CW165: 50 | CX165: 104
A166: 543 | B166: Nurmijärvi | C166: 42665 | D166: 19.5 | G166: 250158 | H166: 444329 | I166: -15 | J166: 166166 | K166: 7631 | L166: 9376 | M166: 183173 | N166: 33115 | O166: 48 | P166: 1974 | Q166: 1425 | R166: 714 | S166: 20887 | U166: 28237 | V166: 0 | X166: -7350 | Y166: -13 | Z166: -1158 | AA166: -382 | AB166: 5 | AD166: -8898 | AF166: 84943 | AI166: -47205 | AL166: 52732 | AN166: 264941 | AQ166: 42993 | AR166: 19.5 | AU166: 246360 | AV166: 451875 | AW166: 19 | AX166: 166166 | AY166: 7631 | AZ166: 9376 | BA166: 183173 | BB166: 35375 | BC166: 58 | BD166: 1429 | BE166: 909 | BF166: 253 | BG166: 18892 | BI166: 28762 | BJ166: 0 | BL166: -9870 | BM166: 0 | BN166: 1379 | BO166: -344 | BP166: 29 | BQ166: -11564 | BS166: 73382 | BY166: 53871 | CA166: 320846 | CF166: 19.75 | CT166: -2657 | CU166: -91810 | CV166: 600 | CW166: 22092 | CX166: 273
A167: 545 | B167: Närpiö | C167: 9471 | D167: 21 | G167: 31220 | H167: 84137 | I167: 0 | J167: 24902 | K167: 2682 | L167: 3002 | M167: 30587 | N167: 29249 | O167: 438 | P167: 738 | Q167: 1234 | R167: 412 | S167: 7441 | U167: 5644 | V167: 0 | X167: 1797 | Y167: 0 | Z167: -35 | AA167: -37 | AB167: -4 | AD167: 1721 | AF167: 20331 | AI167: -14163 | AL167: 23822 | AN167: 48811 | AQ167: 9479 | AR167: 21 | AU167: 33095 | AV167: 88304 | AW167: 0 | AX167: 24902 | AY167: 2682 | AZ167: 3002 | BA167: 30586 | BB167: 30358 | BC167: 426 | BD167: 634 | BE167: 1222 | BF167: 391 | BG167: 7613 | BI167: 5692 | BJ167: -3 | BL167: 1918 | BM167: 0 | BN167: 104 | BO167: -36 | BP167: -6 | BQ167: 1772 | BS167: 22183 | BY167: 21864 | CA167: 58549 | CF167: 21 | CT167: -348 | CU167: -19690 | CV167: 2361 | CW167: 252 | CX167: -16
A168: 560 | B168: Orimattila | C168: 16091 | D168: 20.75 | G168: 82597 | H168: 162794 | I168: 0 | J168: 48357 | K168: 2368 | L168: 4318 | M168: 55043 | N168: 31875 | O168: 14 | P168: 640 | Q168: 1616 | R168: 30 | S168: 7681 | U168: 8414 | V168: 482 | X168: -251 | Y168: 0 | Z168: -103 | AA168: -135 | AB168: -131 | AD168: -620 | AF168: 16497 | AI168: -15353 | AL168: 13556 | AN168: 62310 | AQ168: 16003 | AR168: 20.75 | AU168: 83233 | AV168: 167837 | AW168: 27 | AX168: 48357 | AY168: 2368 | AZ168: 4318 | BA168: 55043 | BB168: 36336 | BC168: 14 | BD168: 593 | BE168: 2034 | BF168: 19 | BG168: 8850 | BI168: 9173 | BJ168: -149 | BL168: -472 | BM168: 0 | BN168: 634 | BO168: 1 | BP168: -876 | BQ168: -1981 | BS168: 14303 | BY168: 11863 | CA168: 64550 | CF168: 20.75 | CT168: -3118 | CU168: -13387 | CV168: 45 | CW168: 4112 | CX168: 12
A169: 561 | B169: Oripää | C169: 1364 | D169: 19.5 | G169: 4318 | H169: 13069 | I169: 0 | J169: 3314 | K169: 356 | L169: 317 | M169: 3987 | N169: 4139 | O169: 1 | P169: 1 | Q169: -56 | R169: 1 | S169: -682 | U169: 643 | V169: -3 | X169: -1328 | Y169: 14 | Z169: 0 | AA169: 0 | AB169: 0 | AD169: -1314 | AF169: -123 | AI169: -222 | AL169: 217 | AN169: 5105 | AQ169: 1329 | AR169: 21 | AU169: 4372 | AV169: 12854 | AW169: 0 | AX169: 3314 | AY169: 356 | AZ169: 317 | BA169: 3987 | BB169: 4471 | BC169: 1 | BD169: 2 | BE169: -52 | BF169: 1 | BG169: 621 | BI169: 606 | BJ169: 0 | BL169: 15 | BM169: 15 | BN169: 0 | BO169: 0 | BP169: 0 | BQ169: 30 | BS169: -111 | BY169: 235 | CA169: 5012 | CF169: 21 | CT169: -3 | CU169: -333 | CV169: 3 | CW169: 45 | CX169: 0
A170: 562 | B170: Orivesi | C170: 9221 | D170: 22 | G170: 31069 | H170: 83556 | I170: 148 | J170: 28106 | K170: 1892 | L170: 2969 | M170: 32899 | N170: 22441 | O170: 59 | P170: 389 | Q170: 119 | R170: 96 | S170: 2694 | U170: 4258 | V170: 0 | X170: -1564 | Y170: 0 | Z170: -51 | AA170: -35 | AB170: -65 | AD170: -1715 | AF170: 6030 | AI170: -6592 | AL170: 5503 | AN170: 31760 | AQ170: 9158 | AR170: 22 | AU170: 31958 | AV170: 85284 | AW170: 184 | AX170: 28106 | AY170: 1892 | AZ170: 2969 | BA170: 32967 | BB170: 22208 | BC170: 54 | BD170: 358 | BE170: 277 | BF170: 112 | BG170: 2569 | BI170: 4570 | BJ170: 0 | BL170: -2001 | BM170: 0 | BN170: 39 | BO170: -35 | BP170: -65 | BQ170: -2140 | BS170: 3890 | BY170: 6328 | CA170: 37455 | CF170: 22 | CT170: -503 | CU170: -5989 | CV170: 0 | CW170: 153 | CX170: 13
A171: 563 | B171: Oulainen | C171: 7430 | D171: 21.5 | G171: 29654 | H171: 77694 | I171: 2 | J171: 21172 | K171: 1128 | L171: 2031 | M171: 24332 | N171: 24050 | O171: 27 | P171: 176 | Q171: 1209 | R171: 851 | S171: 553 | U171: 4196 | V171: 443 | X171: -3200 | Y171: -12 | Z171: -3 | AA171: -3 | AB171: -2 | AD171: -3220 | AF171: 6675 | AI171: -2149 | AL171: 20118 | AN171: 42827 | AQ171: 7288 | AR171: 22 | AU171: 30632 | AV171: 78789 | AW171: 4 | AX171: 21172 | AY171: 1128 | AZ171: 2031 | BA171: 24331 | BB171: 24000 | BC171: 3 | BD171: 155 | BE171: 1926 | BF171: 226 | BG171: 2893 | BI171: 4233 | BJ171: 51 | BL171: -1289 | BM171: -3 | BN171: 3 | BO171: -1 | BP171: -1 | BQ171: -1297 | BS171: 5134 | BY171: 21576 | CA171: 46165 | CF171: 22 | CT171: -164 | CU171: -6356 | CV171: 483 | CW171: 123 | CX171: 39
A172: 564 | B172: Oulu | C172: 203567 | D172: 20 | G172: 847127 | H172: 1777433 | I172: 2688 | J172: 665006 | K172: 45173 | L172: 56717 | M172: 763750 | N172: 358170 | O172: 2862 | P172: 14942 | Q172: 4647 | R172: 8286 | S172: 178583 | U172: 150294 | V172: 9916 | X172: 38205 | Y172: -2413 | Z172: -2506 | AA172: -5243 | AB172: -1867 | AD172: 26176 | AF172: 761359 | AI172: -232339 | AL172: 206336 | AN172: 834134 | AQ172: 205489 | AR172: 20 | AU172: 873882 | AV172: 1816904 | AW172: 2389 | AX172: 665006 | AY172: 45173 | AZ172: 56717 | BA172: 766896 | BB172: 334591 | BC172: 3839 | BD172: 14434 | BE172: 10877 | BF172: 873 | BG172: 185986 | BI172: 159878 | BJ172: 0 | BL172: 26108 | BM172: -129 | BN172: 5471 | BO172: -3978 | BP172: -1484 | BQ172: 15046 | BS172: 774975 | BY172: 204575 | CA172: 967392 | CF172: 20 | CT172: -8549 | CU172: -353806 | CV172: 723 | CW172: 14074 | CX172: -504
A173: 309 | B173: Outokumpu | C173: 6803 | D173: 21.75 | G173: 53376 | H173: 91100 | I173: 0 | J173: 18390 | K173: 1246 | L173: 1726 | M173: 21362 | N173: 22620 | O173: 117 | P173: 324 | Q173: 47 | R173: 5 | S173: 6093 | U173: 5696 | V173: 0 | X173: 397 | Y173: -4 | Z173: -401 | AA173: 5 | AB173: 3 | AD173: 0 | AF173: 6790 | AI173: -4020 | AL173: 6915 | AN173: 30568 | AQ173: 6688 | AR173: 21.75 | AU173: 53435 | AV173: 91937 | AW173: 0 | AX173: 18390 | AY173: 1246 | AZ173: 1726 | BA173: 21362 | BB173: 22683 | BC173: 160 | BD173: 228 | BE173: 64 | BF173: 7 | BG173: 5299 | BI173: 5609 | BJ173: 0 | BL173: -310 | BM173: -3 | BN173: 345 | BO173: 91 | BP173: -7 | BQ173: -574 | BS173: 5502 | BY173: 6370 | CA173: 34627 | CF173: 21.75 | CT173: -495 | CU173: -8959 | CV173: 1092 | CW173: 1374 | CX173: -57
A174: 576 | B174: Padasjoki | C174: 2963 | D174: 21 | G174: 21740 | H174: 40114 | I174: 0 | J174: 8126 | K174: 1172 | L174: 1466 | M174: 10757 | N174: 9437 | O174: 125 | P174: 106 | Q174: 77 | R174: 48 | S174: 1868 | U174: 2296 | V174: 136 | X174: -292 | Y174: 0 | Z174: -10 | AA174: -16 | AB174: -17 | AD174: -335 | AF174: 10969 | AI174: -1710 | AL174: 8280 | AN174: 11977 | AQ174: 2896 | AR174: 21 | AU174: 21969 | AV174: 41109 | AW174: 7 | AX174: 8126 | AY174: 1172 | AZ174: 1466 | BA174: 10764 | BB174: 10317 | BC174: 149 | BD174: 105 | BE174: 132 | BF174: 7 | BG174: 1633 | BI174: 2204 | BJ174: -31 | BL174: -602 | BM174: 0 | BN174: 2 | BO174: 83 | BP174: 7 | BQ174: -514 | BS174: 10455 | BY174: 7086 | CA174: 11910 | CF174: 21 | CT174: -452 | CU174: -2628 | CV174: 102 | CW174: 396 | CX174: -7
A175: 577 | B175: Paimio | C175: 10832 | D175: 20.75 | G175: 33733 | H175: 89318 | I175: 22 | J175: 37406 | K175: 1345 | L175: 2337 | M175: 41088 | N175: 18886 | O175: 33 | P175: 455 | Q175: 13 | R175: 6 | S175: 3996 | U175: 5169 | V175: 0 | X175: -1173 | Y175: 0 | Z175: -132 | AA175: -43 | AB175: -3 | AD175: -1351 | AF175: -1737 | AI175: -6586 | AL175: 10361 | AN175: 62224 | AQ175: 10850 | AR175: 20.75 | AU175: 33603 | AV175: 93472 | AW175: 12 | AX175: 37406 | AY175: 1345 | AZ175: 2337 | BA175: 41088 | BB175: 19857 | BC175: 21 | BD175: 406 | BE175: 29 | BF175: 0 | BG175: 3139 | BI175: 5151 | BJ175: 360 | BL175: -1652 | BM175: 0 | BN175: 129 | BO175: -27 | BP175: 0 | BQ175: -1808 | BS175: -2199 | BY175: 13587 | CA175: 71432 | CF175: 20.75 | CT175: -93 | CU175: -9897 | CV175: 134 | CW175: 333 | CX175: 0
A176: 578 | B176: Paltamo | C176: 3336 | D176: 22 | G176: 25729 | H176: 47978 | I176: -3 | J176: 8812 | K176: 598 | L176: 1278 | M176: 10688 | N176: 12939 | O176: 3 | P176: 64 | Q176: 71 | R176: 124 | S176: 1261 | U176: 1934 | V176: -2 | X176: -675 | Y176: 4 | Z176: 0 | AA176: -51 | AB176: 0 | AD176: -722 | AF176: 351 | AI176: -4840 | AL176: 6428 | AN176: 23154 | AQ176: 3273 | AR176: 22 | AU176: 25132 | AV176: 48050 | AW176: -3 | AX176: 8812 | AY176: 598 | AZ176: 1278 | BA176: 10688 | BB176: 12882 | BC176: 2 | BD176: 153 | BE176: 752 | BF176: 121 | BG176: 1687 | BI176: 2024 | BJ176: 0 | BL176: -337 | BM176: 193 | BN176: 0 | BO176: -36 | BP176: -9 | BQ176: -189 | BS176: 138 | BY176: 7524 | CA176: 27425 | CF176: 22 | CT176: -7 | CU176: -5082 | CV176: 262 | CW176: 82 | CX176: 27
A177: 445 | B177: Parainen | C177: 15217 | D177: 19.75 | G177: 50826 | H177: 138492 | I177: -10 | J177: 54276 | K177: 2304 | L177: 9109 | M177: 65688 | N177: 28595 | O177: 7 | P177: 1022 | Q177: 94 | R177: 14 | S177: 5672 | U177: 7314 | V177: 0 | X177: -1642 | Y177: 0 | Z177: -82 | AA177: 22 | AB177: 6 | AD177: -1696 | AF177: 14393 | AI177: -6084 | AL177: 6593 | AN177: 51805 | AQ177: 15132 | AR177: 19.75 | AU177: 52148 | AV177: 145158 | AW177: 22 | AX177: 54276 | AY177: 2304 | AZ177: 9109 | BA177: 65689 | BB177: 28656 | BC177: 3 | BD177: 964 | BE177: 57 | BF177: 18 | BG177: 1793 | BI177: 7243 | BJ177: 0 | BL177: -5450 | BM177: 0 | BN177: 80 | BO177: 47 | BP177: 12 | BQ177: -5471 | BS177: 8875 | BY177: 5491 | CA177: 54669 | CF177: 20 | CT177: -432 | CU177: -6071 | CV177: 729 | CW177: 762 | CX177: 0
A178: 580 | B178: Parikkala | C178: 4842 | D178: 19.5 | G178: 29332 | H178: 58140 | I178: 9 | J178: 12085 | K178: 1439 | L178: 1322 | M178: 14841 | N178: 17538 | O178: 37 | P178: 19 | Q178: 55 | R178: 3 | S178: 3650 | U178: 2165 | V178: 0 | X178: 1485 | Y178: -269 | Z178: 0 | AA178: -1 | AB178: 1 | AD178: 1216 | AF178: 20291 | AI178: 472 | AL178: 7462 | AN178: 4775 | AQ178: 4734 | AR178: 19.5 | AU178: 28034 | AV178: 60061 | AW178: 4 | AX178: 12085 | AY178: 1439 | AZ178: 1322 | BA178: 14846 | BB178: 17043 | BC178: 1 | BD178: 17 | BE178: 44 | BF178: 5 | BG178: 92 | BI178: 1750 | BJ178: 0 | BL178: -1658 | BM178: 5 | BN178: 0 | BO178: 0 | BP178: 1 | BQ178: -1652 | BS178: 18614 | BY178: 5637 | CA178: 4113 | CF178: 20.5 | CT178: -254 | CU178: -2711 | CV178: 96 | CW178: 502 | CX178: 0
A179: 581 | B179: Parkano | C179: 6469 | D179: 22 | G179: 37511 | H179: 75475 | I179: 122 | J179: 18261 | K179: 2013 | L179: 1902 | M179: 22125 | N179: 20646 | O179: 5 | P179: 304 | Q179: 128 | R179: 77 | S179: 4681 | U179: 3138 | V179: 0 | X179: 1543 | Y179: 0 | Z179: -39 | AA179: 0 | AB179: -61 | AD179: 1443 | AF179: 12190 | AI179: -3251 | AL179: 3684 | AN179: 27450 | AQ179: 6404 | AR179: 22 | AU179: 38657 | AV179: 78765 | AW179: 33 | AX179: 18261 | AY179: 2013 | AZ179: 1902 | BA179: 22176 | BB179: 20783 | BC179: 6 | BD179: 314 | BE179: 245 | BF179: 501 | BG179: 3173 | BI179: 3472 | BJ179: 0 | BL179: -299 | BM179: 0 | BN179: 41 | BO179: -10 | BP179: -17 | BQ179: -367 | BS179: 11754 | BY179: 5479 | CA179: 32647 | CF179: 22 | CT179: -1111 | CU179: -7146 | CV179: 287 | CW179: 1305 | CX179: -8
A180: 599 | B180: Pedersören kunta | C180: 11016 | D180: 20.5 | G180: 28447 | H180: 86332 | I180: 53 | J180: 29339 | K180: 2665 | L180: 2202 | M180: 34205 | N180: 25728 | O180: 17 | P180: 97 | Q180: 166 | R180: 167 | S180: 2020 | U180: 3522 | V180: -42 | X180: -1544 | Y180: 66 | Z180: -78 | AA180: -3 | AB180: -1 | AD180: -1560 | AF180: 12490 | AI180: -7393 | AL180: 5854 | AN180: 41331 | AQ180: 11081 | AR180: 20.5 | AU180: 28971 | AV180: 90557 | AW180: 45 | AX180: 29339 | AY180: 2665 | AZ180: 2202 | BA180: 34206 | BB180: 26537 | BC180: 17 | BD180: 145 | BE180: 166 | BF180: 120 | BG180: 344 | BI180: 3859 | BJ180: 0 | BL180: -3515 | BM180: -160 | BN180: 37 | BO180: -1 | BP180: -1 | BQ180: -3714 | BS180: 10022 | BY180: 5183 | CA180: 47672 | CF180: 21 | CT180: -244 | CU180: -8723 | CV180: 135 | CW180: 289 | CX180: 101
A181: 583 | B181: Pelkosenniemi | C181: 954 | D181: 22.25 | G181: 5475 | H181: 13836 | I181: -3 | J181: 2688 | K181: 344 | L181: 1989 | M181: 4986 | N181: 3961 | O181: 3 | P181: 27 | Q181: 79 | R181: 5 | S181: 633 | U181: 513 | V181: 0 | X181: 120 | Y181: -53 | Z181: 0 | AA181: -1 | AB181: 4 | AD181: 70 | AF181: 2588 | AI181: -400 | AL181: 1601 | AN181: 3490 | AQ181: 939 | AR181: 22.25 | AU181: 5602 | AV181: 15099 | AW181: 77 | AX181: 2688 | AY181: 344 | AZ181: 1989 | BA181: 5021 | BB181: 4184 | BC181: 28 | BD181: 24 | BE181: 80 | BF181: 5 | BG181: -4 | BI181: 492 | BJ181: 0 | BL181: -496 | BM181: 0 | BN181: 0 | BO181: 4 | BP181: 11 | BQ181: -481 | BS181: 2146 | BY181: 1406 | CA181: 3787 | CF181: 22.25 | CT181: 397 | CU181: -1068 | CV181: 9 | CW181: 16 | CX181: 1
A182: 854 | B182: Pello | C182: 3438 | D182: 21 | G182: 14489 | H182: 40458 | I182: 0 | J182: 9571 | K182: 765 | L182: 719 | M182: 11055 | N182: 16467 | O182: 0 | P182: 67 | Q182: 131 | R182: 25 | S182: 1592 | U182: 2034 | V182: 17 | X182: -425 | Y182: 23 | Z182: -24 | AA182: 0 | AB182: 0 | AD182: -426 | AF182: 2412 | AI182: -1107 | AL182: 2173 | AN182: 9731 | AQ182: 3373 | AR182: 21.25 | AU182: 14529 | AV182: 42286 | AW182: 0 | AX182: 9571 | AY182: 765 | AZ182: 719 | BA182: 11055 | BB182: 16457 | BC182: 1 | BD182: 62 | BE182: 170 | BF182: 52 | BG182: -86 | BI182: 2023 | BJ182: 0 | BL182: -2109 | BM182: 9 | BN182: 14 | BO182: 0 | BP182: 4 | BQ182: -2110 | BS182: 301 | BY182: 2026 | CA182: 11371 | CF182: 21.25 | CT182: -273 | CU182: -1949 | CV182: 56 | CW182: 711 | CX182: -190
A183: 584 | B183: Perho | C183: 2825 | D183: 21.5 | G183: 14166 | H183: 33972 | I183: 2 | J183: 6365 | K183: 613 | L183: 737 | M183: 7709 | N183: 12558 | O183: 217 | P183: 82 | Q183: 19 | R183: 210 | S183: 407 | U183: 1836 | V183: -1 | X183: -1430 | Y183: -6 | Z183: 0 | AA183: 0 | AB183: -3 | AD183: -1439 | AF183: 4290 | AI183: -4560 | AL183: 7175 | AN183: 18555 | AQ183: 2759 | AR183: 21.5 | AU183: 14522 | AV183: 34732 | AW183: 4 | AX183: 6365 | AY183: 613 | AZ183: 737 | BA183: 7715 | BB183: 13547 | BC183: 307 | BD183: 107 | BE183: 23 | BF183: 151 | BG183: 1234 | BI183: 1932 | BJ183: 0 | BL183: -698 | BM183: 459 | BN183: 1 | BO183: 0 | BP183: -3 | BQ183: -243 | BS183: 4049 | BY183: 7282 | CA183: 21037 | CF183: 21.5 | CT183: -86 | CU183: -1706 | CV183: 0 | CW183: 30 | CX183: -7
A184: 588 | B184: Pertunmaa | C184: 1713 | D184: 21.5 | G184: 10771 | H184: 22485 | I184: 3 | J184: 3876 | K184: 795 | L184: 824 | M184: 5495 | N184: 6001 | O184: 3 | P184: 49 | Q184: 76 | R184: 1 | S184: -186 | U184: 954 | V184: -72 | X184: -1212 | Y184: 4 | Z184: 0 | AA184: 6 | AB184: 0 | AD184: -1202 | AF184: -567 | AI184: -1001 | AL184: 1286 | AN184: 9478 | AQ184: 1690 | AR184: 21.5 | AU184: 10762 | AV184: 23014 | AW184: 6 | AX184: 3876 | AY184: 795 | AZ184: 824 | BA184: 5495 | BB184: 6142 | BC184: 7 | BD184: 55 | BE184: 99 | BF184: 1 | BG184: -167 | BI184: 926 | BJ184: -7 | BL184: -1100 | BM184: 0 | BN184: 0 | BO184: -13 | BP184: 0 | BQ184: -1113 | BS184: -1707 | BY184: 1316 | CA184: 10349 | CF184: 21.5 | CT184: -41 | CU184: -971 | CV184: 0 | CW184: 73 | CX184: -1
A185: 592 | B185: Petäjävesi | C185: 3900 | D185: 21.75 | G185: 10746 | H185: 33835 | I185: 0 | J185: 10870 | K185: 1161 | L185: 942 | M185: 12972 | N185: 11553 | O185: 3 | P185: 122 | Q185: 124 | R185: 92 | S185: 1349 | U185: 1670 | V185: 0 | X185: -321 | Y185: 0 | Z185: 0 | AA185: 0 | AB185: 0 | AD185: -321 | AF185: 8206 | AI185: -4063 | AL185: 5888 | AN185: 22572 | AQ185: 3841 | AR185: 21.75 | AU185: 10854 | AV185: 35893 | AW185: 0 | AX185: 10870 | AY185: 1161 | AZ185: 942 | BA185: 12973 | BB185: 11170 | BC185: 2 | BD185: 113 | BE185: 223 | BF185: 2008 | BG185: -2401 | BI185: 1656 | BJ185: 0 | BL185: -4057 | BM185: 0 | BN185: 0 | BO185: 0 | BP185: 0 | BQ185: -4057 | BS185: 4149 | BY185: 7028 | CA185: 27167 | CF185: 21.75 | CT185: 1968 | CU185: -3398 | CV185: 37 | CW185: 7 | CX185: 0
A186: 593 | B186: Pieksämäki | C186: 17933 | D186: 22 | G186: 75209 | H186: 178665 | I186: -37 | J186: 56515 | K186: 4472 | L186: 4215 | M186: 64961 | N186: 48549 | O186: 88 | P186: 763 | Q186: 728 | R186: 43 | S186: 10027 | U186: 10511 | V186: 64 | X186: -420 | Y186: 37 | Z186: -20 | AA186: -125 | AB186: -49 | AD186: -577 | AF186: 671 | AI186: -19458 | AL186: 10070 | AN186: 102522 | AQ186: 17682 | AR186: 22 | AU186: 75104 | AV186: 181670 | AW186: -67 | AX186: 56515 | AY186: 4472 | AZ186: 4215 | BA186: 65202 | BB186: 47399 | BC186: 92 | BD186: 770 | BE186: 747 | BF186: 14 | BG186: 5960 | BI186: 9232 | BJ186: 0 | BL186: -3272 | BM186: 0 | BN186: 2 | BO186: -92 | BP186: -8 | BQ186: -3374 | BS186: -2686 | BY186: 9661 | CA186: 113801 | CF186: 22 | CT186: -306 | CU186: -20383 | CV186: 100 | CW186: 735 | CX186: 16
A187: 595 | B187: Pielavesi | C187: 4498 | D187: 21.75 | G187: 19925 | H187: 52160 | I187: 50 | J187: 10601 | K187: 1438 | L187: 1171 | M187: 13180 | N187: 21492 | O187: 42 | P187: 232 | Q187: 549 | R187: 97 | S187: 2749 | U187: 2699 | V187: -60 | X187: -10 | Y187: 6 | Z187: -1 | AA187: 18 | AB187: -3 | AD187: 10 | AF187: -1104 | AI187: -1542 | AL187: 6338 | AN187: 25427 | AQ187: 4391 | AR187: 21.75 | AU187: 19594 | AV187: 52617 | AW187: 37 | AX187: 10601 | AY187: 1438 | AZ187: 1171 | BA187: 13210 | BB187: 21426 | BC187: 45 | BD187: 215 | BE187: 641 | BF187: 99 | BG187: 2561 | BI187: 2682 | BJ187: 0 | BL187: -121 | BM187: 4 | BN187: 8 | BO187: 36 | BP187: -17 | BQ187: -106 | BS187: -1180 | BY187: 6438 | CA187: 24744 | CF187: 21.75 | CT187: -8 | CU187: -2181 | CV187: 97 | CW187: 144 | CX187: -49
A188: 598 | B188: Pietarsaari | C188: 19278 | D188: 21.25 | G188: 132822 | H188: 241372 | I188: 4763 | J188: 66249 | K188: 6167 | L188: 5932 | M188: 78349 | N188: 39484 | O188: 17 | P188: 156 | Q188: 1644 | R188: 898 | S188: 14653 | U188: 14460 | V188: 0 | X188: 193 | Y188: 67 | Z188: 0 | AA188: 35 | AB188: -2 | AD188: 293 | AF188: 96307 | AI188: -15026 | AL188: 5344 | AN188: 111754 | AQ188: 19208 | AR188: 21.25 | AU188: 135795 | AV188: 250767 | AW188: -5113 | AX188: 66249 | AY188: 6167 | AZ188: 5932 | BA188: 78348 | BB188: 40432 | BC188: 36 | BD188: 155 | BE188: 219 | BF188: 631 | BG188: -188 | BI188: 12046 | BJ188: 50 | BL188: -12184 | BM188: 93 | BN188: 216 | BO188: 77 | BP188: -1 | BQ188: -12231 | BS188: 83209 | BY188: 6235 | CA188: 123577 | CF188: 21.25 | CT188: 4875 | CU188: -16211 | CV188: 292 | CW188: 744 | CX188: -173
A189: 601 | B189: Pihtipudas | C189: 4053 | D189: 21 | G189: 27306 | H189: 55101 | I189: 0 | J189: 9292 | K189: 1562 | L189: 938 | M189: 11794 | N189: 17673 | O189: 171 | P189: 141 | Q189: 100 | R189: 39 | S189: 1763 | U189: 2532 | V189: 0 | X189: -769 | Y189: -58 | Z189: 0 | AA189: 0 | AB189: 0 | AD189: -827 | AF189: 13141 | AI189: -5611 | AL189: 11978 | AN189: 30590 | AQ189: 4032 | AR189: 21 | AU189: 18250 | AV189: 47638 | AW189: 0 | AX189: 9292 | AY189: 1562 | AZ189: 938 | BA189: 11792 | BB189: 17804 | BC189: 299 | BD189: 136 | BE189: 84 | BF189: 39 | BG189: 896 | BI189: 2600 | BJ189: 224 | BL189: -1480 | BM189: 0 | BN189: 0 | BO189: 0 | BP189: 0 | BQ189: -1480 | BS189: 11186 | BY189: 13381 | CA189: 35195 | CF189: 21 | CT189: 35 | CU189: -5262 | CV189: 2 | CW189: 30 | CX189: 0
A190: 604 | B190: Pirkkala | C190: 19368 | D190: 20 | G190: 51067 | H190: 141103 | I190: 3 | J190: 76869 | K190: 3814 | L190: 5384 | M190: 86066 | N190: 11375 | O190: 3 | P190: 390 | Q190: 279 | R190: 189 | S190: 7111 | U190: 9391 | V190: 0 | X190: -2280 | Y190: 1 | Z190: -36 | AA190: 0 | AB190: 46 | AD190: -2269 | AF190: 53915 | AI190: -10821 | AL190: 4968 | AN190: 49168 | AQ190: 19623 | AR190: 20 | AU190: 53886 | AV190: 149198 | AW190: 20 | AX190: 76869 | AY190: 3814 | AZ190: 5384 | BA190: 86067 | BB190: 12551 | BC190: 3 | BD190: 358 | BE190: 558 | BF190: 175 | BG190: 7538 | BI190: 9034 | BJ190: 0 | BL190: -1496 | BM190: 0 | BN190: 27 | BO190: -4 | BP190: 50 | BQ190: -1477 | BS190: 52592 | BY190: 5983 | CA190: 60930 | CF190: 20.5 | CT190: -7762 | CU190: -19135 | CV190: 12 | CW190: 7866 | CX190: -2
A191: 607 | B191: Polvijärvi | C191: 4307 | D191: 20.25 | G191: 32003 | H191: 56688 | I191: 0 | J191: 9223 | K191: 1125 | L191: 901 | M191: 11248 | N191: 14481 | O191: 16 | P191: 63 | Q191: 244 | R191: 51 | S191: 1190 | U191: 2094 | V191: 0 | X191: -904 | Y191: 371 | Z191: 0 | AA191: 0 | AB191: 0 | AD191: -533 | AF191: 21293 | AI191: -5797 | AL191: 8109 | AN191: 5203 | AQ191: 4246 | AR191: 20.25 | AU191: 32875 | AV191: 57988 | AW191: 0 | AX191: 9223 | AY191: 1125 | AZ191: 901 | BA191: 11249 | BB191: 14662 | BC191: 19 | BD191: 56 | BE191: 324 | BF191: 7 | BG191: 1489 | BI191: 2335 | BJ191: 0 | BL191: -846 | BM191: 1243 | BN191: 0 | BO191: -3 | BP191: -3 | BQ191: 391 | BS191: 20371 | BY191: 5351 | CA191: 4948 | CF191: 20.25 | CT191: -193 | CU191: -3909 | CV191: 1 | CW191: 36 | CX191: 0
A192: 608 | B192: Pomarkku | C192: 2146 | D192: 20.5 | G192: 11350 | H192: 25457 | I192: 24 | J192: 5032 | K192: 540 | L192: 531 | M192: 6093 | N192: 8071 | O192: 1 | P192: 28 | Q192: 19 | R192: 38 | S192: 35 | U192: 754 | V192: 0 | X192: -719 | Y192: 0 | Z192: 0 | AA192: -7 | AB192: 0 | AD192: -726 | AF192: 2827 | AI192: -455 | AL192: 874 | AN192: 5032 | AQ192: 2089 | AR192: 21.5 | AU192: 11244 | AV192: 25341 | AW192: -10 | AX192: 5032 | AY192: 540 | AZ192: 531 | BA192: 6103 | BB192: 7834 | BC192: 1 | BD192: 23 | BE192: 18 | BF192: 9 | BG192: 771 | BI192: 746 | BJ192: 0 | BL192: 25 | BM192: 0 | BN192: 0 | BO192: 5 | BP192: -7 | BQ192: 23 | BS192: 2850 | BY192: 1088 | CA192: 5377 | CF192: 21.5 | CT192: 32 | CU192: -959 | CV192: 16 | CW192: 6 | CX192: 0
A193: 609 | B193: Pori | C193: 84403 | D193: 19.75 | G193: 415636 | H193: 868353 | I193: -948 | J193: 265797 | K193: 16332 | L193: 24428 | M193: 304372 | N193: 213558 | O193: 674 | P193: 5549 | Q193: 3294 | R193: 624 | S193: 62060 | U193: 66021 | V193: 2 | X193: -3959 | Y193: -497 | Z193: 0 | AA193: -3333 | AB193: -1177 | AD193: -8966 | AF193: 53417 | AI193: -121322 | AL193: 50172 | AN193: 499109 | AQ193: 83934 | AR193: 20.25 | AU193: 420987 | AV193: 889279 | AW193: 582 | AX193: 265797 | AY193: 16332 | AZ193: 24428 | BA193: 306557 | BB193: 216458 | BC193: 684 | BD193: 5796 | BE193: 2496 | BF193: 60 | BG193: 58335 | BI193: 71876 | BJ193: 0 | BL193: -13541 | BM193: 13 | BN193: 0 | BO193: -3169 | BP193: -2938 | BQ193: -19635 | BS193: 33329 | BY193: 34667 | CA193: 554262 | CF193: 20.25 | CT193: -8911 | CU193: -200883 | CV193: 1165 | CW193: 81633 | CX193: 558
A194: 611 | B194: Pornainen | C194: 5068 | D194: 20.5 | G194: 26070 | H194: 48790 | I194: 6 | J194: 17786 | K194: 726 | L194: 1170 | M194: 19683 | N194: 6265 | O194: 16 | P194: 168 | Q194: 6 | R194: 33 | S194: 3055 | U194: 2014 | V194: -50 | X194: 991 | Y194: -1 | Z194: -1 | AA194: 0 | AB194: 0 | AD194: 989 | AF194: 10762 | AI194: -701 | AL194: 7425 | AN194: 14562 | AQ194: 5035 | AR194: 20.5 | AU194: 27720 | AV194: 52424 | AW194: 2 | AX194: 17786 | AY194: 726 | AZ194: 1170 | BA194: 19682 | BB194: 6272 | BC194: 48 | BD194: 142 | BE194: 6 | BF194: 44 | BG194: 1441 | BI194: 2072 | BJ194: 0 | BL194: -631 | BM194: 1 | BN194: 1 | BO194: 0 | BP194: -2 | BQ194: -633 | BS194: 10132 | BY194: 6015 | CA194: 13849 | CF194: 20.5 | CT194: -117 | CU194: -2522 | CV194: 82 | CW194: 99 | CX194: 53
A195: 638 | B195: Porvoo | C195: 50262 | D195: 19.75 | G195: 243042 | H195: 485961 | I195: 937 | J195: 192402 | K195: 20364 | L195: 16386 | M195: 229152 | N195: 69451 | O195: 81 | P195: 2933 | Q195: 928 | R195: 519 | S195: 54178 | U195: 42069 | V195: 0 | X195: 12109 | Y195: -3593 | Z195: -5 | AA195: 9 | AB195: -97 | AD195: 8423 | AF195: 50659 | AI195: -71029 | AL195: 51276 | AN195: 361969 | AQ195: 50380 | AR195: 19.75 | AU195: 280775 | AV195: 521354 | AW195: 743 | AX195: 192402 | AY195: 20364 | AZ195: 16386 | BA195: 229152 | BB195: 55627 | BC195: 95 | BD195: 2377 | BE195: 554 | BF195: 555 | BG195: 56461 | BI195: 49387 | BJ195: 0 | BL195: 7074 | BM195: 2326 | BN195: 25 | BO195: -39 | BP195: 91 | BQ195: 9427 | BS195: 58578 | BY195: 46149 | CA195: 371697 | CF195: 19.75 | CT195: -6593 | CU195: -74370 | CV195: 464 | CW195: 8857 | CX195: 318
A196: 614 | B196: Posio | C196: 3237 | D196: 21.75 | G196: 19591 | H196: 42546 | I196: 0 | J196: 7511 | K196: 660 | L196: 1230 | M196: 9401 | N196: 16916 | O196: 1 | P196: 332 | Q196: 72 | R196: 158 | S196: 2945 | U196: 1846 | V196: 0 | X196: 1099 | Y196: 11 | Z196: 0 | AA196: 0 | AB196: 1 | AD196: 1111 | AF196: 2964 | AI196: -1271 | AL196: 10862 | AN196: 16804 | AQ196: 3183 | AR196: 21.75 | AU196: 19136 | AV196: 43465 | AW196: 0 | AX196: 7511 | AY196: 660 | AZ196: 1230 | BA196: 9401 | BB196: 16864 | BC196: 1 | BD196: 324 | BE196: 104 | BF196: 67 | BG196: 2226 | BI196: 2404 | BJ196: 0 | BL196: -178 | BM196: 2 | BN196: 0 | BO196: 0 | BP196: -1 | BQ196: -177 | BS196: 2776 | BY196: 8960 | CA196: 16353 | CF196: 21.75 | CT196: -5 | CU196: -2259 | CV196: 53 | CW196: 27 | CX196: 0
A197: 615 | B197: Pudasjärvi | C197: 7990 | D197: 20.5 | G197: 61726 | H197: 119006 | I197: -1 | J197: 17561 | K197: 2619 | L197: 2066 | M197: 22246 | N197: 35877 | O197: 167 | P197: 628 | Q197: 581 | R197: 59 | S197: 903 | U197: 6127 | V197: 557 | X197: -4667 | Y197: 674 | Z197: -41 | AA197: -4 | AB197: -3 | AD197: -4041 | AF197: 8676 | AI197: -10370 | AL197: 20747 | AN197: 52963 | AQ197: 7873 | AR197: 20.5 | AU197: 63789 | AV197: 120896 | AW197: 4 | AX197: 17561 | AY197: 2619 | AZ197: 2066 | BA197: 22246 | BB197: 36443 | BC197: 317 | BD197: 546 | BE197: 941 | BF197: 295 | BG197: 2663 | BI197: 6358 | BJ197: 0 | BL197: -3695 | BM197: 453 | BN197: 40 | BO197: -2 | BP197: -1 | BQ197: -3285 | BS197: 5164 | BY197: 18949 | CA197: 61524 | CF197: 20.5 | CT197: 332 | CU197: -17259 | CV197: 1154 | CW197: 288 | CX197: -1
A198: 616 | B198: Pukkila | C198: 1899 | D198: 21.5 | G198: 10152 | H198: 21036 | I198: 0 | J198: 5803 | K198: 291 | L198: 407 | M198: 6501 | N198: 3620 | O198: 33 | P198: 61 | Q198: 153 | R198: 3 | S198: -641 | U198: 530 | V198: -6 | X198: -1177 | Y198: -1 | Z198: 0 | AA198: -1 | AB198: 0 | AD198: -1179 | AF198: 2291 | AI198: -118 | AL198: 2550 | AN198: 5546 | AQ198: 1860 | AR198: 21.5 | AU198: 10427 | AV198: 21316 | AW198: 4 | AX198: 5803 | AY198: 291 | AZ198: 407 | BA198: 6501 | BB198: 3423 | BC198: 32 | BD198: 56 | BE198: 156 | BF198: 3 | BG198: -572 | BI198: 519 | BJ198: 0 | BL198: -1091 | BM198: 0 | BN198: 0 | BO198: 0 | BP198: -1 | BQ198: -1092 | BS198: 1200 | BY198: 1365 | CA198: 6079 | CF198: 21.5 | CT198: -37 | CU198: -378 | CV198: 0 | CW198: 56 | CX198: 2
A199: 619 | B199: Punkalaidun | C199: 2896 | D199: 22 | G199: 11464 | H199: 28715 | I199: 2 | J199: 7721 | K199: 482 | L199: 674 | M199: 8877 | N199: 10108 | O199: 1 | P199: 57 | Q199: 4 | R199: 2 | S199: 1682 | U199: 1631 | V199: 0 | X199: 51 | Y199: 0 | Z199: 0 | AA199: 0 | AB199: 0 | AD199: 51 | AF199: 4283 | AI199: -2485 | AL199: 2657 | AN199: 6283 | AQ199: 2828 | AR199: 22 | AU199: 11037 | AV199: 28752 | AW199: 8 | AX199: 7721 | AY199: 482 | AZ199: 674 | BA199: 8877 | BB199: 9921 | BC199: 0 | BD199: 78 | BE199: 7 | BF199: 1 | BG199: 1086 | BI199: 1500 | BJ199: 0 | BL199: -414 | BM199: 0 | BN199: 0 | BO199: 0 | BP199: 0 | BQ199: -414 | BS199: 3867 | BY199: 1912 | CA199: 10826 | CF199: 22 | CT199: -11 | CU199: -6602 | CV199: 6 | CW199: 28 | CX199: -50
A200: 620 | B200: Puolanka | C200: 2597 | D200: 21.5 | G200: 21176 | H200: 42354 | I200: 0 | J200: 6079 | K200: 1233 | L200: 796 | M200: 8108 | N200: 13846 | O200: 3 | P200: 67 | Q200: 22 | R200: 44 | S200: 690 | U200: 1644 | V200: -2 | X200: -956 | Y200: 4 | Z200: 0 | AA200: -13 | AB200: 0 | AD200: -965 | AF200: 2197 | AI200: -2804 | AL200: 3189 | AN200: 12805 | AQ200: 2528 | AR200: 21.5 | AU200: 20975 | AV200: 41992 | AW200: 0 | AX200: 6079 | AY200: 1233 | AZ200: 796 | BA200: 8108 | BB200: 14183 | BC200: 2 | BD200: 85 | BE200: 25 | BF200: 47 | BG200: 1530 | BI200: 1598 | BJ200: 0 | BL200: -68 | BM200: 5 | BN200: 0 | BO200: -18 | BP200: -7 | BQ200: -88 | BS200: 2091 | BY200: 3098 | CA200: 14200 | CF200: 21.5 | CT200: -324 | CU200: -4748 | CV200: 99 | CW200: 1537 | CX200: 16
... 97 more rows

Sheet väestöennuste
A1: Väestöennuste 2019 kunnittain 2020-2029
A2: TK, Syyskuu 2019
A3: 2020 kuntajako | B3: 2 | C3: 3 | D3: 4 | E3: 5 | F3: 6 | G3: 7 | H3: 8 | I3: 9 | J3: 10 | K3: 11 | L3: 12 | M3: 13
B5: 2018 | C5: 2019 | D5: 2020 | E5: 2021 | F5: 2022 | G5: 2023 | H5: 2024 | I5: 2025 | J5: 2026 | K5: 2027 | L5: 2028 | M5: 2029
A7: Akaa | B7: =pohjatiedot!C3 -> 16611 | C7: =pohjatiedot!AQ3 -> 16475 | D7: 16353 | E7: 16229 | F7: 16108 | G7: 15984 | H7: 15861 | I7: 15743 | J7: 15630 | K7: 15523 | L7: 15419 | M7: 15317
A8: Alajärvi | B8: =pohjatiedot!C4 -> 9700 | C8: =pohjatiedot!AQ4 -> 9562 | D8: 9472 | E8: 9363 | F8: 9256 | G8: 9153 | H8: 9052 | I8: 8952 | J8: 8854 | K8: 8757 | L8: 8659 | M8: 8565
A9: Alavieska | B9: =pohjatiedot!C5 -> 2573 | C9: =pohjatiedot!AQ5 -> 2519 | D9: 2496 | E9: 2461 | F9: 2428 | G9: 2396 | H9: 2366 | I9: 2338 | J9: 2309 | K9: 2283 | L9: 2257 | M9: 2231
A10: Alavus | B10: =pohjatiedot!C6 -> 11544 | C10: =pohjatiedot!AQ6 -> 11468 | D10: 11253 | E10: 11118 | F10: 10988 | G10: 10861 | H10: 10736 | I10: 10608 | J10: 10486 | K10: 10365 | L10: 10250 | M10: 10136
A11: Asikkala | B11: =pohjatiedot!C7 -> 8149 | C11: =pohjatiedot!AQ7 -> 8083 | D11: 8032 | E11: 7980 | F11: 7929 | G11: 7874 | H11: 7819 | I11: 7761 | J11: 7707 | K11: 7653 | L11: 7600 | M11: 7548
A12: Askola | B12: =pohjatiedot!C8 -> 4958 | C12: =pohjatiedot!AQ8 -> 4943 | D12: 4947 | E12: 4938 | F12: 4924 | G12: 4912 | H12: 4900 | I12: 4889 | J12: 4877 | K12: 4864 | L12: 4846 | M12: 4827
A13: Aura | B13: =pohjatiedot!C9 -> 3984 | C13: =pohjatiedot!AQ9 -> 3941 | D13: 3973 | E13: 3968 | F13: 3963 | G13: 3959 | H13: 3951 | I13: 3946 | J13: 3940 | K13: 3935 | L13: 3932 | M13: 3925
A14: Enonkoski | B14: =pohjatiedot!C10 -> 1405 | C14: =pohjatiedot!AQ10 -> 1361 | D14: 1369 | E14: 1352 | F14: 1333 | G14: 1316 | H14: 1300 | I14: 1283 | J14: 1269 | K14: 1254 | L14: 1239 | M14: 1224
A15: Enontekiö | B15: =pohjatiedot!C11 -> 1852 | C15: =pohjatiedot!AQ11 -> 1838 | D15: 1849 | E15: 1850 | F15: 1850 | G15: 1852 | H15: 1854 | I15: 1855 | J15: 1856 | K15: 1855 | L15: 1853 | M15: 1848
A16: Espoo | B16: =pohjatiedot!C12 -> 283632 | C16: =pohjatiedot!AQ12 -> 289731 | D16: 292052 | E16: 296067 | F16: 299943 | G16: 303678 | H16: 307254 | I16: 310666 | J16: 313918 | K16: 317005 | L16: 319936 | M16: 322710
A17: Eura | B17: =pohjatiedot!C13 -> 11748 | C17: =pohjatiedot!AQ13 -> 11632 | D17: 11504 | E17: 11386 | F17: 11267 | G17: 11148 | H17: 11033 | I17: 10918 | J17: 10809 | K17: 10705 | L17: 10602 | M17: 10499
A18: Eurajoki | B18: =pohjatiedot!C14 -> 9454 | C18: =pohjatiedot!AQ14 -> 9402 | D18: 9505 | E18: 9522 | F18: 9534 | G18: 9539 | H18: 9540 | I18: 9532 | J18: 9516 | K18: 9493 | L18: 9467 | M18: 9439
A19: Evijärvi | B19: =pohjatiedot!C15 -> 2473 | C19: =pohjatiedot!AQ15 -> 2425 | D19: 2385 | E19: 2342 | F19: 2300 | G19: 2260 | H19: 2223 | I19: 2187 | J19: 2153 | K19: 2118 | L19: 2082 | M19: 2050
A20: Forssa | B20: =pohjatiedot!C16 -> 17028 | C20: =pohjatiedot!AQ16 -> 16901 | D20: 16759 | E20: 16629 | F20: 16505 | G20: 16384 | H20: 16265 | I20: 16149 | J20: 16036 | K20: 15923 | L20: 15811 | M20: 15703
A21: Haapajärvi | B21: =pohjatiedot!C17 -> 7147 | C21: =pohjatiedot!AQ17 -> 7010 | D21: 6937 | E21: 6834 | F21: 6734 | G21: 6637 | H21: 6542 | I21: 6449 | J21: 6360 | K21: 6275 | L21: 6192 | M21: 6111
A22: Haapavesi | B22: =pohjatiedot!C18 -> 6854 | C22: =pohjatiedot!AQ18 -> 6758 | D22: 6691 | E22: 6606 | F22: 6523 | G22: 6438 | H22: 6358 | I22: 6278 | J22: 6203 | K22: 6132 | L22: 6064 | M22: 5997
A23: Hailuoto | B23: =pohjatiedot!C19 -> 974 | C23: =pohjatiedot!AQ19 -> 959 | D23: 974 | E23: 976 | F23: 976 | G23: 978 | H23: 979 | I23: 977 | J23: 976 | K23: 974 | L23: 971 | M23: 967
A24: Halsua | B24: =pohjatiedot!C20 -> 1165 | C24: =pohjatiedot!AQ20 -> 1127 | D24: 1125 | E24: 1107 | F24: 1095 | G24: 1082 | H24: 1069 | I24: 1059 | J24: 1049 | K24: 1037 | L24: 1026 | M24: 1018
A25: Hamina | B25: =pohjatiedot!C21 -> 20286 | C25: =pohjatiedot!AQ21 -> 20111 | D25: 19907 | E25: 19719 | F25: 19537 | G25: 19357 | H25: 19178 | I25: 19004 | J25: 18831 | K25: 18659 | L25: 18485 | M25: 18312
A26: Hankasalmi | B26: =pohjatiedot!C22 -> 4939 | C26: =pohjatiedot!AQ22 -> 4875 | D26: 4760 | E26: 4680 | F26: 4602 | G26: 4528 | H26: 4457 | I26: 4391 | J26: 4323 | K26: 4256 | L26: 4193 | M26: 4128
A27: Hanko | B27: =pohjatiedot!C23 -> 8379 | C27: =pohjatiedot!AQ23 -> 8199 | D27: 8056 | E27: 7909 | F27: 7773 | G27: 7643 | H27: 7517 | I27: 7399 | J27: 7286 | K27: 7177 | L27: 7069 | M27: 6964
A28: Harjavalta | B28: =pohjatiedot!C24 -> 7018 | C28: =pohjatiedot!AQ24 -> 6931 | D28: 6881 | E28: 6812 | F28: 6741 | G28: 6669 | H28: 6600 | I28: 6533 | J28: 6469 | K28: 6407 | L28: 6349 | M28: 6288
A29: Hartola | B29: =pohjatiedot!C25 -> 2780 | C29: =pohjatiedot!AQ25 -> 2697 | D29: 2658 | E29: 2602 | F29: 2552 | G29: 2504 | H29: 2462 | I29: 2420 | J29: 2383 | K29: 2348 | L29: 2315 | M29: 2285
A30: Hattula | B30: =pohjatiedot!C26 -> 9475 | C30: =pohjatiedot!AQ26 -> 9422 | D30: 9369 | E30: 9316 | F30: 9263 | G30: 9209 | H30: 9152 | I30: 9095 | J30: 9037 | K30: 8978 | L30: 8919 | M30: 8859
A31: Hausjärvi | B31: =pohjatiedot!C27 -> 8417 | C31: =pohjatiedot!AQ27 -> 8260 | D31: 8248 | E31: 8166 | F31: 8088 | G31: 8014 | H31: 7938 | I31: 7866 | J31: 7794 | K31: 7728 | L31: 7662 | M31: 7598
A32: Heinola | B32: =pohjatiedot!C28 -> 18889 | C32: =pohjatiedot!AQ28 -> 18667 | D32: 18423 | E32: 18220 | F32: 18025 | G32: 17839 | H32: 17663 | I32: 17495 | J32: 17334 | K32: 17182 | L32: 17033 | M32: 16888
A33: Heinävesi | B33: =pohjatiedot!C29 -> 3329 | C33: =pohjatiedot!AQ29 -> 3254 | D33: 3198 | E33: 3135 | F33: 3073 | G33: 3015 | H33: 2963 | I33: 2912 | J33: 2866 | K33: 2820 | L33: 2775 | M33: 2734
A34: Helsinki | B34: =pohjatiedot!C30 -> 648042 | C34: =pohjatiedot!AQ30 -> 653835 | D34: 662389 | E34: 669339 | F34: 676117 | G34: 682725 | H34: 689164 | I34: 695419 | J34: 701482 | K34: 707342 | L34: 712998 | M34: 718451
A35: Hirvensalmi | B35: =pohjatiedot!C31 -> 2152 | C35: =pohjatiedot!AQ31 -> 2136 | D35: 2068 | E35: 2029 | F35: 1997 | G35: 1966 | H35: 1937 | I35: 1908 | J35: 1883 | K35: 1859 | L35: 1834 | M35: 1812
A36: Hollola | B36: =pohjatiedot!C32 -> 23602 | C36: =pohjatiedot!AQ32 -> 23410 | D36: 23388 | E36: 23261 | F36: 23121 | G36: 22972 | H36: 22815 | I36: 22656 | J36: 22498 | K36: 22342 | L36: 22189 | M36: 22036
A37: Honkajoki | B37: =pohjatiedot!C33 -> 1666 | C37: =pohjatiedot!AQ33 -> 1620 | D37: 1614 | E37: 1591 | F37: 1570 | G37: 1554 | H37: 1534 | I37: 1515 | J37: 1498 | K37: 1481 | L37: 1464 | M37: 1449
A38: Huittinen | B38: =pohjatiedot!C34 -> 10091 | C38: =pohjatiedot!AQ34 -> 10044 | D38: 9898 | E38: 9808 | F38: 9721 | G38: 9639 | H38: 9559 | I38: 9482 | J38: 9404 | K38: 9329 | L38: 9259 | M38: 9188
A39: Humppila | B39: =pohjatiedot!C35 -> 2235 | C39: =pohjatiedot!AQ35 -> 2184 | D39: 2143 | E39: 2104 | F39: 2066 | G39: 2030 | H39: 1997 | I39: 1965 | J39: 1933 | K39: 1905 | L39: 1877 | M39: 1851
A40: Hyrynsalmi | B40: =pohjatiedot!C36 -> 2287 | C40: =pohjatiedot!AQ36 -> 2271 | D40: 2177 | E40: 2126 | F40: 2078 | G40: 2036 | H40: 1995 | I40: 1955 | J40: 1919 | K40: 1883 | L40: 1850 | M40: 1819
A41: Hyvinkää | B41: =pohjatiedot!C37 -> 46504 | C41: =pohjatiedot!AQ37 -> 46470 | D41: 46414 | E41: 46379 | F41: 46350 | G41: 46326 | H41: 46304 | I41: 46281 | J41: 46255 | K41: 46227 | L41: 46199 | M41: 46167
A42: Hämeenkyrö | B42: =pohjatiedot!C38 -> 10510 | C42: =pohjatiedot!AQ38 -> 10404 | D42: 10421 | E42: 10376 | F42: 10328 | G42: 10286 | H42: 10246 | I42: 10210 | J42: 10174 | K42: 10144 | L42: 10110 | M42: 10077
A43: Hämeenlinna | B43: =pohjatiedot!C39 -> 67532 | C43: =pohjatiedot!AQ39 -> 67633 | D43: 67210 | E43: 67066 | F43: 66922 | G43: 66779 | H43: 66631 | I43: 66478 | J43: 66320 | K43: 66150 | L43: 65976 | M43: 65796
A44: Ii | B44: =pohjatiedot!C40 -> 9862 | C44: =pohjatiedot!AQ40 -> 9844 | D44: 9768 | E44: 9711 | F44: 9649 | G44: 9580 | H44: 9508 | I44: 9434 | J44: 9358 | K44: 9282 | L44: 9207 | M44: 9136
A45: Iisalmi | B45: =pohjatiedot!C41 -> 21472 | C45: =pohjatiedot!AQ41 -> 21368 | D45: 21103 | E45: 20923 | F45: 20752 | G45: 20585 | H45: 20418 | I45: 20254 | J45: 20093 | K45: 19932 | L45: 19771 | M45: 19607
A46: Iitti | B46: =pohjatiedot!C42 -> 6765 | C46: =pohjatiedot!AQ42 -> 6711 | D46: 6658 | E46: 6611 | F46: 6565 | G46: 6518 | H46: 6474 | I46: 6426 | J46: 6383 | K46: 6338 | L46: 6295 | M46: 6252
A47: Ikaalinen | B47: =pohjatiedot!C43 -> 7003 | C47: =pohjatiedot!AQ43 -> 6942 | D47: 6853 | E47: 6786 | F47: 6726 | G47: 6668 | H47: 6613 | I47: 6560 | J47: 6510 | K47: 6461 | L47: 6416 | M47: 6367
A48: Ilmajoki | B48: =pohjatiedot!C44 -> 12187 | C48: =pohjatiedot!AQ44 -> 12269 | D48: 12227 | E48: 12233 | F48: 12235 | G48: 12235 | H48: 12231 | I48: 12225 | J48: 12214 | K48: 12198 | L48: 12179 | M48: 12162
A49: Ilomantsi | B49: =pohjatiedot!C45 -> 4973 | C49: =pohjatiedot!AQ45 -> 4857 | D49: 4729 | E49: 4614 | F49: 4506 | G49: 4404 | H49: 4306 | I49: 4215 | J49: 4124 | K49: 4041 | L49: 3960 | M49: 3882
A50: Imatra | B50: =pohjatiedot!C46 -> 26932 | C50: =pohjatiedot!AQ46 -> 26508 | D50: 26329 | E50: 26042 | F50: 25761 | G50: 25484 | H50: 25207 | I50: 24938 | J50: 24671 | K50: 24413 | L50: 24167 | M50: 23922
A51: Inari | B51: =pohjatiedot!C47 -> 6930 | C51: =pohjatiedot!AQ47 -> 6907 | D51: 6988 | E51: 7018 | F51: 7047 | G51: 7075 | H51: 7099 | I51: 7121 | J51: 7141 | K51: 7159 | L51: 7173 | M51: 7185
A52: Inkoo | B52: =pohjatiedot!C48 -> 5403 | C52: =pohjatiedot!AQ48 -> 5386 | D52: 5332 | E52: 5301 | F52: 5271 | G52: 5243 | H52: 5215 | I52: 5188 | J52: 5161 | K52: 5137 | L52: 5112 | M52: 5088
A53: Isojoki | B53: =pohjatiedot!C49 -> 1976 | C53: =pohjatiedot!AQ49 -> 1951 | D53: 1880 | E53: 1837 | F53: 1796 | G53: 1760 | H53: 1726 | I53: 1695 | J53: 1666 | K53: 1639 | L53: 1615 | M53: 1590
A54: Isokyrö | B54: =pohjatiedot!C50 -> 4601 | C54: =pohjatiedot!AQ50 -> 4522 | D54: 4487 | E54: 4430 | F54: 4375 | G54: 4325 | H54: 4273 | I54: 4220 | J54: 4172 | K54: 4123 | L54: 4075 | M54: 4030
A55: Janakkala | B55: =pohjatiedot!C51 -> 16447 | C55: =pohjatiedot!AQ51 -> 16413 | D55: 16272 | E55: 16184 | F55: 16100 | G55: 16018 | H55: 15935 | I55: 15853 | J55: 15769 | K55: 15683 | L55: 15595 | M55: 15511
A56: Joensuu | B56: =pohjatiedot!C52 -> 76551 | C56: =pohjatiedot!AQ52 -> 76850 | D56: 77152 | E56: 77406 | F56: 77637 | G56: 77856 | H56: 78066 | I56: 78265 | J56: 78457 | K56: 78636 | L56: 78805 | M56: 78959
A57: Jokioinen | B57: =pohjatiedot!C53 -> 5195 | C57: =pohjatiedot!AQ53 -> 5133 | D57: 5045 | E57: 4969 | F57: 4896 | G57: 4824 | H57: 4759 | I57: 4697 | J57: 4639 | K57: 4584 | L57: 4533 | M57: 4484
A58: Joroinen | B58: =pohjatiedot!C54 -> 4812 | C58: =pohjatiedot!AQ54 -> 4767 | D58: 4671 | E58: 4597 | F58: 4526 | G58: 4456 | H58: 4389 | I58: 4325 | J58: 4262 | K58: 4204 | L58: 4145 | M58: 4088
A59: Joutsa | B59: =pohjatiedot!C55 -> 4467 | C59: =pohjatiedot!AQ55 -> 4377 | D59: 4313 | E59: 4244 | F59: 4176 | G59: 4109 | H59: 4048 | I59: 3987 | J59: 3927 | K59: 3872 | L59: 3818 | M59: 3765
A60: Juuka | B60: =pohjatiedot!C56 -> 4709 | C60: =pohjatiedot!AQ56 -> 4606 | D60: 4514 | E60: 4420 | F60: 4331 | G60: 4242 | H60: 4157 | I60: 4075 | J60: 3996 | K60: 3922 | L60: 3852 | M60: 3786
A61: Juupajoki | B61: =pohjatiedot!C57 -> 1884 | C61: =pohjatiedot!AQ57 -> 1844 | D61: 1825 | E61: 1799 | F61: 1773 | G61: 1750 | H61: 1726 | I61: 1703 | J61: 1682 | K61: 1663 | L61: 1644 | M61: 1629
A62: Juva | B62: =pohjatiedot!C58 -> 6225 | C62: =pohjatiedot!AQ58 -> 6116 | D62: 6034 | E62: 5943 | F62: 5861 | G62: 5779 | H62: 5701 | I62: 5624 | J62: 5549 | K62: 5476 | L62: 5406 | M62: 5339
A63: Jyväskylä | B63: =pohjatiedot!C59 -> 141305 | C63: =pohjatiedot!AQ59 -> 142400 | D63: 143423 | E63: 144392 | F63: 145313 | G63: 146204 | H63: 147060 | I63: 147882 | J63: 148658 | K63: 149396 | L63: 150093 | M63: 150752
A64: Jämijärvi | B64: =pohjatiedot!C60 -> 1809 | C64: =pohjatiedot!AQ60 -> 1739 | D64: 1746 | E64: 1720 | F64: 1697 | G64: 1673 | H64: 1652 | I64: 1632 | J64: 1614 | K64: 1594 | L64: 1577 | M64: 1559
A65: Jämsä | B65: =pohjatiedot!C61 -> 20607 | C65: =pohjatiedot!AQ61 -> 20182 | D65: 19947 | E65: 19640 | F65: 19351 | G65: 19074 | H65: 18810 | I65: 18557 | J65: 18311 | K65: 18074 | L65: 17842 | M65: 17614
A66: Järvenpää | B66: =pohjatiedot!C62 -> 43410 | C66: =pohjatiedot!AQ62 -> 43711 | D66: 44418 | E66: 44909 | F66: 45395 | G66: 45864 | H66: 46313 | I66: 46749 | J66: 47167 | K66: 47563 | L66: 47937 | M66: 48289
A67: Kaarina | B67: =pohjatiedot!C63 -> 33458 | C67: =pohjatiedot!AQ63 -> 33937 | D67: 34004 | E67: 34269 | F67: 34517 | G67: 34747 | H67: 34963 | I67: 35156 | J67: 35335 | K67: 35492 | L67: 35636 | M67: 35760
A68: Kaavi | B68: =pohjatiedot!C64 -> 2990 | C68: =pohjatiedot!AQ64 -> 2893 | D68: 2873 | E68: 2817 | F68: 2766 | G68: 2715 | H68: 2668 | I68: 2624 | J68: 2582 | K68: 2545 | L68: 2506 | M68: 2471
A69: Kajaani | B69: =pohjatiedot!C65 -> 36973 | C69: =pohjatiedot!AQ65 -> 36709 | D69: 36481 | E69: 36256 | F69: 36038 | G69: 35823 | H69: 35614 | I69: 35404 | J69: 35191 | K69: 34981 | L69: 34769 | M69: 34562
A70: Kalajoki | B70: =pohjatiedot!C66 -> 12387 | C70: =pohjatiedot!AQ66 -> 12373 | D70: 12239 | E70: 12161 | F70: 12083 | G70: 12004 | H70: 11924 | I70: 11844 | J70: 11763 | K70: 11684 | L70: 11605 | M70: 11527
A71: Kangasala | B71: =pohjatiedot!C67 -> 31676 | C71: =pohjatiedot!AQ67 -> 31868 | D71: 32119 | E71: 32321 | F71: 32504 | G71: 32666 | H71: 32812 | I71: 32944 | J71: 33065 | K71: 33173 | L71: 33270 | M71: 33360
A72: Kangasniemi | B72: =pohjatiedot!C68 -> 5452 | C72: =pohjatiedot!AQ68 -> 5356 | D72: 5300 | E72: 5232 | F72: 5168 | G72: 5106 | H72: 5044 | I72: 4984 | J72: 4926 | K72: 4869 | L72: 4814 | M72: 4761
A73: Kankaanpää | B73: =pohjatiedot!C69 -> 11471 | C73: =pohjatiedot!AQ69 -> 11286 | D73: 11241 | E73: 11138 | F73: 11046 | G73: 10954 | H73: 10865 | I73: 10778 | J73: 10694 | K73: 10616 | L73: 10539 | M73: 10465
A74: Kannonkoski | B74: =pohjatiedot!C70 -> 1353 | C74: =pohjatiedot!AQ70 -> 1339 | D74: 1305 | E74: 1285 | F74: 1264 | G74: 1243 | H74: 1223 | I74: 1206 | J74: 1188 | K74: 1173 | L74: 1157 | M74: 1143
A75: Kannus | B75: =pohjatiedot!C71 -> 5502 | C75: =pohjatiedot!AQ71 -> 5464 | D75: 5402 | E75: 5355 | F75: 5310 | G75: 5268 | H75: 5226 | I75: 5186 | J75: 5148 | K75: 5117 | L75: 5082 | M75: 5049
A76: Karijoki | B76: =pohjatiedot!C72 -> 1274 | C76: =pohjatiedot!AQ72 -> 1245 | D76: 1199 | E76: 1167 | F76: 1138 | G76: 1110 | H76: 1083 | I76: 1060 | J76: 1037 | K76: 1016 | L76: 999 | M76: 980
A77: Karkkila | B77: =pohjatiedot!C73 -> 8778 | C77: =pohjatiedot!AQ73 -> 8714 | D77: 8639 | E77: 8579 | F77: 8523 | G77: 8469 | H77: 8423 | I77: 8378 | J77: 8336 | K77: 8295 | L77: 8258 | M77: 8224
A78: Karstula | B78: =pohjatiedot!C74 -> 4031 | C78: =pohjatiedot!AQ74 -> 3949 | D78: 3901 | E78: 3837 | F78: 3773 | G78: 3712 | H78: 3652 | I78: 3597 | J78: 3543 | K78: 3492 | L78: 3443 | M78: 3396
A79: Karvia | B79: =pohjatiedot!C75 -> 2390 | C79: =pohjatiedot!AQ75 -> 2342 | D79: 2339 | E79: 2317 | F79: 2295 | G79: 2273 | H79: 2253 | I79: 2236 | J79: 2217 | K79: 2203 | L79: 2188 | M79: 2176
A80: Kaskinen | B80: =pohjatiedot!C76 -> 1262 | C80: =pohjatiedot!AQ76 -> 1246 | D80: 1232 | E80: 1221 | F80: 1209 | G80: 1200 | H80: 1192 | I80: 1184 | J80: 1176 | K80: 1168 | L80: 1161 | M80: 1153
A81: Kauhajoki | B81: =pohjatiedot!C77 -> 13375 | C81: =pohjatiedot!AQ77 -> 13184 | D81: 13049 | E81: 12896 | F81: 12748 | G81: 12605 | H81: 12466 | I81: 12337 | J81: 12213 | K81: 12087 | L81: 11959 | M81: 11828
A82: Kauhava | B82: =pohjatiedot!C78 -> 16022 | C82: =pohjatiedot!AQ78 -> 15726 | D82: 15581 | E82: 15377 | F82: 15177 | G82: 14978 | H82: 14788 | I82: 14602 | J82: 14420 | K82: 14247 | L82: 14075 | M82: 13907
A83: Kauniainen | B83: =pohjatiedot!C79 -> 9615 | C83: =pohjatiedot!AQ79 -> 9797 | D83: 9781 | E83: 9858 | F83: 9936 | G83: 10012 | H83: 10090 | I83: 10166 | J83: 10239 | K83: 10309 | L83: 10382 | M83: 10454
A84: Kaustinen | B84: =pohjatiedot!C80 -> 4273 | C84: =pohjatiedot!AQ80 -> 4261 | D84: 4247 | E84: 4237 | F84: 4222 | G84: 4208 | H84: 4192 | I84: 4177 | J84: 4158 | K84: 4141 | L84: 4124 | M84: 4104
A85: Keitele | B85: =pohjatiedot!C81 -> 2244 | C85: =pohjatiedot!AQ81 -> 2202 | D85: 2177 | E85: 2148 | F85: 2118 | G85: 2093 | H85: 2067 | I85: 2040 | J85: 2017 | K85: 1995 | L85: 1971 | M85: 1949
A86: Kemi | B86: =pohjatiedot!C82 -> 21021 | C86: =pohjatiedot!AQ82 -> 20707 | D86: 20505 | E86: 20272 | F86: 20058 | G86: 19851 | H86: 19653 | I86: 19458 | J86: 19269 | K86: 19082 | L86: 18903 | M86: 18730
A87: Kemijärvi | B87: =pohjatiedot!C83 -> 7370 | C87: =pohjatiedot!AQ83 -> 7274 | D87: 7105 | E87: 6982 | F87: 6864 | G87: 6755 | H87: 6652 | I87: 6550 | J87: 6455 | K87: 6362 | L87: 6273 | M87: 6186
A88: Keminmaa | B88: =pohjatiedot!C84 -> 8147 | C88: =pohjatiedot!AQ84 -> 8079 | D88: 7952 | E88: 7869 | F88: 7786 | G88: 7706 | H88: 7629 | I88: 7556 | J88: 7486 | K88: 7418 | L88: 7349 | M88: 7284
A89: Kemiönsaari | B89: =pohjatiedot!C85 -> 6724 | C89: =pohjatiedot!AQ85 -> 6640 | D89: 6606 | E89: 6552 | F89: 6501 | G89: 6451 | H89: 6405 | I89: 6358 | J89: 6316 | K89: 6275 | L89: 6237 | M89: 6202
A90: Kempele | B90: =pohjatiedot!C86 -> 17923 | C90: =pohjatiedot!AQ86 -> 18355 | D90: 18380 | E90: 18562 | F90: 18715 | G90: 18847 | H90: 18958 | I90: 19047 | J90: 19120 | K90: 19179 | L90: 19223 | M90: 19251
A91: Kerava | B91: =pohjatiedot!C87 -> 36254 | C91: =pohjatiedot!AQ87 -> 36756 | D91: 36622 | E91: 36805 | F91: 36988 | G91: 37170 | H91: 37343 | I91: 37511 | J91: 37675 | K91: 37826 | L91: 37969 | M91: 38102
A92: Keuruu | B92: =pohjatiedot!C88 -> 9762 | C92: =pohjatiedot!AQ88 -> 9605 | D92: 9524 | E92: 9418 | F92: 9320 | G92: 9224 | H92: 9135 | I92: 9046 | J92: 8961 | K92: 8878 | L92: 8794 | M92: 8711
A93: Kihniö | B93: =pohjatiedot!C89 -> 1910 | C93: =pohjatiedot!AQ89 -> 1865 | D93: 1836 | E93: 1802 | F93: 1766 | G93: 1735 | H93: 1705 | I93: 1678 | J93: 1652 | K93: 1627 | L93: 1603 | M93: 1578
A94: Kinnula | B94: =pohjatiedot!C90 -> 1615 | C94: =pohjatiedot!AQ90 -> 1620 | D94: 1561 | E94: 1535 | F94: 1510 | G94: 1486 | H94: 1464 | I94: 1441 | J94: 1419 | K94: 1399 | L94: 1379 | M94: 1360
A95: Kirkkonummi | B95: =pohjatiedot!C91 -> 39262 | C95: =pohjatiedot!AQ91 -> 39586 | D95: 39560 | E95: 39701 | F95: 39836 | G95: 39961 | H95: 40085 | I95: 40205 | J95: 40319 | K95: 40425 | L95: 40530 | M95: 40636
A96: Kitee | B96: =pohjatiedot!C92 -> 10358 | C96: =pohjatiedot!AQ92 -> 10136 | D96: 10012 | E96: 9850 | F96: 9692 | G96: 9542 | H96: 9400 | I96: 9265 | J96: 9130 | K96: 9000 | L96: 8879 | M96: 8761
A97: Kittilä | B97: =pohjatiedot!C93 -> 6436 | C97: =pohjatiedot!AQ93 -> 6453 | D97: 6393 | E97: 6378 | F97: 6366 | G97: 6354 | H97: 6342 | I97: 6329 | J97: 6319 | K97: 6310 | L97: 6301 | M97: 6288
A98: Kiuruvesi | B98: =pohjatiedot!C94 -> 8153 | C98: =pohjatiedot!AQ94 -> 7998 | D98: 7854 | E98: 7714 | F98: 7581 | G98: 7454 | H98: 7331 | I98: 7210 | J98: 7094 | K98: 6983 | L98: 6875 | M98: 6772
A99: Kivijärvi | B99: =pohjatiedot!C95 -> 1103 | C99: =pohjatiedot!AQ95 -> 1096 | D99: 1034 | E99: 1003 | F99: 977 | G99: 951 | H99: 925 | I99: 901 | J99: 880 | K99: 861 | L99: 841 | M99: 824
A100: Kokemäki | B100: =pohjatiedot!C96 -> 7226 | C100: =pohjatiedot!AQ96 -> 7103 | D100: 7023 | E100: 6930 | F100: 6843 | G100: 6761 | H100: 6681 | I100: 6603 | J100: 6530 | K100: 6459 | L100: 6391 | M100: 6328
A101: Kokkola | B101: =pohjatiedot!C97 -> 47657 | C101: =pohjatiedot!AQ97 -> 47681 | D101: 47729 | E101: 47752 | F101: 47763 | G101: 47767 | H101: 47764 | I101: 47746 | J101: 47715 | K101: 47671 | L101: 47618 | M101: 47551
A102: KOKO MAA (Manner-Suomi) | B102: =pohjatiedot!C98 -> 5488130 | C102: =pohjatiedot!AQ98 -> 5495408 | D102: 5500619 | E102: 5506386 | F102: 5511772 | G102: 5516715 | H102: 5521162 | I102: 5525035 | J102: 5528282 | K102: 5530869 | L102: 5532706 | M102: 5533828
A103: Kolari | B103: =pohjatiedot!C99 -> 3834 | C103: =pohjatiedot!AQ99 -> 3846 | D103: 3788 | E103: 3776 | F103: 3761 | G103: 3747 | H103: 3733 | I103: 3717 | J103: 3699 | K103: 3682 | L103: 3664 | M103: 3648
A104: Konnevesi | B104: =pohjatiedot!C100 -> 2698 | C104: =pohjatiedot!AQ100 -> 2627 | D104: 2634 | E104: 2605 | F104: 2575 | G104: 2546 | H104: 2518 | I104: 2490 | J104: 2462 | K104: 2436 | L104: 2410 | M104: 2384
A105: Kontiolahti | B105: =pohjatiedot!C101 -> 14849 | C105: =pohjatiedot!AQ101 -> 14821 | D105: 14980 | E105: 15020 | F105: 15051 | G105: 15072 | H105: 15085 | I105: 15088 | J105: 15081 | K105: 15063 | L105: 15043 | M105: 15013
A106: Korsnäs | B106: =pohjatiedot!C102 -> 2122 | C106: =pohjatiedot!AQ102 -> 2077 | D106: 2084 | E106: 2069 | F106: 2058 | G106: 2049 | H106: 2040 | I106: 2032 | J106: 2022 | K106: 2014 | L106: 2004 | M106: 1992
A107: Koski | B107: =pohjatiedot!C103 -> 2340 | C107: =pohjatiedot!AQ103 -> 2308 | D107: 2297 | E107: 2277 | F107: 2258 | G107: 2242 | H107: 2226 | I107: 2212 | J107: 2197 | K107: 2182 | L107: 2167 | M107: 2154
A108: Kotka | B108: =pohjatiedot!C104 -> 52883 | C108: =pohjatiedot!AQ104 -> 52126 | D108: 51999 | E108: 51584 | F108: 51186 | G108: 50798 | H108: 50423 | I108: 50059 | J108: 49706 | K108: 49360 | L108: 49016 | M108: 48677
A109: Kouvola | B109: =pohjatiedot!C105 -> 83177 | C109: =pohjatiedot!AQ105 -> 82113 | D109: 81521 | E109: 80732 | F109: 79965 | G109: 79213 | H109: 78476 | I109: 77752 | J109: 77036 | K109: 76340 | L109: 75661 | M109: 74991
A110: Kristiinankaupunki | B110: =pohjatiedot!C106 -> 6596 | C110: =pohjatiedot!AQ106 -> 6486 | D110: 6422 | E110: 6354 | F110: 6294 | G110: 6239 | H110: 6189 | I110: 6141 | J110: 6096 | K110: 6051 | L110: 6006 | M110: 5960
A111: Kruunupyy | B111: =pohjatiedot!C107 -> 6509 | C111: =pohjatiedot!AQ107 -> 6428 | D111: 6427 | E111: 6390 | F111: 6353 | G111: 6319 | H111: 6284 | I111: 6249 | J111: 6215 | K111: 6180 | L111: 6145 | M111: 6110
A112: Kuhmo | B112: =pohjatiedot!C108 -> 8329 | C112: =pohjatiedot!AQ108 -> 8190 | D112: 8028 | E112: 7885 | F112: 7745 | G112: 7605 | H112: 7470 | I112: 7337 | J112: 7205 | K112: 7077 | L112: 6952 | M112: 6832
A113: Kuhmoinen | B113: =pohjatiedot!C109 -> 2238 | C113: =pohjatiedot!AQ109 -> 2206 | D113: 2169 | E113: 2137 | F113: 2106 | G113: 2079 | H113: 2052 | I113: 2026 | J113: 2001 | K113: 1978 | L113: 1955 | M113: 1934
A114: Kuopio | B114: =pohjatiedot!C110 -> 118664 | C114: =pohjatiedot!AQ110 -> 119282 | D114: 119490 | E114: 119862 | F114: 120199 | G114: 120514 | H114: 120809 | I114: 121078 | J114: 121330 | K114: 121561 | L114: 121767 | M114: 121944
A115: Kuortane | B115: =pohjatiedot!C111 -> 3572 | C115: =pohjatiedot!AQ111 -> 3551 | D115: 3478 | E115: 3432 | F115: 3386 | G115: 3342 | H115: 3299 | I115: 3259 | J115: 3217 | K115: 3178 | L115: 3139 | M115: 3102
A116: Kurikka | B116: =pohjatiedot!C112 -> 20952 | C116: =pohjatiedot!AQ112 -> 20678 | D116: 20393 | E116: 20125 | F116: 19863 | G116: 19611 | H116: 19362 | I116: 19118 | J116: 18880 | K116: 18646 | L116: 18416 | M116: 18187
A117: Kustavi | B117: =pohjatiedot!C113 -> 926 | C117: =pohjatiedot!AQ113 -> 949 | D117: 944 | E117: 956 | F117: 967 | G117: 977 | H117: 989 | I117: 997 | J117: 1008 | K117: 1017 | L117: 1026 | M117: 1035
A118: Kuusamo | B118: =pohjatiedot!C114 -> 15207 | C118: =pohjatiedot!AQ114 -> 15134 | D118: 14841 | E118: 14675 | F118: 14514 | G118: 14357 | H118: 14197 | I118: 14043 | J118: 13893 | K118: 13739 | L118: 13588 | M118: 13437
A119: Kyyjärvi | B119: =pohjatiedot!C115 -> 1343 | C119: =pohjatiedot!AQ115 -> 1313 | D119: 1304 | E119: 1284 | F119: 1265 | G119: 1247 | H119: 1230 | I119: 1213 | J119: 1196 | K119: 1181 | L119: 1164 | M119: 1148
A120: Kärkölä | B120: =pohjatiedot!C116 -> 4451 | C120: =pohjatiedot!AQ116 -> 4368 | D120: 4334 | E120: 4284 | F120: 4237 | G120: 4194 | H120: 4154 | I120: 4115 | J120: 4075 | K120: 4037 | L120: 4001 | M120: 3968
A121: Kärsämäki | B121: =pohjatiedot!C117 -> 2613 | C121: =pohjatiedot!AQ117 -> 2576 | D121: 2557 | E121: 2531 | F121: 2502 | G121: 2476 | H121: 2450 | I121: 2428 | J121: 2405 | K121: 2382 | L121: 2360 | M121: 2336
A122: Lahti | B122: =pohjatiedot!C118 -> 119951 | C122: =pohjatiedot!AQ118 -> 119823 | D122: 120250 | E122: 120373 | F122: 120477 | G122: 120564 | H122: 120628 | I122: 120665 | J122: 120668 | K122: 120637 | L122: 120575 | M122: 120486
A123: Laihia | B123: =pohjatiedot!C119 -> 8058 | C123: =pohjatiedot!AQ119 -> 8017 | D123: 8089 | E123: 8092 | F123: 8086 | G123: 8079 | H123: 8065 | I123: 8049 | J123: 8029 | K123: 8007 | L123: 7978 | M123: 7946
A124: Laitila | B124: =pohjatiedot!C120 -> 8647 | C124: =pohjatiedot!AQ120 -> 8588 | D124: 8663 | E124: 8668 | F124: 8675 | G124: 8678 | H124: 8682 | I124: 8685 | J124: 8687 | K124: 8688 | L124: 8687 | M124: 8687
A125: Lapinjärvi | B125: =pohjatiedot!C121 -> 2665 | C125: =pohjatiedot!AQ121 -> 2606 | D125: 2606 | E125: 2579 | F125: 2556 | G125: 2534 | H125: 2512 | I125: 2493 | J125: 2474 | K125: 2453 | L125: 2436 | M125: 2417
A126: Lapinlahti | B126: =pohjatiedot!C122 -> 9617 | C126: =pohjatiedot!AQ122 -> 9485 | D126: 9404 | E126: 9300 | F126: 9200 | G126: 9098 | H126: 8998 | I126: 8897 | J126: 8799 | K126: 8702 | L126: 8605 | M126: 8510
A127: Lappajärvi | B127: =pohjatiedot!C123 -> 3078 | C127: =pohjatiedot!AQ123 -> 2996 | D127: 2970 | E127: 2921 | F127: 2880 | G127: 2837 | H127: 2799 | I127: 2761 | J127: 2725 | K127: 2687 | L127: 2652 | M127: 2619
A128: Lappeenranta | B128: =pohjatiedot!C124 -> 72699 | C128: =pohjatiedot!AQ124 -> 72634 | D128: 72466 | E128: 72333 | F128: 72197 | G128: 72073 | H128: 71946 | I128: 71818 | J128: 71679 | K128: 71536 | L128: 71387 | M128: 71231
A129: Lapua | B129: =pohjatiedot!C125 -> 14427 | C129: =pohjatiedot!AQ125 -> 14278 | D129: 14296 | E129: 14230 | F129: 14163 | G129: 14092 | H129: 14022 | I129: 13955 | J129: 13892 | K129: 13826 | L129: 13762 | M129: 13696
A130: Laukaa | B130: =pohjatiedot!C126 -> 18927 | C130: =pohjatiedot!AQ126 -> 18903 | D130: 18985 | E130: 18991 | F130: 18983 | G130: 18959 | H130: 18925 | I130: 18880 | J130: 18827 | K130: 18768 | L130: 18704 | M130: 18631
A131: Lemi | B131: =pohjatiedot!C127 -> 3043 | C131: =pohjatiedot!AQ127 -> 2971 | D131: 3010 | E131: 2991 | F131: 2971 | G131: 2951 | H131: 2929 | I131: 2911 | J131: 2889 | K131: 2866 | L131: 2840 | M131: 2814
A132: Lempäälä | B132: =pohjatiedot!C128 -> 23206 | C132: =pohjatiedot!AQ128 -> 23523 | D132: 23574 | E132: 23745 | F132: 23906 | G132: 24057 | H132: 24185 | I132: 24296 | J132: 24393 | K132: 24473 | L132: 24544 | M132: 24601
A133: Leppävirta | B133: =pohjatiedot!C129 -> 9650 | C133: =pohjatiedot!AQ129 -> 9454 | D133: 9446 | E133: 9345 | F133: 9249 | G133: 9156 | H133: 9066 | I133: 8972 | J133: 8881 | K133: 8791 | L133: 8699 | M133: 8610
A134: Lestijärvi | B134: =pohjatiedot!C130 -> 737 | C134: =pohjatiedot!AQ130 -> 719 | D134: 700 | E134: 686 | F134: 673 | G134: 661 | H134: 651 | I134: 641 | J134: 632 | K134: 624 | L134: 616 | M134: 609
A135: Lieksa | B135: =pohjatiedot!C131 -> 11098 | C135: =pohjatiedot!AQ131 -> 10884 | D135: 10633 | E135: 10426 | F135: 10231 | G135: 10045 | H135: 9865 | I135: 9695 | J135: 9528 | K135: 9369 | L135: 9212 | M135: 9064
A136: Lieto | B136: =pohjatiedot!C132 -> 19831 | C136: =pohjatiedot!AQ132 -> 19994 | D136: 20011 | E136: 20094 | F136: 20174 | G136: 20246 | H136: 20312 | I136: 20373 | J136: 20429 | K136: 20478 | L136: 20514 | M136: 20543
A137: Liminka | B137: =pohjatiedot!C133 -> 10161 | C137: =pohjatiedot!AQ133 -> 10191 | D137: 10386 | E137: 10455 | F137: 10505 | G137: 10539 | H137: 10559 | I137: 10568 | J137: 10573 | K137: 10573 | L137: 10565 | M137: 10553
A138: Liperi | B138: =pohjatiedot!C134 -> 12145 | C138: =pohjatiedot!AQ134 -> 12084 | D138: 12017 | E138: 11959 | F138: 11900 | G138: 11839 | H138: 11777 | I138: 11714 | J138: 11650 | K138: 11580 | L138: 11507 | M138: 11430
A139: Lohja | B139: =pohjatiedot!C135 -> 46296 | C139: =pohjatiedot!AQ135 -> 45965 | D139: 45614 | E139: 45289 | F139: 44975 | G139: 44670 | H139: 44372 | I139: 44082 | J139: 43797 | K139: 43526 | L139: 43263 | M139: 43007
A140: Loimaa | B140: =pohjatiedot!C136 -> 16032 | C140: =pohjatiedot!AQ136 -> 15875 | D140: 15721 | E140: 15584 | F140: 15455 | G140: 15334 | H140: 15215 | I140: 15107 | J140: 14997 | K140: 14893 | L140: 14792 | M140: 14691
A141: Loppi | B141: =pohjatiedot!C137 -> 7861 | C141: =pohjatiedot!AQ137 -> 7828 | D141: 7713 | E141: 7632 | F141: 7550 | G141: 7465 | H141: 7386 | I141: 7309 | J141: 7234 | K141: 7161 | L141: 7092 | M141: 7026
A142: Loviisa | B142: =pohjatiedot!C138 -> 14891 | C142: =pohjatiedot!AQ138 -> 14772 | D142: 14590 | E142: 14453 | F142: 14323 | G142: 14200 | H142: 14081 | I142: 13965 | J142: 13852 | K142: 13748 | L142: 13647 | M142: 13552
A143: Luhanka | B143: =pohjatiedot!C139 -> 707 | C143: =pohjatiedot!AQ139 -> 690 | D143: 696 | E143: 690 | F143: 687 | G143: 684 | H143: 681 | I143: 678 | J143: 676 | K143: 674 | L143: 670 | M143: 668
A144: Lumijoki | B144: =pohjatiedot!C140 -> 2052 | C144: =pohjatiedot!AQ140 -> 2020 | D144: 2032 | E144: 2020 | F144: 2004 | G144: 1985 | H144: 1966 | I144: 1944 | J144: 1924 | K144: 1902 | L144: 1882 | M144: 1861
A145: Luoto | B145: =pohjatiedot!C141 -> 5340 | C145: =pohjatiedot!AQ141 -> 5417 | D145: 5448 | E145: 5500 | F145: 5552 | G145: 5599 | H145: 5644 | I145: 5685 | J145: 5725 | K145: 5763 | L145: 5800 | M145: 5835
A146: Luumäki | B146: =pohjatiedot!C142 -> 4662 | C146: =pohjatiedot!AQ142 -> 4636 | D146: 4530 | E146: 4467 | F146: 4404 | G146: 4343 | H146: 4286 | I146: 4229 | J146: 4174 | K146: 4120 | L146: 4065 | M146: 4016
A147: Maalahti | B147: =pohjatiedot!C143 -> 5477 | C147: =pohjatiedot!AQ143 -> 5475 | D147: 5428 | E147: 5407 | F147: 5390 | G147: 5374 | H147: 5358 | I147: 5340 | J147: 5323 | K147: 5302 | L147: 5278 | M147: 5250
A148: Marttila | B148: =pohjatiedot!C144 -> 2018 | C148: =pohjatiedot!AQ144 -> 2013 | D148: 2008 | E148: 2003 | F148: 2000 | G148: 1996 | H148: 1994 | I148: 1991 | J148: 1986 | K148: 1979 | L148: 1973 | M148: 1964
A149: Masku | B149: =pohjatiedot!C145 -> 9554 | C149: =pohjatiedot!AQ145 -> 9534 | D149: 9462 | E149: 9411 | F149: 9360 | G149: 9307 | H149: 9253 | I149: 9197 | J149: 9142 | K149: 9092 | L149: 9043 | M149: 8993
A150: Merijärvi | B150: =pohjatiedot!C146 -> 1104 | C150: =pohjatiedot!AQ146 -> 1089 | D150: 1065 | E150: 1048 | F150: 1034 | G150: 1021 | H150: 1006 | I150: 994 | J150: 981 | K150: 969 | L150: 958 | M150: 947
A151: Merikarvia | B151: =pohjatiedot!C147 -> 3115 | C151: =pohjatiedot!AQ147 -> 3067 | D151: 3064 | E151: 3039 | F151: 3013 | G151: 2987 | H151: 2960 | I151: 2934 | J151: 2912 | K151: 2890 | L151: 2866 | M151: 2846
A152: Miehikkälä | B152: =pohjatiedot!C148 -> 1940 | C152: =pohjatiedot!AQ148 -> 1857 | D152: 1867 | E152: 1834 | F152: 1804 | G152: 1775 | H152: 1748 | I152: 1723 | J152: 1699 | K152: 1676 | L152: 1654 | M152: 1633
A153: Mikkeli | B153: =pohjatiedot!C149 -> 53818 | C153: =pohjatiedot!AQ149 -> 53134 | D153: 53316 | E153: 53069 | F153: 52820 | G153: 52568 | H153: 52314 | I153: 52056 | J153: 51798 | K153: 51537 | L153: 51276 | M153: 51018
A154: Muhos | B154: =pohjatiedot!C150 -> 8980 | C154: =pohjatiedot!AQ150 -> 8908 | D154: 8971 | E154: 8946 | F154: 8911 | G154: 8870 | H154: 8827 | I154: 8785 | J154: 8739 | K154: 8693 | L154: 8647 | M154: 8599
A155: Multia | B155: =pohjatiedot!C151 -> 1584 | C155: =pohjatiedot!AQ151 -> 1566 | D155: 1514 | E155: 1480 | F155: 1451 | G155: 1420 | H155: 1392 | I155: 1365 | J155: 1340 | K155: 1317 | L155: 1295 | M155: 1273
A156: Muonio | B156: =pohjatiedot!C152 -> 2299 | C156: =pohjatiedot!AQ152 -> 2308 | D156: 2259 | E156: 2241 | F156: 2226 | G156: 2212 | H156: 2198 | I156: 2185 | J156: 2172 | K156: 2159 | L156: 2145 | M156: 2129
A157: Mustasaari | B157: =pohjatiedot!C153 -> 19444 | C157: =pohjatiedot!AQ153 -> 19448 | D157: 19521 | E157: 19550 | F157: 19567 | G157: 19574 | H157: 19570 | I157: 19560 | J157: 19542 | K157: 19522 | L157: 19493 | M157: 19456
A158: Muurame | B158: =pohjatiedot!C154 -> 10170 | C158: =pohjatiedot!AQ154 -> 10164 | D158: 10356 | E158: 10431 | F158: 10492 | G158: 10547 | H158: 10596 | I158: 10635 | J158: 10666 | K158: 10689 | L158: 10709 | M158: 10722
A159: Mynämäki | B159: =pohjatiedot!C155 -> 7766 | C159: =pohjatiedot!AQ155 -> 7654 | D159: 7661 | E159: 7618 | F159: 7576 | G159: 7538 | H159: 7501 | I159: 7465 | J159: 7428 | K159: 7395 | L159: 7363 | M159: 7331
A160: Myrskylä | B160: =pohjatiedot!C156 -> 1922 | C160: =pohjatiedot!AQ156 -> 1882 | D160: 1898 | E160: 1888 | F160: 1876 | G160: 1865 | H160: 1852 | I160: 1839 | J160: 1828 | K160: 1816 | L160: 1807 | M160: 1798
A161: Mäntsälä | B161: =pohjatiedot!C157 -> 20686 | C161: =pohjatiedot!AQ157 -> 20721 | D161: 20618 | E161: 20592 | F161: 20572 | G161: 20556 | H161: 20540 | I161: 20524 | J161: 20507 | K161: 20489 | L161: 20470 | M161: 20455
A162: Mänttä-Vilppula | B162: =pohjatiedot!C158 -> 9983 | C162: =pohjatiedot!AQ158 -> 9855 | D162: 9628 | E162: 9462 | F162: 9309 | G162: 9165 | H162: 9025 | I162: 8893 | J162: 8769 | K162: 8649 | L162: 8531 | M162: 8421
A163: Mäntyharju | B163: =pohjatiedot!C159 -> 5924 | C163: =pohjatiedot!AQ159 -> 5791 | D163: 5761 | E163: 5687 | F163: 5616 | G163: 5550 | H163: 5488 | I163: 5427 | J163: 5369 | K163: 5313 | L163: 5256 | M163: 5203
A164: Naantali | B164: =pohjatiedot!C160 -> 19245 | C164: =pohjatiedot!AQ160 -> 19314 | D164: 19381 | E164: 19448 | F164: 19510 | G164: 19570 | H164: 19628 | I164: 19680 | J164: 19727 | K164: 19767 | L164: 19805 | M164: 19839
A165: Nakkila | B165: =pohjatiedot!C161 -> 5437 | C165: =pohjatiedot!AQ161 -> 5329 | D165: 5335 | E165: 5282 | F165: 5229 | G165: 5176 | H165: 5124 | I165: 5071 | J165: 5017 | K165: 4968 | L165: 4920 | M165: 4870
A166: Nivala | B166: =pohjatiedot!C162 -> 10737 | C166: =pohjatiedot!AQ162 -> 10639 | D166: 10584 | E166: 10505 | F166: 10425 | G166: 10346 | H166: 10268 | I166: 10189 | J166: 10109 | K166: 10030 | L166: 9947 | M166: 9865
A167: Nokia | B167: =pohjatiedot!C163 -> 33527 | C167: =pohjatiedot!AQ163 -> 33929 | D167: 33763 | E167: 33866 | F167: 33959 | G167: 34037 | H167: 34100 | I167: 34148 | J167: 34185 | K167: 34207 | L167: 34218 | M167: 34226
A168: Nousiainen | B168: =pohjatiedot!C164 -> 4733 | C168: =pohjatiedot!AQ164 -> 4715 | D168: 4662 | E168: 4628 | F168: 4597 | G168: 4569 | H168: 4539 | I168: 4509 | J168: 4481 | K168: 4452 | L168: 4424 | M168: 4396
A169: Nurmes | B169: =pohjatiedot!C165 -> 7641 | C169: =pohjatiedot!AQ165 -> 7455 | D169: 9475 | E169: 9330 | F169: 9190 | G169: 9053 | H169: 8924 | I169: 8799 | J169: 8681 | K169: 8566 | L169: 8454 | M169: 8348
A170: Nurmijärvi | B170: =pohjatiedot!C166 -> 42665 | C170: =pohjatiedot!AQ166 -> 42993 | D170: 43080 | E170: 43269 | F170: 43447 | G170: 43614 | H170: 43771 | I170: 43917 | J170: 44055 | K170: 44186 | L170: 44305 | M170: 44418
A171: Närpiö | B171: =pohjatiedot!C167 -> 9471 | C171: =pohjatiedot!AQ167 -> 9479 | D171: 9481 | E171: 9491 | F171: 9504 | G171: 9518 | H171: 9535 | I171: 9551 | J171: 9563 | K171: 9575 | L171: 9584 | M171: 9592
A172: Orimattila | B172: =pohjatiedot!C168 -> 16091 | C172: =pohjatiedot!AQ168 -> 16003 | D172: 15944 | E172: 15867 | F172: 15789 | G172: 15705 | H172: 15618 | I172: 15529 | J172: 15443 | K172: 15356 | L172: 15269 | M172: 15181
A173: Oripää | B173: =pohjatiedot!C169 -> 1364 | C173: =pohjatiedot!AQ169 -> 1329 | D173: 1335 | E173: 1321 | F173: 1307 | G173: 1295 | H173: 1282 | I173: 1271 | J173: 1260 | K173: 1252 | L173: 1243 | M173: 1234
A174: Orivesi | B174: =pohjatiedot!C170 -> 9221 | C174: =pohjatiedot!AQ170 -> 9158 | D174: 9034 | E174: 8951 | F174: 8878 | G174: 8807 | H174: 8738 | I174: 8669 | J174: 8605 | K174: 8544 | L174: 8487 | M174: 8432
A175: Oulainen | B175: =pohjatiedot!C171 -> 7430 | C175: =pohjatiedot!AQ171 -> 7288 | D175: 7265 | E175: 7185 | F175: 7106 | G175: 7031 | H175: 6956 | I175: 6882 | J175: 6806 | K175: 6733 | L175: 6663 | M175: 6595
A176: Oulu | B176: =pohjatiedot!C172 -> 203567 | C176: =pohjatiedot!AQ172 -> 205489 | D176: 206723 | E176: 208198 | F176: 209610 | G176: 210946 | H176: 212219 | I176: 213424 | J176: 214562 | K176: 215635 | L176: 216649 | M176: 217591
A177: Outokumpu | B177: =pohjatiedot!C173 -> 6803 | C177: =pohjatiedot!AQ173 -> 6688 | D177: 6602 | E177: 6506 | F177: 6415 | G177: 6325 | H177: 6238 | I177: 6153 | J177: 6070 | K177: 5988 | L177: 5907 | M177: 5831
A178: Padasjoki | B178: =pohjatiedot!C174 -> 2963 | C178: =pohjatiedot!AQ174 -> 2896 | D178: 2843 | E178: 2788 | F178: 2736 | G178: 2688 | H178: 2641 | I178: 2597 | J178: 2554 | K178: 2514 | L178: 2474 | M178: 2439
A179: Paimio | B179: =pohjatiedot!C175 -> 10832 | C179: =pohjatiedot!AQ175 -> 10850 | D179: 10882 | E179: 10906 | F179: 10930 | G179: 10950 | H179: 10971 | I179: 10992 | J179: 11009 | K179: 11023 | L179: 11033 | M179: 11037
A180: Paltamo | B180: =pohjatiedot!C176 -> 3336 | C180: =pohjatiedot!AQ176 -> 3273 | D180: 3231 | E180: 3180 | F180: 3133 | G180: 3088 | H180: 3045 | I180: 3003 | J180: 2965 | K180: 2929 | L180: 2894 | M180: 2860
A181: Parainen | B181: =pohjatiedot!C177 -> 15217 | C181: =pohjatiedot!AQ177 -> 15132 | D181: 15041 | E181: 14960 | F181: 14878 | G181: 14801 | H181: 14725 | I181: 14649 | J181: 14572 | K181: 14498 | L181: 14425 | M181: 14350
A182: Parikkala | B182: =pohjatiedot!C178 -> 4842 | C182: =pohjatiedot!AQ178 -> 4734 | D182: 4601 | E182: 4491 | F182: 4388 | G182: 4289 | H182: 4196 | I182: 4110 | J182: 4025 | K182: 3946 | L182: 3870 | M182: 3796
A183: Parkano | B183: =pohjatiedot!C179 -> 6469 | C183: =pohjatiedot!AQ179 -> 6404 | D183: 6312 | E183: 6243 | F183: 6176 | G183: 6110 | H183: 6045 | I183: 5980 | J183: 5922 | K183: 5861 | L183: 5803 | M183: 5747
A184: Pedersören kunta | B184: =pohjatiedot!C180 -> 11016 | C184: =pohjatiedot!AQ180 -> 11081 | D184: 10993 | E184: 10978 | F184: 10964 | G184: 10947 | H184: 10927 | I184: 10907 | J184: 10882 | K184: 10854 | L184: 10824 | M184: 10793
A185: Pelkosenniemi | B185: =pohjatiedot!C181 -> 954 | C185: =pohjatiedot!AQ181 -> 939 | D185: 948 | E185: 945 | F185: 941 | G185: 938 | H185: 935 | I185: 932 | J185: 929 | K185: 927 | L185: 924 | M185: 920
A186: Pello | B186: =pohjatiedot!C182 -> 3438 | C186: =pohjatiedot!AQ182 -> 3373 | D186: 3304 | E186: 3242 | F186: 3186 | G186: 3130 | H186: 3077 | I186: 3028 | J186: 2983 | K186: 2941 | L186: 2898 | M186: 2858
A187: Perho | B187: =pohjatiedot!C183 -> 2825 | C187: =pohjatiedot!AQ183 -> 2759 | D187: 2780 | E187: 2757 | F187: 2733 | G187: 2710 | H187: 2683 | I187: 2658 | J187: 2632 | K187: 2606 | L187: 2580 | M187: 2555
A188: Pertunmaa | B188: =pohjatiedot!C184 -> 1713 | C188: =pohjatiedot!AQ184 -> 1690 | D188: 1661 | E188: 1640 | F188: 1618 | G188: 1596 | H188: 1576 | I188: 1555 | J188: 1536 | K188: 1519 | L188: 1502 | M188: 1487
A189: Petäjävesi | B189: =pohjatiedot!C185 -> 3900 | C189: =pohjatiedot!AQ185 -> 3841 | D189: 3801 | E189: 3750 | F189: 3704 | G189: 3658 | H189: 3613 | I189: 3570 | J189: 3527 | K189: 3484 | L189: 3440 | M189: 3396
A190: Pieksämäki | B190: =pohjatiedot!C186 -> 17933 | C190: =pohjatiedot!AQ186 -> 17682 | D190: 17399 | E190: 17152 | F190: 16919 | G190: 16696 | H190: 16479 | I190: 16272 | J190: 16074 | K190: 15880 | L190: 15693 | M190: 15515
A191: Pielavesi | B191: =pohjatiedot!C187 -> 4498 | C191: =pohjatiedot!AQ187 -> 4391 | D191: 4367 | E191: 4310 | F191: 4249 | G191: 4188 | H191: 4129 | I191: 4070 | J191: 4012 | K191: 3955 | L191: 3902 | M191: 3849
A192: Pietarsaari | B192: =pohjatiedot!C188 -> 19278 | C192: =pohjatiedot!AQ188 -> 19208 | D192: 19074 | E192: 18978 | F192: 18880 | G192: 18785 | H192: 18697 | I192: 18606 | J192: 18514 | K192: 18423 | L192: 18335 | M192: 18245
A193: Pihtipudas | B193: =pohjatiedot!C189 -> 4053 | C193: =pohjatiedot!AQ189 -> 4032 | D193: 3926 | E193: 3867 | F193: 3809 | G193: 3753 | H193: 3698 | I193: 3645 | J193: 3595 | K193: 3546 | L193: 3500 | M193: 3456
A194: Pirkkala | B194: =pohjatiedot!C190 -> 19368 | C194: =pohjatiedot!AQ190 -> 19623 | D194: 19596 | E194: 19698 | F194: 19793 | G194: 19875 | H194: 19946 | I194: 20008 | J194: 20061 | K194: 20108 | L194: 20146 | M194: 20174
A195: Polvijärvi | B195: =pohjatiedot!C191 -> 4307 | C195: =pohjatiedot!AQ191 -> 4246 | D195: 4171 | E195: 4110 | F195: 4054 | G195: 4000 | H195: 3949 | I195: 3896 | J195: 3849 | K195: 3801 | L195: 3753 | M195: 3708
A196: Pomarkku | B196: =pohjatiedot!C192 -> 2146 | C196: =pohjatiedot!AQ192 -> 2089 | D196: 2070 | E196: 2035 | F196: 1998 | G196: 1964 | H196: 1930 | I196: 1900 | J196: 1867 | K196: 1835 | L196: 1806 | M196: 1778
A197: Pori | B197: =pohjatiedot!C193 -> 84403 | C197: =pohjatiedot!AQ193 -> 83934 | D197: 83638 | E197: 83265 | F197: 82893 | G197: 82529 | H197: 82167 | I197: 81805 | J197: 81441 | K197: 81077 | L197: 80713 | M197: 80348
A198: Pornainen | B198: =pohjatiedot!C194 -> 5068 | C198: =pohjatiedot!AQ194 -> 5035 | D198: 4996 | E198: 4964 | F198: 4935 | G198: 4905 | H198: 4879 | I198: 4855 | J198: 4838 | K198: 4822 | L198: 4806 | M198: 4795
A199: Porvoo | B199: =pohjatiedot!C195 -> 50262 | C199: =pohjatiedot!AQ195 -> 50380 | D199: 50366 | E199: 50408 | F199: 50442 | G199: 50469 | H199: 50490 | I199: 50501 | J199: 50508 | K199: 50506 | L199: 50496 | M199: 50479
A200: Posio | B200: =pohjatiedot!C196 -> 3237 | C200: =pohjatiedot!AQ196 -> 3183 | D200: 3078 | E200: 3005 | F200: 2938 | G200: 2875 | H200: 2815 | I200: 2760 | J200: 2706 | K200: 2654 | L200: 2605 | M200: 2559
A201: Pudasjärvi | B201: =pohjatiedot!C197 -> 7990 | C201: =pohjatiedot!AQ197 -> 7873 | D201: 7741 | E201: 7623 | F201: 7512 | G201: 7405 | H201: 7300 | I201: 7200 | J201: 7103 | K201: 7013 | L201: 6921 | M201: 6834
A202: Pukkila | B202: =pohjatiedot!C198 -> 1899 | C202: =pohjatiedot!AQ198 -> 1860 | D202: 1869 | E202: 1857 | F202: 1843 | G202: 1832 | H202: 1819 | I202: 1808 | J202: 1797 | K202: 1789 | L202: 1779 | M202: 1773
... 99 more rows
